{"text_format":"1","workbook":"xlsx","n_sheets":7,"sheets":["FERIAS 3 DIAS","FERIAS DE 4 A 6 DIAS","Matriz de busqueda de los cod","FERIAS DE 7 DIAS EN ADELANTE","SOLICITUD DE SERVICIOS","TARIFAS SERVICIOS","TERMINOS Y CONDICIONES"],"not_rendered":{"charts":0,"images":5,"macros":1,"external_links":0,"defined_names":4,"comments":0,"pivot_tables":0},"unopened":[],"bounds":{"document_bytes":16777216,"sheet_cells":100000,"rows_first":2000,"rows_last":500,"rows_between":2000,"halvings":0,"cell_chars":16384,"cell_head_chars":4096},"cells_cut":0,"cells_raw":0,"read":"whole","date_system":"1900"}

{"sheet":"FERIAS 3 DIAS","index":0,"n_rows":168,"n_cols":7,"rows_kept":168,"cut":false,"hidden":true,"merged":[]}
["CLAVE","CODIGO","DESCRIPCIÓN","VALOR"]
[{"$f":"CONCATENATE(B2:B213,\" \",C2:C213)","v":"3070101 Instalación Monofásica (Toma corriente doble, consumo hasta 2KW/110V) valor de 1 a 6 dias"},3070101,"Instalación Monofásica (Toma corriente doble, consumo hasta 2KW/110V) valor de 1 a 6 dias",306000,"Celda vinculada","Celda nacional ","Celda internacional"]
[{"$f":"CONCATENATE(B3:B214,\" \",C3:C214)","v":"3070103 Instalación kilovatio adicional monofásico (Debe contar con punto principal, MAX 2KW por punto)"},3070103,"Instalación kilovatio adicional monofásico (Debe contar con punto principal, MAX 2KW por punto)",106800,1,false,false]
[{"$f":"CONCATENATE(B4:B215,\" \",C4:C215)","v":"3070102 Instalación trifásica (Regleta plastica, consumo hasta 4KW/208V)"},3070102,"Instalación trifásica (Regleta plastica, consumo hasta 4KW/208V)",569800]
[{"$f":"CONCATENATE(B5:B216,\" \",C5:C216)","v":"3070104 Instalación kilovatio adicional trifásico (Debe contar con punto principal)"},3070104,"Instalación kilovatio adicional trifásico (Debe contar con punto principal)",139400]
[{"$f":"CONCATENATE(B6:B217,\" \",C6:C217)","v":"3071372 De 21 a 50 kilovatios adicionales trifásicos (Valor por KW) (Debe contar con punto principal)"},3071372,"De 21 a 50 kilovatios adicionales trifásicos (Valor por KW) (Debe contar con punto principal)",126800]
[{"$f":"CONCATENATE(B7:B218,\" \",C7:C218)","v":"3071373 De 51 a 100 kilovatios adicionales trifásicos (Valor por KW) (Debe contar con punto principal)"},3071373,"De 51 a 100 kilovatios adicionales trifásicos (Valor por KW) (Debe contar con punto principal)",121200]
[{"$f":"CONCATENATE(B8:B219,\" \",C8:C219)","v":"3071374 Mas de100 kilovatios adicionales trifásicos (Valor por KW) (Debe contar con punto principal)"},3071374,"Mas de100 kilovatios adicionales trifásicos (Valor por KW) (Debe contar con punto principal)",116200]
[{"$f":"CONCATENATE(B9:B220,\" \",C9:C220)","v":"3070402 Lampara de pared ajustable (150W/110V)"},3070402,"Lampara de pared ajustable (150W/110V)",58900]
[{"$f":"CONCATENATE(B10:B221,\" \",C10:C221)","v":"3070405 Reflector Led (50W- mltV)"},3070405,"Reflector Led (50W- mltV)",62000]
[{"$f":"CONCATENATE(B11:B222,\" \",C11:C222)","v":"3070403 Extensión – tomacorriente doble con polo a tierra (1500W/110V) MAX 6mts "},3070403,"Extensión – tomacorriente doble con polo a tierra (1500W/110V) MAX 6mts ",30500]
[{"$f":"CONCATENATE(B12:B223,\" \",C12:C223)","v":"3071345 Lavaplatos 90XL* 60XH* 90 (No incluye agua y desague) valor de 1 a 6 dias"},3071345,"Lavaplatos 90XL* 60XH* 90 (No incluye agua y desague) valor de 1 a 6 dias",141200]
[{"$f":"CONCATENATE(B13:B224,\" \",C13:C224)","v":"3070301 Punto de Agua en 1/2\" (incluye consumo) valor de 1 a 6 dias"},3070301,"Punto de Agua en 1/2\" (incluye consumo) valor de 1 a 6 dias",298400]
[{"$f":"CONCATENATE(B14:B225,\" \",C14:C225)","v":"3070302 Desagüe en 1 1/2\" Por toda la feria (Ubicación asignada por Corferias en su stand) valor de 1 a 6 dias"},3070302,"Desagüe en 1 1/2\" Por toda la feria (Ubicación asignada por Corferias en su stand) valor de 1 a 6 dias",276200]
[{"$f":"CONCATENATE(B15:B226,\" \",C15:C226)","v":"3071341 Aire comprimido para punto con presión máx. de 100 PSI, y caudal máx. 35CFM. valor de 1 a 6 dias"},3071341,"Aire comprimido para punto con presión máx. de 100 PSI, y caudal máx. 35CFM. valor de 1 a 6 dias",380700]
[{"$f":"CONCATENATE(B16:B227,\" \",C16:C227)","v":"3070307 Punto de Agua en 1/2\" (Incluye consumo)  + Desagüe en 1 1/2\" + Lavaplatos valor de 1 a 6 dias"},3070307,"Punto de Agua en 1/2\" (Incluye consumo)  + Desagüe en 1 1/2\" + Lavaplatos valor de 1 a 6 dias",644200]
[{"$f":"CONCATENATE(B17:B228,\" \",C17:C228)","v":"3071321 Instalación de UN (1) punto de gas propano por UN (1) Equipo (Incluye materiales y mano de obra) (No incluye consumo de gas, este será liquidado a través de un medidor una vez finalice la feria y/o evento)"},3071321,"Instalación de UN (1) punto de gas propano por UN (1) Equipo (Incluye materiales y mano de obra) (No incluye consumo de gas, este será liquidado a través de un medidor una vez finalice la feria y/o evento)",257200]
[{"$f":"CONCATENATE(B18:B229,\" \",C18:C229)","v":"3070601 Panel adicional sistema cfe 100cm x 240cm"},3070601,"Panel adicional sistema cfe 100cm x 240cm",31400]
[{"$f":"CONCATENATE(B19:B230,\" \",C19:C230)","v":"3070801 Puerta sistema cfe 90cm x 240cm"},3070801,"Puerta sistema cfe 90cm x 240cm",77800]
[{"$f":"CONCATENATE(B20:B231,\" \",C20:C231)","v":"3070803 Bodega estándar con puerta 150cm x 150cm (Sistema Corferias)"},3070803,"Bodega estándar con puerta 150cm x 150cm (Sistema Corferias)",124100]
[{"$f":"CONCATENATE(B21:B232,\" \",C21:C232)","v":"3071319 Brazo Mecánico por Fracciòn de 15 min (Solo para primer nivel)"},3071319,"Brazo Mecánico por Fracciòn de 15 min (Solo para primer nivel)",61100]
[{"$f":"CONCATENATE(B22:B233,\" \",C22:C233)","v":"3071319 Brazo Mecánico por Fracciòn de 30 min (Solo para primer nivel)"},3071319,"Brazo Mecánico por Fracciòn de 30 min (Solo para primer nivel)",113400]
[{"$f":"CONCATENATE(B23:B234,\" \",C23:C234)","v":"3071319 Brazo Mecánico por Fracciòn de 45 min (Solo para primer nivel)"},3071319,"Brazo Mecánico por Fracciòn de 45 min (Solo para primer nivel)",174500]
[{"$f":"CONCATENATE(B24:B235,\" \",C24:C235)","v":"3071319 Brazo Mecánico por Fracciòn de 60 min (Solo para primer nivel)"},3071319,"Brazo Mecánico por Fracciòn de 60 min (Solo para primer nivel)",167500]
[{"$f":"CONCATENATE(B25:B236,\" \",C25:C236)","v":"3070413 Diferencial (Cap. 1 Ton.) + Brazo mecánico (Montaje y desmontaje) "},3070413,"Diferencial (Cap. 1 Ton.) + Brazo mecánico (Montaje y desmontaje) ",274900]
[{"$f":"CONCATENATE(B26:B237,\" \",C26:C237)","v":"3070414 Plataforma Tijera eléctrica por Fracciòn /30 min (Uso para segundos niveles)"},3070414,"Plataforma Tijera eléctrica por Fracciòn /30 min (Uso para segundos niveles)",68400]
[{"$f":"CONCATENATE(B27:B238,\" \",C27:C238)","v":"3071387 Brazo mecánico + Diferencial + TRUSS 2,60 X 2,60"},3071387,"Brazo mecánico + Diferencial + TRUSS 2,60 X 2,60",2668000]
[{"$f":"CONCATENATE(B28:B239,\" \",C28:C239)","v":"3071351 Brazo mecánico + Diferencial + TRUSS 3,60 X 2,60"},3071351,"Brazo mecánico + Diferencial + TRUSS 3,60 X 2,60",2668000]
[{"$f":"CONCATENATE(B29:B240,\" \",C29:C240)","v":"3071395 Brazo mecánico + Diferencial + TRUSS 3,60 X 3,60"},3071395,"Brazo mecánico + Diferencial + TRUSS 3,60 X 3,60",2668000]
[{"$f":"CONCATENATE(B30:B241,\" \",C30:C241)","v":"3071324 Brazo mecánico + Diferencial + TRUSS 5,90 X 5,90"},3071324,"Brazo mecánico + Diferencial + TRUSS 5,90 X 5,90",3335000]
[{"$f":"CONCATENATE(B31:B242,\" \",C31:C242)","v":"3071436 Brazo mecánico + Diferencial + TRUSS 6,90 X 6,90"},3071436,"Brazo mecánico + Diferencial + TRUSS 6,90 X 6,90",3335000]
[{"$f":"CONCATENATE(B32:B243,\" \",C32:C243)","v":"3071350 Brazo mecánico + Diferencial + TRUSS 5,60 X 5,60"},3071350,"Brazo mecánico + Diferencial + TRUSS 5,60 X 5,60",3335000]
[{"$f":"CONCATENATE(B33:B244,\" \",C33:C244)","v":"3071371 Brazo mecánico + Diferencial + TRUSS 6,60 X 6,60"},3071371,"Brazo mecánico + Diferencial + TRUSS 6,60 X 6,60",3335000]
[{"$f":"CONCATENATE(B34:B245,\" \",C34:C245)","v":"3071393 Brazo mecánico + Diferencial + TRUSS 9,60 X 2,60"},3071393,"Brazo mecánico + Diferencial + TRUSS 9,60 X 2,60",3335000]
[{"$f":"CONCATENATE(B35:B246,\" \",C35:C246)","v":"3071394 Brazo mecánico + Diferencial + TRUSS 9,60 X 3,60"},3071394,"Brazo mecánico + Diferencial + TRUSS 9,60 X 3,60",3335000]
[{"$f":"CONCATENATE(B36:B247,\" \",C36:C247)","v":"3071396 Brazo mecánico + Diferencial + TRUSS 9,60 X 5,60"},3071396,"Brazo mecánico + Diferencial + TRUSS 9,60 X 5,60",4416000]
[{"$f":"CONCATENATE(B37:B248,\" \",C37:C248)","v":"3071397 Brazo mecánico + Diferencial + TRUSS 9,60 X 6,60"},3071397,"Brazo mecánico + Diferencial + TRUSS 9,60 X 6,60",4416000]
[{"$f":"CONCATENATE(B38:B249,\" \",C38:C249)","v":"3071418 Servicio de Internet Cableado \"PARA UN EQUIPO - DURANTE UN DÍA\"  "},3071418,"Servicio de Internet Cableado \"PARA UN EQUIPO - DURANTE UN DÍA\"  ",63000]
[{"$f":"CONCATENATE(B39:B250,\" \",C39:C250)","v":"3071419 Clave de acceso para la red WiFi  \"PARA UN EQUIPO - DURANTE UN DÍA\""},3071419,"Clave de acceso para la red WiFi  \"PARA UN EQUIPO - DURANTE UN DÍA\"",63000]
[{"$f":"CONCATENATE(B40:B251,\" \",C40:C251)","v":"3071417 Servicio de Internet Cableado \"PARA UN EQUIPO - DURANTE TODA LA FERIA\" valor de 3 dias"},3071417,"Servicio de Internet Cableado \"PARA UN EQUIPO - DURANTE TODA LA FERIA\" valor de 3 dias",151600]
[{"$f":"CONCATENATE(B41:B252,\" \",C41:C252)","v":"3071420 Clave de acceso para la Red WiFi \"PARA UN EQUIPO - DURANTE TODA LA FERIA\" valor de 3 dias"},3071420,"Clave de acceso para la Red WiFi \"PARA UN EQUIPO - DURANTE TODA LA FERIA\" valor de 3 dias",151600]
[{"$f":"CONCATENATE(B42:B253,\" \",C42:C253)","v":"3071423 Conexión para Datafono + Clave de acceso WIFI (Para un equipo durante toda la feria) valor de 3 dias "},3071423,"Conexión para Datafono + Clave de acceso WIFI (Para un equipo durante toda la feria) valor de 3 dias ",243500]
[{"$f":"CONCATENATE(B43:B254,\" \",C43:C254)","v":"3071424 Conexión para Datafono + Servicio de Internet Cableado (Para un equipo durante toda la feria) valor de 3 dias "},3071424,"Conexión para Datafono + Servicio de Internet Cableado (Para un equipo durante toda la feria) valor de 3 dias ",243500]
[{"$f":"CONCATENATE(B44:B255,\" \",C44:C255)","v":"3071425 Servicio de Internet Cableado + Clave de acceso WIFI (Para un equipo durante toda la feria) valor de 3 dias "},3071425,"Servicio de Internet Cableado + Clave de acceso WIFI (Para un equipo durante toda la feria) valor de 3 dias ",272900]
[{"$f":"CONCATENATE(B45:B256,\" \",C45:C256)","v":"3071437 Internet Dedicado: Si requiere conexión banda ancha para diferentes servicios o redes locales, contáctese con serviciosplus@corferias.com para brindarle asesoria y cotización."},3071437,"Internet Dedicado: Si requiere conexión banda ancha para diferentes servicios o redes locales, contáctese con serviciosplus@corferias.com para brindarle asesoria y cotización.","Según cotización"]
[{"$f":"CONCATENATE(B46:B257,\" \",C46:C257)","v":"3071406 Instalación Punto de Red:Incluye un cable UTP por punto"},3071406,"Instalación Punto de Red:Incluye un cable UTP por punto",76300]
[{"$f":"CONCATENATE(B47:B258,\" \",C47:C258)","v":"3071407 Switch VALOR POR FERIA "},3071407,"Switch VALOR POR FERIA ",73400]
[{"$f":"CONCATENATE(B48:B259,\" \",C48:C259)","v":"3071402 Servicio de VLAN: Servicio virtual de red.  VALOR POR FERIA"},3071402,"Servicio de VLAN: Servicio virtual de red.  VALOR POR FERIA",294100]
[{"$f":"CONCATENATE(B49:B260,\" \",C49:C260)","v":"3071430 Extension LAN VALOR POR FERIA  (Incluye punto de red y aplica para extender el servicio de internet contratado con terceros)"},3071430,"Extension LAN VALOR POR FERIA  (Incluye punto de red y aplica para extender el servicio de internet contratado con terceros)",1122600]
[{"$f":"CONCATENATE(B50:B261,\" \",C50:C261)","v":"3071442 Soporte técnico permanente (Por espacio de 8 horas) de un técnico. VALOR DÍARIO "},3071442,"Soporte técnico permanente (Por espacio de 8 horas) de un técnico. VALOR DÍARIO ",204600]
[{"$f":"CONCATENATE(B51:B262,\" \",C51:C262)","v":"3070202 Servicio Telefónico Urbano con Aparato (Incluye consumo local ilimitado)"},3070202,"Servicio Telefónico Urbano con Aparato (Incluye consumo local ilimitado)",35700]
[{"$f":"CONCATENATE(B52:B263,\" \",C52:C263)","v":"3070203 Servicio Telefónico Larga Distancia con aparato"},3070203,"Servicio Telefónico Larga Distancia con aparato",35700]
[{"$f":"CONCATENATE(B53:B264,\" \",C53:C264)","v":"3070201 Línea Externa no conmutada (Previa solicitud a Etb, Claro, EPM, Colomsat u otro operador)"},3070201,"Línea Externa no conmutada (Previa solicitud a Etb, Claro, EPM, Colomsat u otro operador)",100900]
[{"$f":"CONCATENATE(B54:B265,\" \",C54:C265)","v":"3070207 Conexión cableada para Datafono:(No incluye Datafono)"},3070207,"Conexión cableada para Datafono:(No incluye Datafono)",106800]
[{"$f":"CONCATENATE(B55:B266,\" \",C55:C266)","v":"3070942 Kit básico Pino 1 (1 mesa pleglable pino, 3 sillas acrilicas k negra) Valor ferias de 1 a 6 dias"},3070942,"Kit básico Pino 1 (1 mesa pleglable pino, 3 sillas acrilicas k negra) Valor ferias de 1 a 6 dias",136900]
[{"$f":"CONCATENATE(B56:B267,\" \",C56:C267)","v":"3071105 KIT básico oficina 2 (2 sillas interlocutoras, 1 silla ejecutiva, 1 mesa oficina) Valor ferias de 1 a 6 dias"},3071105,"KIT básico oficina 2 (2 sillas interlocutoras, 1 silla ejecutiva, 1 mesa oficina) Valor ferias de 1 a 6 dias",167100]
[{"$f":"CONCATENATE(B57:B268,\" \",C57:C268)","v":"3071036 Mesa plegable plastico + 2 sillas interlocutoras Valor ferias de 1 a 6 dias"},3071036,"Mesa plegable plastico + 2 sillas interlocutoras Valor ferias de 1 a 6 dias",115800]
[{"$f":"CONCATENATE(B58:B269,\" \",C58:C269)","v":"3071039 Mesa alta Daysa + 2 sillas neumaticas altas marsella Valor ferias de 1 a 6 dias"},3071039,"Mesa alta Daysa + 2 sillas neumaticas altas marsella Valor ferias de 1 a 6 dias",149600]
[{"$f":"CONCATENATE(B59:B270,\" \",C59:C270)","v":"3071054 Mesa estandar lotus vidrio + 2 sillas tipo huevo Valor ferias de 1 a 6 dias"},3071054,"Mesa estandar lotus vidrio + 2 sillas tipo huevo Valor ferias de 1 a 6 dias",161200]
[{"$f":"CONCATENATE(B60:B271,\" \",C60:C271)","v":"3071002 Silla Acrílica k negra (85cm x 49cm x 47cm) Valor ferias de 1 a 6 dias"},3071002,"Silla Acrílica k negra (85cm x 49cm x 47cm) Valor ferias de 1 a 6 dias",30500]
[{"$f":"CONCATENATE(B61:B272,\" \",C61:C272)","v":"3071078 Silla con Espaldar Arles (75cm x 38cm x39cm) Valor ferias de 1 a 6 dias"},3071078,"Silla con Espaldar Arles (75cm x 38cm x39cm) Valor ferias de 1 a 6 dias",44600]
[{"$f":"CONCATENATE(B62:B273,\" \",C62:C273)","v":"30713198 Silla Gerencial (119cm x 67cm x 78cm) Valor ferias de 1 a 6 dias"},30713198,"Silla Gerencial (119cm x 67cm x 78cm) Valor ferias de 1 a 6 dias",97200]
[{"$f":"CONCATENATE(B63:B274,\" \",C63:C274)","v":"3071081 Silla Ejecutiva (79cm x 53cm x 42cm) Valor ferias de 1 a 6 dias"},3071081,"Silla Ejecutiva (79cm x 53cm x 42cm) Valor ferias de 1 a 6 dias",46900]
[{"$f":"CONCATENATE(B64:B275,\" \",C64:C275)","v":"3071061 Silla estandar Suiza (48cm x 46cm x 45cm) Valor ferias de 1 a 6 dias"},3071061,"Silla estandar Suiza (48cm x 46cm x 45cm) Valor ferias de 1 a 6 dias",37900]
[{"$f":"CONCATENATE(B65:B276,\" \",C65:C276)","v":"3071008 Silla estandar Tipo Huevo (48cm x 46cm x 45cm) Valor ferias de 1 a 6 dias"},3071008,"Silla estandar Tipo Huevo (48cm x 46cm x 45cm) Valor ferias de 1 a 6 dias",37900]
[{"$f":"CONCATENATE(B66:B277,\" \",C66:C277)","v":"3071006 Silla Interlocutora Negra (79cm x 53cm x 42cm) Valor ferias de 1 a 6 dias"},3071006,"Silla Interlocutora Negra (79cm x 53cm x 42cm) Valor ferias de 1 a 6 dias",31800]
[{"$f":"CONCATENATE(B67:B278,\" \",C67:C278)","v":"3071022 Silla Neumatica alta Versalles (80cm x 40 cm x 40cm) Valor ferias de 1 a 6 dias"},3071022,"Silla Neumatica alta Versalles (80cm x 40 cm x 40cm) Valor ferias de 1 a 6 dias",55900]
[{"$f":"CONCATENATE(B68:B279,\" \",C68:C279)","v":"3071077 Silla Neumática alta Marsella (80cm x 40cm x 40cm) Valor ferias de 1 a 6 dias"},3071077,"Silla Neumática alta Marsella (80cm x 40cm x 40cm) Valor ferias de 1 a 6 dias",45800]
[{"$f":"CONCATENATE(B69:B280,\" \",C69:C280)","v":"3071092 Silla Neumatica alta POP (Blanca o negra) (80cm x 43cm x 40cm) Valor ferias de 1 a 6 dias"},3071092,"Silla Neumatica alta POP (Blanca o negra) (80cm x 43cm x 40cm) Valor ferias de 1 a 6 dias",45300]
[{"$f":"CONCATENATE(B70:B281,\" \",C70:C281)","v":"3070503 Estantería Polo (Melaminico)   (100cm x 93cm x 35cm) Valor ferias de 1 a 6 dias"},3070503,"Estantería Polo (Melaminico)   (100cm x 93cm x 35cm) Valor ferias de 1 a 6 dias",124400]
[{"$f":"CONCATENATE(B71:B282,\" \",C71:C282)","v":"3070503 Estantería Polo (Miel)  (100cm x 93cm x 35cm) Valor ferias de 1 a 6 dias"},3070503,"Estantería Polo (Miel)  (100cm x 93cm x 35cm) Valor ferias de 1 a 6 dias",124400]
[{"$f":"CONCATENATE(B72:B283,\" \",C72:C283)","v":"3070503 Estantería Polo (Rovere)  (100cm x 93cm x 35cm) Valor ferias de 1 a 6 dias"},3070503,"Estantería Polo (Rovere)  (100cm x 93cm x 35cm) Valor ferias de 1 a 6 dias",124400]
[{"$f":"CONCATENATE(B73:B284,\" \",C73:C284)","v":"3070503 Estantería Polo (Roble Gris)  (100cm x 93cm x 35cm) Valor ferias de 1 a 6 dias"},3070503,"Estantería Polo (Roble Gris)  (100cm x 93cm x 35cm) Valor ferias de 1 a 6 dias",124400]
[{"$f":"CONCATENATE(B74:B285,\" \",C74:C285)","v":"3071108 Estantería Shelf 4E (190cm x 125cm x 41cm) Valor ferias de 1 a 6 dias"},3071108,"Estantería Shelf 4E (190cm x 125cm x 41cm) Valor ferias de 1 a 6 dias",98200]
[{"$f":"CONCATENATE(B75:B286,\" \",C75:C286)","v":"3071107 Archivador Regina (70cm x 37cm x50cm) Valor ferias de 1 a 6 dias"},3071107,"Archivador Regina (70cm x 37cm x50cm) Valor ferias de 1 a 6 dias",92400]
[{"$f":"CONCATENATE(B76:B287,\" \",C76:C287)","v":"3070954 Counter Mónaco (Melaminico) (100cm x 100cm x 40cm) Valor ferias de 1 a 6 dias"},3070954,"Counter Mónaco (Melaminico) (100cm x 100cm x 40cm) Valor ferias de 1 a 6 dias",101600]
[{"$f":"CONCATENATE(B77:B288,\" \",C77:C288)","v":"3070954 Counter Mónaco (Miel) (100cm x 100cm x 40cm) Valor ferias de 1 a 6 dias"},3070954,"Counter Mónaco (Miel) (100cm x 100cm x 40cm) Valor ferias de 1 a 6 dias",101600]
[{"$f":"CONCATENATE(B78:B289,\" \",C78:C289)","v":"3070954 Counter Mónaco (Rovere) (100cm x 100cm x 40cm) Valor ferias de 1 a 6 dias"},3070954,"Counter Mónaco (Rovere) (100cm x 100cm x 40cm) Valor ferias de 1 a 6 dias",101600]
[{"$f":"CONCATENATE(B79:B290,\" \",C79:C290)","v":"3070954 Counter Mónaco (Roble Gris) (100cm x 100cm x 40cm) Valor ferias de 1 a 6 dias"},3070954,"Counter Mónaco (Roble Gris) (100cm x 100cm x 40cm) Valor ferias de 1 a 6 dias",101600]
[{"$f":"CONCATENATE(B80:B291,\" \",C80:C291)","v":"3070535 Vitrina Isla 2E (200cm x 50cm x 50cm) Valor ferias de 1 a 6 dias"},3070535,"Vitrina Isla 2E (200cm x 50cm x 50cm) Valor ferias de 1 a 6 dias",171700]
[{"$f":"CONCATENATE(B81:B292,\" \",C81:C292)","v":"3070517 Vitrina Mostrador 1E (100cm x 100cm x 40cm) Valor ferias de 1 a 6 dias"},3070517,"Vitrina Mostrador 1E (100cm x 100cm x 40cm) Valor ferias de 1 a 6 dias",152400]
[{"$f":"CONCATENATE(B82:B293,\" \",C82:C293)","v":"3070518 Vitrina Mostrador Tipo 2 1E (100cm x 50 cm x 40cm) Valor ferias de 1 a 6 dias"},3070518,"Vitrina Mostrador Tipo 2 1E (100cm x 50 cm x 40cm) Valor ferias de 1 a 6 dias",152400]
[{"$f":"CONCATENATE(B83:B294,\" \",C83:C294)","v":"3071111 Vitrina Rectangular 2E (200cm x 100cm x 40cm) Valor ferias de 1 a 6 dias"},3071111,"Vitrina Rectangular 2E (200cm x 100cm x 40cm) Valor ferias de 1 a 6 dias",194400]
[{"$f":"CONCATENATE(B84:B295,\" \",C84:C295)","v":"30713199 Vitrina Rectangular 3E (180cm x 100cm x 40cm) Valor ferias de 1 a 6 dias"},30713199,"Vitrina Rectangular 3E (180cm x 100cm x 40cm) Valor ferias de 1 a 6 dias",194400]
[{"$f":"CONCATENATE(B85:B296,\" \",C85:C296)","v":"3071115 Mesa alta Daysa (Melaminico) (100cm x 60cm) Valor ferias de 1 a 6 dias"},3071115,"Mesa alta Daysa (Melaminico) (100cm x 60cm) Valor ferias de 1 a 6 dias",66000]
[{"$f":"CONCATENATE(B86:B297,\" \",C86:C297)","v":"3071115 Mesa alta Daysa (Miel) (100cm x 60cm) Valor ferias de 1 a 6 dias"},3071115,"Mesa alta Daysa (Miel) (100cm x 60cm) Valor ferias de 1 a 6 dias",66000]
[{"$f":"CONCATENATE(B87:B298,\" \",C87:C298)","v":"3071115 Mesa alta Daysa (Rovere) (100cm x 60cm) Valor ferias de 1 a 6 dias"},3071115,"Mesa alta Daysa (Rovere) (100cm x 60cm) Valor ferias de 1 a 6 dias",66000]
[{"$f":"CONCATENATE(B88:B299,\" \",C88:C299)","v":"3071115 Mesa alta Daysa (Roble Gris) (100cm x 60cm) Valor ferias de 1 a 6 dias"},3071115,"Mesa alta Daysa (Roble Gris) (100cm x 60cm) Valor ferias de 1 a 6 dias",66000]
[{"$f":"CONCATENATE(B89:B300,\" \",C89:C300)","v":"3071093 Mesa alta Daysa vidrio (100cm x 60cm) Valor ferias de 1 a 6 dias"},3071093,"Mesa alta Daysa vidrio (100cm x 60cm) Valor ferias de 1 a 6 dias",82200]
[{"$f":"CONCATENATE(B90:B301,\" \",C90:C301)","v":"3071104 Mesa Centro 2 Niveles (melaminico) (50cm x 60cm x 60) Valor ferias de 1 a 6 dias"},3071104,"Mesa Centro 2 Niveles (melaminico) (50cm x 60cm x 60) Valor ferias de 1 a 6 dias",59600]
[{"$f":"CONCATENATE(B91:B302,\" \",C91:C302)","v":"3071100 Mesa Centro Circular doble nivel (melaminico) (50cm x 110cm x 60cm) Valor ferias de 1 a 6 dias"},3071100,"Mesa Centro Circular doble nivel (melaminico) (50cm x 110cm x 60cm) Valor ferias de 1 a 6 dias",80500]
[{"$f":"CONCATENATE(B92:B303,\" \",C92:C303)","v":"3071068 Mesa Centro Rectangular doble nivel (melaminico) (50cm x 75cm x 50cm) Valor ferias de 1 a 6 dias"},3071068,"Mesa Centro Rectangular doble nivel (melaminico) (50cm x 75cm x 50cm) Valor ferias de 1 a 6 dias",59600]
[{"$f":"CONCATENATE(B93:B304,\" \",C93:C304)","v":"3071097 Mesa estandar Daysa (76cm x 60cm) Valor ferias de 1 a 6 dias"},3071097,"Mesa estandar Daysa (76cm x 60cm) Valor ferias de 1 a 6 dias",58700]
[{"$f":"CONCATENATE(B94:B305,\" \",C94:C305)","v":"3071116 Mesa estandar Lotus (70cm x 64cm x 81cm) Valor ferias de 1 a 6 dias"},3071116,"Mesa estandar Lotus (70cm x 64cm x 81cm) Valor ferias de 1 a 6 dias",93900]
[{"$f":"CONCATENATE(B95:B306,\" \",C95:C306)","v":"3071098 Mesa estandar Shia (76cm x 60cm x 60cm) Valor ferias de 1 a 6 dias"},3071098,"Mesa estandar Shia (76cm x 60cm x 60cm) Valor ferias de 1 a 6 dias",58700]
[{"$f":"CONCATENATE(B96:B307,\" \",C96:C307)","v":"30713200 Mesa Oficina (78cm x 120cm x 50cm) Valor ferias de 1 a 6 dias"},30713200,"Mesa Oficina (78cm x 120cm x 50cm) Valor ferias de 1 a 6 dias",74000]
[{"$f":"CONCATENATE(B97:B308,\" \",C97:C308)","v":"3070936 Mesón plegable plástico (Gris o blanco) (73cm x 182cm x 76cm) Valor ferias de 1 a 6 dias"},3070936,"Mesón plegable plástico (Gris o blanco) (73cm x 182cm x 76cm) Valor ferias de 1 a 6 dias",58400]
[{"$f":"CONCATENATE(B98:B309,\" \",C98:C309)","v":"3070904 Mesón plegable pino (75cm x 120cm x 60cm) Valor ferias de 1 a 6 dias"},3070904,"Mesón plegable pino (75cm x 120cm x 60cm) Valor ferias de 1 a 6 dias",58400]
[{"$f":"CONCATENATE(B99:B310,\" \",C99:C310)","v":"3071113 Sala Osaka (1 sofá Toronto, 2 puffs Donna, 1 mesa centro 2 niveles) Valor ferias de 1 a 6 dias"},3071113,"Sala Osaka (1 sofá Toronto, 2 puffs Donna, 1 mesa centro 2 niveles) Valor ferias de 1 a 6 dias",314200]
[{"$f":"CONCATENATE(B100:B311,\" \",C100:C311)","v":"3071095 Sala VIP (1 sofá Victoria derecho, 1 sofá Victoria izquierdo, 2 poltronas, 1 mesa centro 2 niveles) Valor ferias de 1 a 6 dias"},3071095,"Sala VIP (1 sofá Victoria derecho, 1 sofá Victoria izquierdo, 2 poltronas, 1 mesa centro 2 niveles) Valor ferias de 1 a 6 dias",518400]
[{"$f":"CONCATENATE(B101:B312,\" \",C101:C312)","v":"3071090 Puff estandar cuadrado (43cm x 43cm x 43cm) Valor ferias de 1 a 6 dias"},3071090,"Puff estandar cuadrado (43cm x 43cm x 43cm) Valor ferias de 1 a 6 dias",32000]
[{"$f":"CONCATENATE(B102:B313,\" \",C102:C313)","v":"3071091 Puff Trunk 2 cuerpos (48cm x 81cm x 40cm) Valor ferias de 1 a 6 dias"},3071091,"Puff Trunk 2 cuerpos (48cm x 81cm x 40cm) Valor ferias de 1 a 6 dias",72900]
[{"$f":"CONCATENATE(B103:B314,\" \",C103:C314)","v":"3071114 Puff Trunk 3 cuerpos (48cm x 120cm x 54cm) Valor ferias de 1 a 6 dias"},3071114,"Puff Trunk 3 cuerpos (48cm x 120cm x 54cm) Valor ferias de 1 a 6 dias",70400]
[{"$f":"CONCATENATE(B104:B315,\" \",C104:C315)","v":"3071085 Sofa Otawa 2 cuerpos (85cm x 120cm x 76cm) Valor ferias de 1 a 6 dias"},3071085,"Sofa Otawa 2 cuerpos (85cm x 120cm x 76cm) Valor ferias de 1 a 6 dias",142100]
[{"$f":"CONCATENATE(B105:B316,\" \",C105:C316)","v":"3071083 Sofa Toronto 3 cuerpos (88cm x 173cm x 80cm) Valor ferias de 1 a 6 dias"},3071083,"Sofa Toronto 3 cuerpos (88cm x 173cm x 80cm) Valor ferias de 1 a 6 dias",153700]
[{"$f":"CONCATENATE(B106:B317,\" \",C106:C317)","v":"3071031 Sofa Terranova 2 cuerpos (88cm x 173cm x 80cm) Valor ferias de 1 a 6 dias"},3071031,"Sofa Terranova 2 cuerpos (88cm x 173cm x 80cm) Valor ferias de 1 a 6 dias",153700]
[{"$f":"CONCATENATE(B107:B318,\" \",C107:C318)","v":"3071013 Sofa Victoria derecho (70cm x 100cm x 75cm) Valor ferias de 1 a 6 dias"},3071013,"Sofa Victoria derecho (70cm x 100cm x 75cm) Valor ferias de 1 a 6 dias",125300]
[{"$f":"CONCATENATE(B108:B319,\" \",C108:C319)","v":"3071023 Sofa Victoria izquierdo (70cm x 100cm x 75cm) Valor ferias de 1 a 6 dias"},3071023,"Sofa Victoria izquierdo (70cm x 100cm x 75cm) Valor ferias de 1 a 6 dias",125300]
[{"$f":"CONCATENATE(B109:B320,\" \",C109:C320)","v":"30713201 Poltrona Buggy (72cm x 64cm) Valor ferias de 1 a 6 dias"},30713201,"Poltrona Buggy (72cm x 64cm) Valor ferias de 1 a 6 dias",141500]
[{"$f":"CONCATENATE(B110:B321,\" \",C110:C321)","v":"3071059 Poltrona Levis (73cm x 86cm x 78cm) Valor ferias de 1 a 6 dias"},3071059,"Poltrona Levis (73cm x 86cm x 78cm) Valor ferias de 1 a 6 dias",136100]
[{"$f":"CONCATENATE(B111:B322,\" \",C111:C322)","v":"3071302 Papelera metálica Valor ferias de 1 a 6 dias"},3071302,"Papelera metálica Valor ferias de 1 a 6 dias",17100]
[{"$f":"CONCATENATE(B112:B323,\" \",C112:C323)","v":"3071325 Poste separador 120cm de alto Valor ferias de 1 a 6 dias"},3071325,"Poste separador 120cm de alto Valor ferias de 1 a 6 dias",33900]
[{"$f":"CONCATENATE(B113:B324,\" \",C113:C324)","v":"3070521 Perchero básico 1 pedestal (120cm Ancho - Altura) graduable + 5 ganchos"},3070521,"Perchero básico 1 pedestal (120cm Ancho - Altura) graduable + 5 ganchos",56100]
[{"$f":"CONCATENATE(B114:B325,\" \",C114:C325)","v":"3070521 Perchero doble 2 pedestal (120cm Ancho-Altura) graduable + 5 ganchos"},3070521,"Perchero doble 2 pedestal (120cm Ancho-Altura) graduable + 5 ganchos",64700]
[{"$f":"CONCATENATE(B115:B326,\" \",C115:C326)","v":"3070512 Locker Torre 1 puesto con 2 + 1/2  entrepaños "},3070512,"Locker Torre 1 puesto con 2 + 1/2  entrepaños ",57500]
[{"$f":"CONCATENATE(B116:B326,\" \",C116:C326)","v":"3070714 Cubo de exhibición (40cm x 40cm x 25cm) Valor ferias de 1 a 6 dias"},3070714,"Cubo de exhibición (40cm x 40cm x 25cm) Valor ferias de 1 a 6 dias",24700]
[{"$f":"CONCATENATE(B117:B327,\" \",C117:C327)","v":"3070957 Pedestal cuadrado (30cm x 30cm x 30cm) Valor ferias de 1 a 6 dias"},3070957,"Pedestal cuadrado (30cm x 30cm x 30cm) Valor ferias de 1 a 6 dias",21300]
[{"$f":"CONCATENATE(B118:B328,\" \",C118:C328)","v":"3070956 Pedestal rectangular 60cm (30cm x 60cm x 30cm) Valor ferias de 1 a 6 dias"},3070956,"Pedestal rectangular 60cm (30cm x 60cm x 30cm) Valor ferias de 1 a 6 dias",25900]
[{"$f":"CONCATENATE(B119:B329,\" \",C119:C329)","v":"3070955 Pedestal rectangular 90cm (30cm x 90cm x 30cm) Valor ferias de 1 a 6 dias"},3070955,"Pedestal rectangular 90cm (30cm x 90cm x 30cm) Valor ferias de 1 a 6 dias",28300]
[{"$f":"CONCATENATE(B120:B330,\" \",C120:C330)","v":"3071370 Revistero plegable (140cm x 25cm x 29cm) Valor ferias de 1 a 6 dias"},3071370,"Revistero plegable (140cm x 25cm x 29cm) Valor ferias de 1 a 6 dias",44600]
[{"$f":"CONCATENATE(B121:B331,\" \",C121:C331)","v":"3071103 Nevera Minibar 121 LT (48.5cm X 85.1cm X 60cm)"},3071103,"Nevera Minibar 121 LT (48.5cm X 85.1cm X 60cm)",125200]
[{"$f":"CONCATENATE(B122:B332,\" \",C122:C332)","v":"3071103 Nevera Estandar 230LT ( 55.6cm X 157.6cm X 67cm)"},3071103,"Nevera Estandar 230LT ( 55.6cm X 157.6cm X 67cm)",184900]
[{"$f":"CONCATENATE(B123:B333,\" \",C123:C333)","v":"3070505 Tarima 120x120x60, (Previa verificación con área de montaje) Valor ferias de 1 a 6 dias"},3070505,"Tarima 120x120x60, (Previa verificación con área de montaje) Valor ferias de 1 a 6 dias",32200]
[{"$f":"CONCATENATE(B124:B334,\" \",C124:C334)","v":"3071388 Módulo de carga 20 puntos 110V Valor ferias de 1 a 6 dias"},3071388,"Módulo de carga 20 puntos 110V Valor ferias de 1 a 6 dias",174200]
[{"$f":"CONCATENATE(B125:B333,\" \",C125:C333)","v":"3071375 Planta + matera plástica (Pequeña)"},3071375,"Planta + matera plástica (Pequeña)",20600]
[{"$f":"CONCATENATE(B126:B334,\" \",C126:C334)","v":"3071376 Planta + matera plástica (Mediana)"},3071376,"Planta + matera plástica (Mediana)",46400]
[{"$f":"CONCATENATE(B127:B335,\" \",C127:C335)","v":"3071377 Planta + matera plástica (Grande)"},3071377,"Planta + matera plástica (Grande)",59200]
[{"$f":"CONCATENATE(B128:B336,\" \",C128:C336)","v":"3071378 Jardinera en madera + 3 Plantas grandes"},3071378,"Jardinera en madera + 3 Plantas grandes",100300]
[{"$f":"CONCATENATE(B129:B337,\" \",C129:C337)","v":"3071379 Jardinera en madera + 3 Plantas medianas"},3071379,"Jardinera en madera + 3 Plantas medianas",81100]
[{"$f":"CONCATENATE(B130:B338,\" \",C130:C338)","v":"3071380 Jardinera en madera + 7 Plantas pequeñas"},3071380,"Jardinera en madera + 7 Plantas pequeñas",83500]
[{"$f":"CONCATENATE(B131:B339,\" \",C131:C339)","v":"3071381 Cajoneras con flores"},3071381,"Cajoneras con flores",155800]
[{"$f":"CONCATENATE(B132:B340,\" \",C132:C340)","v":"3071314 Grandes (61cm x 120cm)"},3071314,"Grandes (61cm x 120cm)",31700]
[{"$f":"CONCATENATE(B133:B341,\" \",C133:C341)","v":"3071301 Medianas (31cm x 120cm)"},3071301,"Medianas (31cm x 120cm)",25000]
[{"$f":"CONCATENATE(B134:B342,\" \",C134:C342)","v":"3071317 Pequeñas (10cm x 30cm)"},3071317,"Pequeñas (10cm x 30cm)",11100]
[{"$f":"CONCATENATE(B135:B343,\" \",C135:C343)","v":"3071382 Suculentas (10cm x 15cm)"},3071382,"Suculentas (10cm x 15cm)",11100]
[{"$f":"CONCATENATE(B136:B344,\" \",C136:C344)","v":"3071383 Chamizos"},3071383,"Chamizos",11100]
[{"$f":"CONCATENATE(B137:B345,\" \",C137:C345)","v":"3071355 De barro grande"},3071355,"De barro grande",30700]
[{"$f":"CONCATENATE(B138:B346,\" \",C138:C346)","v":"3071356 De barro mediana"},3071356,"De barro mediana",23900]
[{"$f":"CONCATENATE(B139:B347,\" \",C139:C347)","v":"3071384 De barro pequeña"},3071384,"De barro pequeña",10600]
[{"$f":"CONCATENATE(B140:B348,\" \",C140:C348)","v":"3071357 Plástica grande"},3071357,"Plástica grande",30700]
[{"$f":"CONCATENATE(B141:B349,\" \",C141:C349)","v":"3071358 Plástica mediana"},3071358,"Plástica mediana",23900]
[{"$f":"CONCATENATE(B142:B350,\" \",C142:C350)","v":"3071359 Plástica pequeña"},3071359,"Plástica pequeña",10600]
[{"$f":"CONCATENATE(B143:B351,\" \",C143:C351)","v":"3071360 Jardinera en madera (35cm x 100cm x 35cm)"},3071360,"Jardinera en madera (35cm x 100cm x 35cm)",10600]
[{"$f":"CONCATENATE(B144:B352,\" \",C144:C352)","v":"3071352 Grandes"},3071352,"Grandes",93800]
[{"$f":"CONCATENATE(B145:B353,\" \",C145:C353)","v":"3071353 Medianos"},3071353,"Medianos",54600]
[{"$f":"CONCATENATE(B146:B354,\" \",C146:C354)","v":"3071354 Pequeños"},3071354,"Pequeños",24000]
[{"$f":"CONCATENATE(B147:B355,\" \",C147:C355)","v":"3071364 Topiario en forma de animales o frutas "},3071364,"Topiario en forma de animales o frutas ",228500]
[{"$f":"CONCATENATE(B148:B356,\" \",C148:C356)","v":"3071365 Topiario en bolas grandes"},3071365,"Topiario en bolas grandes",228500]
[{"$f":"CONCATENATE(B149:B357,\" \",C149:C357)","v":"3071385 Topiario en bolas pequeñas"},3071385,"Topiario en bolas pequeñas",207700]
[{"$f":"CONCATENATE(B150:B358,\" \",C150:C358)","v":"3071363 Piedras (Por m2)"},3071363,"Piedras (Por m2)",23900]
[{"$f":"CONCATENATE(B151:B359,\" \",C151:C359)","v":"3071367 Pino patula (Por bulto)"},3071367,"Pino patula (Por bulto)",10600]
[{"$f":"CONCATENATE(B152:B360,\" \",C152:C360)","v":"3071361 Gravilla (Por m2)"},3071361,"Gravilla (Por m2)",10600]
[{"$f":"CONCATENATE(B153:B361,\" \",C153:C361)","v":"3071386 Muros verticales (Por m2)"},3071386,"Muros verticales (Por m2)",328500]
[{"$f":"CONCATENATE(B154:B362,\" \",C154:C362)","v":"3071366 Cascarilla (Por bulto)"},3071366,"Cascarilla (Por bulto)",10600]
[{"$f":"CONCATENATE(B155:B363,\" \",C155:C363)","v":"3071362 Rocas (Por unidad)"},3071362,"Rocas (Por unidad)",63300]
[{"$f":"CONCATENATE(B156:B366,\" \",C156:C366)","v":"3071312 Stands entre 9 mts² y 18 mts² (valor por dia) Dia ordinario"},3071312,"Stands entre 9 mts² y 18 mts² (valor por dia) Dia ordinario",34900]
[{"$f":"CONCATENATE(B157:B367,\" \",C157:C367)","v":"3071312 Stands entre 9 mts² y 18 mts² (valor por dia) Dia dominical o festivo"},3071312,"Stands entre 9 mts² y 18 mts² (valor por dia) Dia dominical o festivo",59900]
[{"$f":"CONCATENATE(B158:B368,\" \",C158:C368)","v":"3071312 Stands entre 19 mts² y 32mts² (valor por dia) Dia ordinario"},3071312,"Stands entre 19 mts² y 32mts² (valor por dia) Dia ordinario",46900]
[{"$f":"CONCATENATE(B159:B369,\" \",C159:C369)","v":"3071312 Stands entre 19 mts² y 32mts² (valor por dia) Dia dominical o festivo"},3071312,"Stands entre 19 mts² y 32mts² (valor por dia) Dia dominical o festivo",83900]
[{"$f":"CONCATENATE(B160:B370,\" \",C160:C370)","v":"3071312 Stands entre 33 mts² y 64 mts² (valor por dia) Dia ordinario "},3071312,"Stands entre 33 mts² y 64 mts² (valor por dia) Dia ordinario ",87900]
[{"$f":"CONCATENATE(B161:B371,\" \",C161:C371)","v":"3071312 Stands entre 33 mts² y 64 mts² (valor por dia) Dia dominical o festivo"},3071312,"Stands entre 33 mts² y 64 mts² (valor por dia) Dia dominical o festivo",189900]
[{"$f":"CONCATENATE(B162:B372,\" \",C162:C372)","v":"3071312 Stands de 65mts²  en adelante se requiere de cotización previa,contactese con el área del plus de Corferias para brindarle asesoria y cotización."},3071312,"Stands de 65mts²  en adelante se requiere de cotización previa,contactese con el área del plus de Corferias para brindarle asesoria y cotización.","Según cotización"]
[{"$f":"CONCATENATE(B163:B373,\" \",C163:C373)","v":"3071312 Aseo permanente 8 horas 1 Operario (valor por dia) Día ordinario"},3071312,"Aseo permanente 8 horas 1 Operario (valor por dia) Día ordinario","Según cotización"]
[{"$f":"CONCATENATE(B164:B374,\" \",C164:C374)","v":"3071312 Aseo permanente 8 horas 1 Operario (valor por dia) Día dominical o festivo"},3071312,"Aseo permanente 8 horas 1 Operario (valor por dia) Día dominical o festivo","Según cotización"]
[{"$f":"CONCATENATE(B165:B375,\" \",C165:C375)","v":"3071433 Corferias Conecta  APP (incluye el internet para un equipo)"},3071433,"Corferias Conecta  APP (incluye el internet para un equipo)",283100]
[{"$f":"CONCATENATE(B166:B374,\" \",C166:C374)","v":"3071432 Corferias Conecta  APP + Tablet con internet"},3071432,"Corferias Conecta  APP + Tablet con internet",373800]
[{"$f":"CONCATENATE(B167:B375,\" \",C167:C375)","v":"3071431 Tablet adicional con internet"},3071431,"Tablet adicional con internet",249200]
[{"$f":"CONCATENATE(B168:B376,\" \",C168:C376)","v":"3071326 Internet adicional para la app por equipo"},3071326,"Internet adicional para la app por equipo",89100]

{"sheet":"FERIAS DE 4 A 6 DIAS","index":1,"n_rows":168,"n_cols":4,"rows_kept":168,"cut":false,"hidden":true,"merged":[]}
["CLAVE","CODIGO","DESCRIPCIÓN","VALOR"]
[{"$f":"CONCATENATE(B2:B214,\" \",C2:C214)","v":"3070101 Instalación Monofásica (Toma corriente doble, consumo hasta 2KW/110V) valor de 1 a 6 dias"},3070101,"Instalación Monofásica (Toma corriente doble, consumo hasta 2KW/110V) valor de 1 a 6 dias",306000]
[{"$f":"CONCATENATE(B3:B215,\" \",C3:C215)","v":"3070103 Instalación kilovatio adicional monofásico (Debe contar con punto principal, MAX 2KW por punto)"},3070103,"Instalación kilovatio adicional monofásico (Debe contar con punto principal, MAX 2KW por punto)",106800]
[{"$f":"CONCATENATE(B4:B216,\" \",C4:C216)","v":"3070102 Instalación trifásica (Regleta plastica, consumo hasta 4KW/208V)"},3070102,"Instalación trifásica (Regleta plastica, consumo hasta 4KW/208V)",569800]
[{"$f":"CONCATENATE(B5:B217,\" \",C5:C217)","v":"3070104 Instalación kilovatio adicional trifásico (Debe contar con punto principal)"},3070104,"Instalación kilovatio adicional trifásico (Debe contar con punto principal)",139400]
[{"$f":"CONCATENATE(B6:B218,\" \",C6:C218)","v":"3071372 De 21 a 50 kilovatios adicionales trifásicos (Valor por KW) (Debe contar con punto principal)"},3071372,"De 21 a 50 kilovatios adicionales trifásicos (Valor por KW) (Debe contar con punto principal)",126800]
[{"$f":"CONCATENATE(B7:B219,\" \",C7:C219)","v":"3071373 De 51 a 100 kilovatios adicionales trifásicos (Valor por KW) (Debe contar con punto principal)"},3071373,"De 51 a 100 kilovatios adicionales trifásicos (Valor por KW) (Debe contar con punto principal)",121200]
[{"$f":"CONCATENATE(B8:B220,\" \",C8:C220)","v":"3071374 Mas de100 kilovatios adicionales trifásicos (Valor por KW) (Debe contar con punto principal)"},3071374,"Mas de100 kilovatios adicionales trifásicos (Valor por KW) (Debe contar con punto principal)",116200]
[{"$f":"CONCATENATE(B9:B221,\" \",C9:C221)","v":"3070402 Lampara de pared ajustable (150W/110V)"},3070402,"Lampara de pared ajustable (150W/110V)",58900]
[{"$f":"CONCATENATE(B10:B222,\" \",C10:C222)","v":"3070405 Reflector Led (50W- mltV)"},3070405,"Reflector Led (50W- mltV)",62000]
[{"$f":"CONCATENATE(B11:B223,\" \",C11:C223)","v":"3070403 Extensión – tomacorriente doble con polo a tierra (1500W/110V) MAX 6mts "},3070403,"Extensión – tomacorriente doble con polo a tierra (1500W/110V) MAX 6mts ",30500]
[{"$f":"CONCATENATE(B12:B224,\" \",C12:C224)","v":"3071345 Lavaplatos 90XL* 60XH* 90 (No incluye agua y desague) valor de 1 a 6 dias"},3071345,"Lavaplatos 90XL* 60XH* 90 (No incluye agua y desague) valor de 1 a 6 dias",141200]
[{"$f":"CONCATENATE(B13:B225,\" \",C13:C225)","v":"3070301 Punto de Agua en 1/2\" (incluye consumo) valor de 1 a 6 dias"},3070301,"Punto de Agua en 1/2\" (incluye consumo) valor de 1 a 6 dias",298400]
[{"$f":"CONCATENATE(B14:B226,\" \",C14:C226)","v":"3070302 Desagüe en 1 1/2\" Por toda la feria (Ubicación asignada por Corferias en su stand) valor de 1 a 6 dias"},3070302,"Desagüe en 1 1/2\" Por toda la feria (Ubicación asignada por Corferias en su stand) valor de 1 a 6 dias",276200]
[{"$f":"CONCATENATE(B15:B227,\" \",C15:C227)","v":"3071341 Aire comprimido para punto con presión máx. de 100 PSI, y caudal máx. 35CFM. valor de 1 a 6 dias"},3071341,"Aire comprimido para punto con presión máx. de 100 PSI, y caudal máx. 35CFM. valor de 1 a 6 dias",380700]
[{"$f":"CONCATENATE(B16:B228,\" \",C16:C228)","v":"3070307 Punto de Agua en 1/2\" (Incluye consumo)  + Desagüe en 1 1/2\" + Lavaplatos valor de 1 a 6 dias"},3070307,"Punto de Agua en 1/2\" (Incluye consumo)  + Desagüe en 1 1/2\" + Lavaplatos valor de 1 a 6 dias",644200]
[{"$f":"CONCATENATE(B17:B229,\" \",C17:C229)","v":"3071321 Instalación de UN (1) punto de gas propano por UN (1) Equipo (Incluye materiales y mano de obra) (No incluye consumo de gas, este será liquidado a través de un medidor una vez finalice la feria y/o evento)"},3071321,"Instalación de UN (1) punto de gas propano por UN (1) Equipo (Incluye materiales y mano de obra) (No incluye consumo de gas, este será liquidado a través de un medidor una vez finalice la feria y/o evento)",257200]
[{"$f":"CONCATENATE(B18:B230,\" \",C18:C230)","v":"3070601 Panel adicional sistema cfe 100cm x 240cm"},3070601,"Panel adicional sistema cfe 100cm x 240cm",31400]
[{"$f":"CONCATENATE(B19:B231,\" \",C19:C231)","v":"3070801 Puerta sistema cfe 90cm x 240cm"},3070801,"Puerta sistema cfe 90cm x 240cm",77800]
[{"$f":"CONCATENATE(B20:B232,\" \",C20:C232)","v":"3070803 Bodega estándar con puerta 150cm x 150cm (Sistema Corferias)"},3070803,"Bodega estándar con puerta 150cm x 150cm (Sistema Corferias)",124100]
[{"$f":"CONCATENATE(B21:B233,\" \",C21:C233)","v":"3071319 Brazo Mecánico por Fracciòn de 15 min (Solo para primer nivel)"},3071319,"Brazo Mecánico por Fracciòn de 15 min (Solo para primer nivel)",61100]
[{"$f":"CONCATENATE(B22:B234,\" \",C22:C234)","v":"3071319 Brazo Mecánico por Fracciòn de 30 min (Solo para primer nivel)"},3071319,"Brazo Mecánico por Fracciòn de 30 min (Solo para primer nivel)",113400]
[{"$f":"CONCATENATE(B23:B235,\" \",C23:C235)","v":"3071319 Brazo Mecánico por Fracciòn de 45 min (Solo para primer nivel)"},3071319,"Brazo Mecánico por Fracciòn de 45 min (Solo para primer nivel)",174500]
[{"$f":"CONCATENATE(B24:B236,\" \",C24:C236)","v":"3071319 Brazo Mecánico por Fracciòn de 60 min (Solo para primer nivel)"},3071319,"Brazo Mecánico por Fracciòn de 60 min (Solo para primer nivel)",167500]
[{"$f":"CONCATENATE(B25:B237,\" \",C25:C237)","v":"3070413 Diferencial (Cap. 1 Ton.) + Brazo mecánico (Montaje y desmontaje) "},3070413,"Diferencial (Cap. 1 Ton.) + Brazo mecánico (Montaje y desmontaje) ",274900]
[{"$f":"CONCATENATE(B26:B238,\" \",C26:C238)","v":"3070414 Plataforma Tijera eléctrica por Fracciòn /30 min (Uso para segundos niveles)"},3070414,"Plataforma Tijera eléctrica por Fracciòn /30 min (Uso para segundos niveles)",68400]
[{"$f":"CONCATENATE(B27:B239,\" \",C27:C239)","v":"3071387 Brazo mecánico + Diferencial + TRUSS 2,60 X 2,60"},3071387,"Brazo mecánico + Diferencial + TRUSS 2,60 X 2,60",2668000]
[{"$f":"CONCATENATE(B28:B240,\" \",C28:C240)","v":"3071351 Brazo mecánico + Diferencial + TRUSS 3,60 X 2,60"},3071351,"Brazo mecánico + Diferencial + TRUSS 3,60 X 2,60",2668000]
[{"$f":"CONCATENATE(B29:B241,\" \",C29:C241)","v":"3071395 Brazo mecánico + Diferencial + TRUSS 3,60 X 3,60"},3071395,"Brazo mecánico + Diferencial + TRUSS 3,60 X 3,60",2668000]
[{"$f":"CONCATENATE(B30:B242,\" \",C30:C242)","v":"3071324 Brazo mecánico + Diferencial + TRUSS 5,90 X 5,90"},3071324,"Brazo mecánico + Diferencial + TRUSS 5,90 X 5,90",3335000]
[{"$f":"CONCATENATE(B31:B243,\" \",C31:C243)","v":"3071436 Brazo mecánico + Diferencial + TRUSS 6,90 X 6,90"},3071436,"Brazo mecánico + Diferencial + TRUSS 6,90 X 6,90",3335000]
[{"$f":"CONCATENATE(B32:B244,\" \",C32:C244)","v":"3071350 Brazo mecánico + Diferencial + TRUSS 5,60 X 5,60"},3071350,"Brazo mecánico + Diferencial + TRUSS 5,60 X 5,60",3335000]
[{"$f":"CONCATENATE(B33:B245,\" \",C33:C245)","v":"3071371 Brazo mecánico + Diferencial + TRUSS 6,60 X 6,60"},3071371,"Brazo mecánico + Diferencial + TRUSS 6,60 X 6,60",3335000]
[{"$f":"CONCATENATE(B34:B246,\" \",C34:C246)","v":"3071393 Brazo mecánico + Diferencial + TRUSS 9,60 X 2,60"},3071393,"Brazo mecánico + Diferencial + TRUSS 9,60 X 2,60",3335000]
[{"$f":"CONCATENATE(B35:B247,\" \",C35:C247)","v":"3071394 Brazo mecánico + Diferencial + TRUSS 9,60 X 3,60"},3071394,"Brazo mecánico + Diferencial + TRUSS 9,60 X 3,60",3335000]
[{"$f":"CONCATENATE(B36:B248,\" \",C36:C248)","v":"3071396 Brazo mecánico + Diferencial + TRUSS 9,60 X 5,60"},3071396,"Brazo mecánico + Diferencial + TRUSS 9,60 X 5,60",4416000]
[{"$f":"CONCATENATE(B37:B249,\" \",C37:C249)","v":"3071397 Brazo mecánico + Diferencial + TRUSS 9,60 X 6,60"},3071397,"Brazo mecánico + Diferencial + TRUSS 9,60 X 6,60",4416000]
[{"$f":"CONCATENATE(B38:B250,\" \",C38:C250)","v":"3071418 Servicio de Internet Cableado \"PARA UN EQUIPO - DURANTE UN DÍA\"  "},3071418,"Servicio de Internet Cableado \"PARA UN EQUIPO - DURANTE UN DÍA\"  ",63000]
[{"$f":"CONCATENATE(B39:B251,\" \",C39:C251)","v":"3071419 Clave de acceso para la red WiFi  \"PARA UN EQUIPO - DURANTE UN DÍA\""},3071419,"Clave de acceso para la red WiFi  \"PARA UN EQUIPO - DURANTE UN DÍA\"",63000]
[{"$f":"CONCATENATE(B40:B252,\" \",C40:C252)","v":"3071417 Servicio de Internet Cableado \"PARA UN EQUIPO - DURANTE TODA LA FERIA\" valor de 4 a 6 dias"},3071417,"Servicio de Internet Cableado \"PARA UN EQUIPO - DURANTE TODA LA FERIA\" valor de 4 a 6 dias",171000]
[{"$f":"CONCATENATE(B41:B253,\" \",C41:C253)","v":"3071420 Clave de acceso para la Red WiFi \"PARA UN EQUIPO - DURANTE TODA LA FERIA\" valor de 4 a 6 dias"},3071420,"Clave de acceso para la Red WiFi \"PARA UN EQUIPO - DURANTE TODA LA FERIA\" valor de 4 a 6 dias",171000]
[{"$f":"CONCATENATE(B42:B254,\" \",C42:C254)","v":"3071423 Conexión para Datafono + Clave de acceso WIFI (Para un equipo durante toda la feria)  valor de 4 a 6 dias"},3071423,"Conexión para Datafono + Clave de acceso WIFI (Para un equipo durante toda la feria)  valor de 4 a 6 dias",264000]
[{"$f":"CONCATENATE(B43:B255,\" \",C43:C255)","v":"3071424 Conexión para Datafono + Servicio de Internet Cableado (Para un equipo durante toda la feria)  valor de 4 a 6 dias"},3071424,"Conexión para Datafono + Servicio de Internet Cableado (Para un equipo durante toda la feria)  valor de 4 a 6 dias",264000]
[{"$f":"CONCATENATE(B44:B256,\" \",C44:C256)","v":"3071425 Servicio de Internet Cableado + Clave de acceso WIFI (Para un equipo durante toda la feria)  valor de 4 a 6 dias"},3071425,"Servicio de Internet Cableado + Clave de acceso WIFI (Para un equipo durante toda la feria)  valor de 4 a 6 dias",307800]
[{"$f":"CONCATENATE(B45:B257,\" \",C45:C257)","v":"3071437 Internet Dedicado: Si requiere conexión banda ancha para diferentes servicios o redes locales, contáctese con serviciosplus@corferias.com para brindarle asesoria y cotización."},3071437,"Internet Dedicado: Si requiere conexión banda ancha para diferentes servicios o redes locales, contáctese con serviciosplus@corferias.com para brindarle asesoria y cotización.","Según cotización"]
[{"$f":"CONCATENATE(B46:B258,\" \",C46:C258)","v":"3071406 Instalación Punto de Red:Incluye un cable UTP por punto"},3071406,"Instalación Punto de Red:Incluye un cable UTP por punto",76300]
[{"$f":"CONCATENATE(B47:B259,\" \",C47:C259)","v":"3071407 Switch VALOR POR FERIA "},3071407,"Switch VALOR POR FERIA ",73400]
[{"$f":"CONCATENATE(B48:B260,\" \",C48:C260)","v":"3071402 Servicio de VLAN: Servicio virtual de red.  VALOR POR FERIA"},3071402,"Servicio de VLAN: Servicio virtual de red.  VALOR POR FERIA",294100]
[{"$f":"CONCATENATE(B49:B261,\" \",C49:C261)","v":"3071430 Extension LAN VALOR POR FERIA  (Incluye punto de red y aplica para extender el servicio de internet contratado con terceros)"},3071430,"Extension LAN VALOR POR FERIA  (Incluye punto de red y aplica para extender el servicio de internet contratado con terceros)",1122600]
[{"$f":"CONCATENATE(B50:B262,\" \",C50:C262)","v":"3071442 Soporte técnico permanente (Por espacio de 8 horas) de un técnico. VALOR DÍARIO "},3071442,"Soporte técnico permanente (Por espacio de 8 horas) de un técnico. VALOR DÍARIO ",204600]
[{"$f":"CONCATENATE(B51:B263,\" \",C51:C263)","v":"3070202 Servicio Telefónico Urbano con Aparato (Incluye consumo local ilimitado)"},3070202,"Servicio Telefónico Urbano con Aparato (Incluye consumo local ilimitado)",35700]
[{"$f":"CONCATENATE(B52:B264,\" \",C52:C264)","v":"3070203 Servicio Telefónico Larga Distancia con aparato"},3070203,"Servicio Telefónico Larga Distancia con aparato",35700]
[{"$f":"CONCATENATE(B53:B265,\" \",C53:C265)","v":"3070201 Línea Externa no conmutada (Previa solicitud a Etb, Claro, EPM, Colomsat u otro operador)"},3070201,"Línea Externa no conmutada (Previa solicitud a Etb, Claro, EPM, Colomsat u otro operador)",100900]
[{"$f":"CONCATENATE(B54:B266,\" \",C54:C266)","v":"3070207 Conexión cableada para Datafono:(No incluye Datafono)"},3070207,"Conexión cableada para Datafono:(No incluye Datafono)",106800]
[{"$f":"CONCATENATE(B55:B267,\" \",C55:C267)","v":"3070942 Kit básico Pino 1 (1 mesa pleglable pino, 3 sillas acrilicas k negra) Valor ferias de 1 a 6 dias"},3070942,"Kit básico Pino 1 (1 mesa pleglable pino, 3 sillas acrilicas k negra) Valor ferias de 1 a 6 dias",136900]
[{"$f":"CONCATENATE(B56:B268,\" \",C56:C268)","v":"3071105 KIT básico oficina 2 (2 sillas interlocutoras, 1 silla ejecutiva, 1 mesa oficina) Valor ferias de 1 a 6 dias"},3071105,"KIT básico oficina 2 (2 sillas interlocutoras, 1 silla ejecutiva, 1 mesa oficina) Valor ferias de 1 a 6 dias",167100]
[{"$f":"CONCATENATE(B57:B269,\" \",C57:C269)","v":"3071036 Mesa plegable plastico + 2 sillas interlocutoras Valor ferias de 1 a 6 dias"},3071036,"Mesa plegable plastico + 2 sillas interlocutoras Valor ferias de 1 a 6 dias",115800]
[{"$f":"CONCATENATE(B58:B270,\" \",C58:C270)","v":"3071039 Mesa alta Daysa + 2 sillas neumaticas altas marsella Valor ferias de 1 a 6 dias"},3071039,"Mesa alta Daysa + 2 sillas neumaticas altas marsella Valor ferias de 1 a 6 dias",149600]
[{"$f":"CONCATENATE(B59:B271,\" \",C59:C271)","v":"3071054 Mesa estandar lotus vidrio + 2 sillas tipo huevo Valor ferias de 1 a 6 dias"},3071054,"Mesa estandar lotus vidrio + 2 sillas tipo huevo Valor ferias de 1 a 6 dias",161200]
[{"$f":"CONCATENATE(B60:B272,\" \",C60:C272)","v":"3071002 Silla Acrílica k negra (85cm x 49cm x 47cm) Valor ferias de 1 a 6 dias"},3071002,"Silla Acrílica k negra (85cm x 49cm x 47cm) Valor ferias de 1 a 6 dias",30500]
[{"$f":"CONCATENATE(B61:B273,\" \",C61:C273)","v":"3071078 Silla con Espaldar Arles (75cm x 38cm x39cm) Valor ferias de 1 a 6 dias"},3071078,"Silla con Espaldar Arles (75cm x 38cm x39cm) Valor ferias de 1 a 6 dias",44600]
[{"$f":"CONCATENATE(B62:B274,\" \",C62:C274)","v":"30713198 Silla Gerencial (119cm x 67cm x 78cm) Valor ferias de 1 a 6 dias"},30713198,"Silla Gerencial (119cm x 67cm x 78cm) Valor ferias de 1 a 6 dias",97200]
[{"$f":"CONCATENATE(B63:B275,\" \",C63:C275)","v":"3071081 Silla Ejecutiva (79cm x 53cm x 42cm) Valor ferias de 1 a 6 dias"},3071081,"Silla Ejecutiva (79cm x 53cm x 42cm) Valor ferias de 1 a 6 dias",46900]
[{"$f":"CONCATENATE(B64:B276,\" \",C64:C276)","v":"3071061 Silla estandar Suiza (48cm x 46cm x 45cm) Valor ferias de 1 a 6 dias"},3071061,"Silla estandar Suiza (48cm x 46cm x 45cm) Valor ferias de 1 a 6 dias",37900]
[{"$f":"CONCATENATE(B65:B277,\" \",C65:C277)","v":"3071008 Silla estandar Tipo Huevo (48cm x 46cm x 45cm) Valor ferias de 1 a 6 dias"},3071008,"Silla estandar Tipo Huevo (48cm x 46cm x 45cm) Valor ferias de 1 a 6 dias",37900]
[{"$f":"CONCATENATE(B66:B278,\" \",C66:C278)","v":"3071006 Silla Interlocutora Negra (79cm x 53cm x 42cm) Valor ferias de 1 a 6 dias"},3071006,"Silla Interlocutora Negra (79cm x 53cm x 42cm) Valor ferias de 1 a 6 dias",31800]
[{"$f":"CONCATENATE(B67:B279,\" \",C67:C279)","v":"3071022 Silla Neumatica alta Versalles (80cm x 40 cm x 40cm) Valor ferias de 1 a 6 dias"},3071022,"Silla Neumatica alta Versalles (80cm x 40 cm x 40cm) Valor ferias de 1 a 6 dias",55900]
[{"$f":"CONCATENATE(B68:B280,\" \",C68:C280)","v":"3071077 Silla Neumática alta Marsella (80cm x 40cm x 40cm) Valor ferias de 1 a 6 dias"},3071077,"Silla Neumática alta Marsella (80cm x 40cm x 40cm) Valor ferias de 1 a 6 dias",45800]
[{"$f":"CONCATENATE(B69:B281,\" \",C69:C281)","v":"3071092 Silla Neumatica alta POP (Blanca o negra) (80cm x 43cm x 40cm) Valor ferias de 1 a 6 dias"},3071092,"Silla Neumatica alta POP (Blanca o negra) (80cm x 43cm x 40cm) Valor ferias de 1 a 6 dias",45300]
[{"$f":"CONCATENATE(B70:B282,\" \",C70:C282)","v":"3070503 Estantería Polo (Melaminico)   (100cm x 93cm x 35cm) Valor ferias de 1 a 6 dias"},3070503,"Estantería Polo (Melaminico)   (100cm x 93cm x 35cm) Valor ferias de 1 a 6 dias",124400]
[{"$f":"CONCATENATE(B71:B283,\" \",C71:C283)","v":"3070503 Estantería Polo (Miel)  (100cm x 93cm x 35cm) Valor ferias de 1 a 6 dias"},3070503,"Estantería Polo (Miel)  (100cm x 93cm x 35cm) Valor ferias de 1 a 6 dias",124400]
[{"$f":"CONCATENATE(B72:B284,\" \",C72:C284)","v":"3070503 Estantería Polo (Rovere)  (100cm x 93cm x 35cm) Valor ferias de 1 a 6 dias"},3070503,"Estantería Polo (Rovere)  (100cm x 93cm x 35cm) Valor ferias de 1 a 6 dias",124400]
[{"$f":"CONCATENATE(B73:B285,\" \",C73:C285)","v":"3070503 Estantería Polo (Roble Gris)  (100cm x 93cm x 35cm) Valor ferias de 1 a 6 dias"},3070503,"Estantería Polo (Roble Gris)  (100cm x 93cm x 35cm) Valor ferias de 1 a 6 dias",124400]
[{"$f":"CONCATENATE(B74:B286,\" \",C74:C286)","v":"3071108 Estantería Shelf 4E (190cm x 125cm x 41cm) Valor ferias de 1 a 6 dias"},3071108,"Estantería Shelf 4E (190cm x 125cm x 41cm) Valor ferias de 1 a 6 dias",98200]
[{"$f":"CONCATENATE(B75:B287,\" \",C75:C287)","v":"3071107 Archivador Regina (70cm x 37cm x50cm) Valor ferias de 1 a 6 dias"},3071107,"Archivador Regina (70cm x 37cm x50cm) Valor ferias de 1 a 6 dias",92400]
[{"$f":"CONCATENATE(B76:B288,\" \",C76:C288)","v":"3070954 Counter Mónaco (Melaminico) (100cm x 100cm x 40cm) Valor ferias de 1 a 6 dias"},3070954,"Counter Mónaco (Melaminico) (100cm x 100cm x 40cm) Valor ferias de 1 a 6 dias",101600]
[{"$f":"CONCATENATE(B77:B289,\" \",C77:C289)","v":"3070954 Counter Mónaco (Miel) (100cm x 100cm x 40cm) Valor ferias de 1 a 6 dias"},3070954,"Counter Mónaco (Miel) (100cm x 100cm x 40cm) Valor ferias de 1 a 6 dias",101600]
[{"$f":"CONCATENATE(B78:B290,\" \",C78:C290)","v":"3070954 Counter Mónaco (Rovere) (100cm x 100cm x 40cm) Valor ferias de 1 a 6 dias"},3070954,"Counter Mónaco (Rovere) (100cm x 100cm x 40cm) Valor ferias de 1 a 6 dias",101600]
[{"$f":"CONCATENATE(B79:B291,\" \",C79:C291)","v":"3070954 Counter Mónaco (Roble Gris) (100cm x 100cm x 40cm) Valor ferias de 1 a 6 dias"},3070954,"Counter Mónaco (Roble Gris) (100cm x 100cm x 40cm) Valor ferias de 1 a 6 dias",101600]
[{"$f":"CONCATENATE(B80:B292,\" \",C80:C292)","v":"3070535 Vitrina Isla 2E (200cm x 50cm x 50cm) Valor ferias de 1 a 6 dias"},3070535,"Vitrina Isla 2E (200cm x 50cm x 50cm) Valor ferias de 1 a 6 dias",171700]
[{"$f":"CONCATENATE(B81:B293,\" \",C81:C293)","v":"3070517 Vitrina Mostrador 1E (100cm x 100cm x 40cm) Valor ferias de 1 a 6 dias"},3070517,"Vitrina Mostrador 1E (100cm x 100cm x 40cm) Valor ferias de 1 a 6 dias",152400]
[{"$f":"CONCATENATE(B82:B294,\" \",C82:C294)","v":"3070518 Vitrina Mostrador Tipo 2 1E (100cm x 50 cm x 40cm) Valor ferias de 1 a 6 dias"},3070518,"Vitrina Mostrador Tipo 2 1E (100cm x 50 cm x 40cm) Valor ferias de 1 a 6 dias",152400]
[{"$f":"CONCATENATE(B83:B295,\" \",C83:C295)","v":"3071111 Vitrina Rectangular 2E (200cm x 100cm x 40cm) Valor ferias de 1 a 6 dias"},3071111,"Vitrina Rectangular 2E (200cm x 100cm x 40cm) Valor ferias de 1 a 6 dias",194400]
[{"$f":"CONCATENATE(B84:B296,\" \",C84:C296)","v":"30713199 Vitrina Rectangular 3E (180cm x 100cm x 40cm) Valor ferias de 1 a 6 dias"},30713199,"Vitrina Rectangular 3E (180cm x 100cm x 40cm) Valor ferias de 1 a 6 dias",194400]
[{"$f":"CONCATENATE(B85:B297,\" \",C85:C297)","v":"3071115 Mesa alta Daysa (Melaminico) (100cm x 60cm) Valor ferias de 1 a 6 dias"},3071115,"Mesa alta Daysa (Melaminico) (100cm x 60cm) Valor ferias de 1 a 6 dias",66000]
[{"$f":"CONCATENATE(B86:B298,\" \",C86:C298)","v":"3071115 Mesa alta Daysa (Miel) (100cm x 60cm) Valor ferias de 1 a 6 dias"},3071115,"Mesa alta Daysa (Miel) (100cm x 60cm) Valor ferias de 1 a 6 dias",66000]
[{"$f":"CONCATENATE(B87:B299,\" \",C87:C299)","v":"3071115 Mesa alta Daysa (Rovere) (100cm x 60cm) Valor ferias de 1 a 6 dias"},3071115,"Mesa alta Daysa (Rovere) (100cm x 60cm) Valor ferias de 1 a 6 dias",66000]
[{"$f":"CONCATENATE(B88:B300,\" \",C88:C300)","v":"3071115 Mesa alta Daysa (Roble Gris) (100cm x 60cm) Valor ferias de 1 a 6 dias"},3071115,"Mesa alta Daysa (Roble Gris) (100cm x 60cm) Valor ferias de 1 a 6 dias",66000]
[{"$f":"CONCATENATE(B89:B301,\" \",C89:C301)","v":"3071093 Mesa alta Daysa vidrio (100cm x 60cm) Valor ferias de 1 a 6 dias"},3071093,"Mesa alta Daysa vidrio (100cm x 60cm) Valor ferias de 1 a 6 dias",82200]
[{"$f":"CONCATENATE(B90:B302,\" \",C90:C302)","v":"3071104 Mesa Centro 2 Niveles (melaminico) (50cm x 60cm x 60) Valor ferias de 1 a 6 dias"},3071104,"Mesa Centro 2 Niveles (melaminico) (50cm x 60cm x 60) Valor ferias de 1 a 6 dias",59600]
[{"$f":"CONCATENATE(B91:B303,\" \",C91:C303)","v":"3071100 Mesa Centro Circular doble nivel (melaminico) (50cm x 110cm x 60cm) Valor ferias de 1 a 6 dias"},3071100,"Mesa Centro Circular doble nivel (melaminico) (50cm x 110cm x 60cm) Valor ferias de 1 a 6 dias",80500]
[{"$f":"CONCATENATE(B92:B304,\" \",C92:C304)","v":"3071068 Mesa Centro Rectangular doble nivel (melaminico) (50cm x 75cm x 50cm) Valor ferias de 1 a 6 dias"},3071068,"Mesa Centro Rectangular doble nivel (melaminico) (50cm x 75cm x 50cm) Valor ferias de 1 a 6 dias",59600]
[{"$f":"CONCATENATE(B93:B305,\" \",C93:C305)","v":"3071097 Mesa estandar Daysa (76cm x 60cm) Valor ferias de 1 a 6 dias"},3071097,"Mesa estandar Daysa (76cm x 60cm) Valor ferias de 1 a 6 dias",58700]
[{"$f":"CONCATENATE(B94:B306,\" \",C94:C306)","v":"3071116 Mesa estandar Lotus (70cm x 64cm x 81cm) Valor ferias de 1 a 6 dias"},3071116,"Mesa estandar Lotus (70cm x 64cm x 81cm) Valor ferias de 1 a 6 dias",93900]
[{"$f":"CONCATENATE(B95:B307,\" \",C95:C307)","v":"3071098 Mesa estandar Shia (76cm x 60cm x 60cm) Valor ferias de 1 a 6 dias"},3071098,"Mesa estandar Shia (76cm x 60cm x 60cm) Valor ferias de 1 a 6 dias",58700]
[{"$f":"CONCATENATE(B96:B308,\" \",C96:C308)","v":"30713200 Mesa Oficina (78cm x 120cm x 50cm) Valor ferias de 1 a 6 dias"},30713200,"Mesa Oficina (78cm x 120cm x 50cm) Valor ferias de 1 a 6 dias",74000]
[{"$f":"CONCATENATE(B97:B309,\" \",C97:C309)","v":"3070936 Mesón plegable plástico (Gris o blanco) (73cm x 182cm x 76cm) Valor ferias de 1 a 6 dias"},3070936,"Mesón plegable plástico (Gris o blanco) (73cm x 182cm x 76cm) Valor ferias de 1 a 6 dias",58400]
[{"$f":"CONCATENATE(B98:B310,\" \",C98:C310)","v":"3070904 Mesón plegable pino (75cm x 120cm x 60cm) Valor ferias de 1 a 6 dias"},3070904,"Mesón plegable pino (75cm x 120cm x 60cm) Valor ferias de 1 a 6 dias",58400]
[{"$f":"CONCATENATE(B99:B311,\" \",C99:C311)","v":"3071113 Sala Osaka (1 sofá Toronto, 2 puffs Donna, 1 mesa centro 2 niveles) Valor ferias de 1 a 6 dias"},3071113,"Sala Osaka (1 sofá Toronto, 2 puffs Donna, 1 mesa centro 2 niveles) Valor ferias de 1 a 6 dias",314200]
[{"$f":"CONCATENATE(B100:B312,\" \",C100:C312)","v":"3071095 Sala VIP (1 sofá Victoria derecho, 1 sofá Victoria izquierdo, 2 poltronas, 1 mesa centro 2 niveles) Valor ferias de 1 a 6 dias"},3071095,"Sala VIP (1 sofá Victoria derecho, 1 sofá Victoria izquierdo, 2 poltronas, 1 mesa centro 2 niveles) Valor ferias de 1 a 6 dias",518400]
[{"$f":"CONCATENATE(B101:B313,\" \",C101:C313)","v":"3071090 Puff estandar cuadrado (43cm x 43cm x 43cm) Valor ferias de 1 a 6 dias"},3071090,"Puff estandar cuadrado (43cm x 43cm x 43cm) Valor ferias de 1 a 6 dias",32000]
[{"$f":"CONCATENATE(B102:B314,\" \",C102:C314)","v":"3071091 Puff Trunk 2 cuerpos (48cm x 81cm x 40cm) Valor ferias de 1 a 6 dias"},3071091,"Puff Trunk 2 cuerpos (48cm x 81cm x 40cm) Valor ferias de 1 a 6 dias",72900]
[{"$f":"CONCATENATE(B103:B315,\" \",C103:C315)","v":"3071114 Puff Trunk 3 cuerpos (48cm x 120cm x 54cm) Valor ferias de 1 a 6 dias"},3071114,"Puff Trunk 3 cuerpos (48cm x 120cm x 54cm) Valor ferias de 1 a 6 dias",70400]
[{"$f":"CONCATENATE(B104:B316,\" \",C104:C316)","v":"3071085 Sofa Otawa 2 cuerpos (85cm x 120cm x 76cm) Valor ferias de 1 a 6 dias"},3071085,"Sofa Otawa 2 cuerpos (85cm x 120cm x 76cm) Valor ferias de 1 a 6 dias",142100]
[{"$f":"CONCATENATE(B105:B317,\" \",C105:C317)","v":"3071083 Sofa Toronto 3 cuerpos (88cm x 173cm x 80cm) Valor ferias de 1 a 6 dias"},3071083,"Sofa Toronto 3 cuerpos (88cm x 173cm x 80cm) Valor ferias de 1 a 6 dias",153700]
[{"$f":"CONCATENATE(B106:B318,\" \",C106:C318)","v":"3071031 Sofa Terranova 2 cuerpos (88cm x 173cm x 80cm) Valor ferias de 1 a 6 dias"},3071031,"Sofa Terranova 2 cuerpos (88cm x 173cm x 80cm) Valor ferias de 1 a 6 dias",153700]
[{"$f":"CONCATENATE(B107:B319,\" \",C107:C319)","v":"3071013 Sofa Victoria derecho (70cm x 100cm x 75cm) Valor ferias de 1 a 6 dias"},3071013,"Sofa Victoria derecho (70cm x 100cm x 75cm) Valor ferias de 1 a 6 dias",125300]
[{"$f":"CONCATENATE(B108:B320,\" \",C108:C320)","v":"3071023 Sofa Victoria izquierdo (70cm x 100cm x 75cm) Valor ferias de 1 a 6 dias"},3071023,"Sofa Victoria izquierdo (70cm x 100cm x 75cm) Valor ferias de 1 a 6 dias",125300]
[{"$f":"CONCATENATE(B109:B321,\" \",C109:C321)","v":"30713201 Poltrona Buggy (72cm x 64cm) Valor ferias de 1 a 6 dias"},30713201,"Poltrona Buggy (72cm x 64cm) Valor ferias de 1 a 6 dias",141500]
[{"$f":"CONCATENATE(B110:B322,\" \",C110:C322)","v":"3071059 Poltrona Levis (73cm x 86cm x 78cm) Valor ferias de 1 a 6 dias"},3071059,"Poltrona Levis (73cm x 86cm x 78cm) Valor ferias de 1 a 6 dias",136100]
[{"$f":"CONCATENATE(B111:B323,\" \",C111:C323)","v":"3071302 Papelera metálica Valor ferias de 1 a 6 dias"},3071302,"Papelera metálica Valor ferias de 1 a 6 dias",17100]
[{"$f":"CONCATENATE(B112:B324,\" \",C112:C324)","v":"3071325 Poste separador 120cm de alto Valor ferias de 1 a 6 dias"},3071325,"Poste separador 120cm de alto Valor ferias de 1 a 6 dias",33900]
[{"$f":"CONCATENATE(B113:B325,\" \",C113:C325)","v":"3070521 Perchero básico 1 pedestal (120cm Ancho - Altura) graduable + 5 ganchos"},3070521,"Perchero básico 1 pedestal (120cm Ancho - Altura) graduable + 5 ganchos",56100]
[{"$f":"CONCATENATE(B114:B326,\" \",C114:C326)","v":"3070521 Perchero doble 2 pedestal (120cm Ancho-Altura) graduable + 5 ganchos"},3070521,"Perchero doble 2 pedestal (120cm Ancho-Altura) graduable + 5 ganchos",64700]
[{"$f":"CONCATENATE(B115:B327,\" \",C115:C327)","v":"3070512 Locker Torre 1 puesto con 2 + 1/2  entrepaños "},3070512,"Locker Torre 1 puesto con 2 + 1/2  entrepaños ",57500]
[{"$f":"CONCATENATE(B116:B327,\" \",C116:C327)","v":"3070714 Cubo de exhibición (40cm x 40cm x 25cm) Valor ferias de 1 a 6 dias"},3070714,"Cubo de exhibición (40cm x 40cm x 25cm) Valor ferias de 1 a 6 dias",24700]
[{"$f":"CONCATENATE(B117:B328,\" \",C117:C328)","v":"3070957 Pedestal cuadrado (30cm x 30cm x 30cm) Valor ferias de 1 a 6 dias"},3070957,"Pedestal cuadrado (30cm x 30cm x 30cm) Valor ferias de 1 a 6 dias",21300]
[{"$f":"CONCATENATE(B118:B329,\" \",C118:C329)","v":"3070956 Pedestal rectangular 60cm (30cm x 60cm x 30cm) Valor ferias de 1 a 6 dias"},3070956,"Pedestal rectangular 60cm (30cm x 60cm x 30cm) Valor ferias de 1 a 6 dias",25900]
[{"$f":"CONCATENATE(B119:B330,\" \",C119:C330)","v":"3070955 Pedestal rectangular 90cm (30cm x 90cm x 30cm) Valor ferias de 1 a 6 dias"},3070955,"Pedestal rectangular 90cm (30cm x 90cm x 30cm) Valor ferias de 1 a 6 dias",28300]
[{"$f":"CONCATENATE(B120:B331,\" \",C120:C331)","v":"3071370 Revistero plegable (140cm x 25cm x 29cm) Valor ferias de 1 a 6 dias"},3071370,"Revistero plegable (140cm x 25cm x 29cm) Valor ferias de 1 a 6 dias",44600]
[{"$f":"CONCATENATE(B121:B332,\" \",C121:C332)","v":"3071103 Nevera Minibar 121 LT (48.5cm X 85.1cm X 60cm)"},3071103,"Nevera Minibar 121 LT (48.5cm X 85.1cm X 60cm)",125200]
[{"$f":"CONCATENATE(B122:B333,\" \",C122:C333)","v":"3071103 Nevera Estandar 230LT ( 55.6cm X 157.6cm X 67cm)"},3071103,"Nevera Estandar 230LT ( 55.6cm X 157.6cm X 67cm)",184900]
[{"$f":"CONCATENATE(B123:B334,\" \",C123:C334)","v":"3070505 Tarima 120x120x60, (Previa verificación con área de montaje) Valor ferias de 1 a 6 dias"},3070505,"Tarima 120x120x60, (Previa verificación con área de montaje) Valor ferias de 1 a 6 dias",32200]
[{"$f":"CONCATENATE(B124:B335,\" \",C124:C335)","v":"3071388 Módulo de carga 20 puntos 110V Valor ferias de 1 a 6 dias"},3071388,"Módulo de carga 20 puntos 110V Valor ferias de 1 a 6 dias",174200]
[{"$f":"CONCATENATE(B125:B336,\" \",C125:C336)","v":"3071375 Planta + matera plástica (Pequeña)"},3071375,"Planta + matera plástica (Pequeña)",20600]
[{"$f":"CONCATENATE(B126:B335,\" \",C126:C335)","v":"3071376 Planta + matera plástica (Mediana)"},3071376,"Planta + matera plástica (Mediana)",46400]
[{"$f":"CONCATENATE(B127:B336,\" \",C127:C336)","v":"3071377 Planta + matera plástica (Grande)"},3071377,"Planta + matera plástica (Grande)",59200]
[{"$f":"CONCATENATE(B128:B337,\" \",C128:C337)","v":"3071378 Jardinera en madera + 3 Plantas grandes"},3071378,"Jardinera en madera + 3 Plantas grandes",100300]
[{"$f":"CONCATENATE(B129:B338,\" \",C129:C338)","v":"3071379 Jardinera en madera + 3 Plantas medianas"},3071379,"Jardinera en madera + 3 Plantas medianas",81100]
[{"$f":"CONCATENATE(B130:B339,\" \",C130:C339)","v":"3071380 Jardinera en madera + 7 Plantas pequeñas"},3071380,"Jardinera en madera + 7 Plantas pequeñas",83500]
[{"$f":"CONCATENATE(B131:B340,\" \",C131:C340)","v":"3071381 Cajoneras con flores"},3071381,"Cajoneras con flores",155800]
[{"$f":"CONCATENATE(B132:B341,\" \",C132:C341)","v":"3071314 Grandes (61cm x 120cm)"},3071314,"Grandes (61cm x 120cm)",31700]
[{"$f":"CONCATENATE(B133:B342,\" \",C133:C342)","v":"3071301 Medianas (31cm x 120cm)"},3071301,"Medianas (31cm x 120cm)",25000]
[{"$f":"CONCATENATE(B134:B343,\" \",C134:C343)","v":"3071317 Pequeñas (10cm x 30cm)"},3071317,"Pequeñas (10cm x 30cm)",11100]
[{"$f":"CONCATENATE(B135:B344,\" \",C135:C344)","v":"3071382 Suculentas (10cm x 15cm)"},3071382,"Suculentas (10cm x 15cm)",11100]
[{"$f":"CONCATENATE(B136:B345,\" \",C136:C345)","v":"3071383 Chamizos"},3071383,"Chamizos",11100]
[{"$f":"CONCATENATE(B137:B346,\" \",C137:C346)","v":"3071355 De barro grande"},3071355,"De barro grande",30700]
[{"$f":"CONCATENATE(B138:B347,\" \",C138:C347)","v":"3071356 De barro mediana"},3071356,"De barro mediana",23900]
[{"$f":"CONCATENATE(B139:B348,\" \",C139:C348)","v":"3071384 De barro pequeña"},3071384,"De barro pequeña",10600]
[{"$f":"CONCATENATE(B140:B349,\" \",C140:C349)","v":"3071357 Plástica grande"},3071357,"Plástica grande",30700]
[{"$f":"CONCATENATE(B141:B350,\" \",C141:C350)","v":"3071358 Plástica mediana"},3071358,"Plástica mediana",23900]
[{"$f":"CONCATENATE(B142:B351,\" \",C142:C351)","v":"3071359 Plástica pequeña"},3071359,"Plástica pequeña",10600]
[{"$f":"CONCATENATE(B143:B352,\" \",C143:C352)","v":"3071360 Jardinera en madera (35cm x 100cm x 35cm)"},3071360,"Jardinera en madera (35cm x 100cm x 35cm)",10600]
[{"$f":"CONCATENATE(B144:B353,\" \",C144:C353)","v":"3071352 Grandes"},3071352,"Grandes",93800]
[{"$f":"CONCATENATE(B145:B354,\" \",C145:C354)","v":"3071353 Medianos"},3071353,"Medianos",54600]
[{"$f":"CONCATENATE(B146:B355,\" \",C146:C355)","v":"3071354 Pequeños"},3071354,"Pequeños",24000]
[{"$f":"CONCATENATE(B147:B356,\" \",C147:C356)","v":"3071364 Topiario en forma de animales o frutas "},3071364,"Topiario en forma de animales o frutas ",228500]
[{"$f":"CONCATENATE(B148:B357,\" \",C148:C357)","v":"3071365 Topiario en bolas grandes"},3071365,"Topiario en bolas grandes",228500]
[{"$f":"CONCATENATE(B149:B358,\" \",C149:C358)","v":"3071385 Topiario en bolas pequeñas"},3071385,"Topiario en bolas pequeñas",207700]
[{"$f":"CONCATENATE(B150:B359,\" \",C150:C359)","v":"3071363 Piedras (Por m2)"},3071363,"Piedras (Por m2)",23900]
[{"$f":"CONCATENATE(B151:B360,\" \",C151:C360)","v":"3071367 Pino patula (Por bulto)"},3071367,"Pino patula (Por bulto)",10600]
[{"$f":"CONCATENATE(B152:B361,\" \",C152:C361)","v":"3071361 Gravilla (Por m2)"},3071361,"Gravilla (Por m2)",10600]
[{"$f":"CONCATENATE(B153:B362,\" \",C153:C362)","v":"3071386 Muros verticales (Por m2)"},3071386,"Muros verticales (Por m2)",328500]
[{"$f":"CONCATENATE(B154:B363,\" \",C154:C363)","v":"3071366 Cascarilla (Por bulto)"},3071366,"Cascarilla (Por bulto)",10600]
[{"$f":"CONCATENATE(B155:B364,\" \",C155:C364)","v":"3071362 Rocas (Por unidad)"},3071362,"Rocas (Por unidad)",63300]
[{"$f":"CONCATENATE(B156:B367,\" \",C156:C367)","v":"3071312 Stands entre 9 mts² y 18 mts² (valor por dia) Dia ordinario"},3071312,"Stands entre 9 mts² y 18 mts² (valor por dia) Dia ordinario",34900]
[{"$f":"CONCATENATE(B157:B368,\" \",C157:C368)","v":"3071312 Stands entre 9 mts² y 18 mts² (valor por dia) Dia dominical o festivo"},3071312,"Stands entre 9 mts² y 18 mts² (valor por dia) Dia dominical o festivo",59900]
[{"$f":"CONCATENATE(B158:B369,\" \",C158:C369)","v":"3071312 Stands entre 19 mts² y 32mts² (valor por dia) Dia ordinario"},3071312,"Stands entre 19 mts² y 32mts² (valor por dia) Dia ordinario",46900]
[{"$f":"CONCATENATE(B159:B370,\" \",C159:C370)","v":"3071312 Stands entre 19 mts² y 32mts² (valor por dia) Dia dominical o festivo"},3071312,"Stands entre 19 mts² y 32mts² (valor por dia) Dia dominical o festivo",83900]
[{"$f":"CONCATENATE(B160:B371,\" \",C160:C371)","v":"3071312 Stands entre 33 mts² y 64 mts² (valor por dia) Dia ordinario "},3071312,"Stands entre 33 mts² y 64 mts² (valor por dia) Dia ordinario ",87900]
[{"$f":"CONCATENATE(B161:B372,\" \",C161:C372)","v":"3071312 Stands entre 33 mts² y 64 mts² (valor por dia) Dia dominical o festivo"},3071312,"Stands entre 33 mts² y 64 mts² (valor por dia) Dia dominical o festivo",189900]
[{"$f":"CONCATENATE(B162:B373,\" \",C162:C373)","v":"3071312 Stands de 65mts²  en adelante se requiere de cotización previa,contactese con el área del plus de Corferias para brindarle asesoria y cotización."},3071312,"Stands de 65mts²  en adelante se requiere de cotización previa,contactese con el área del plus de Corferias para brindarle asesoria y cotización.","Según cotización"]
[{"$f":"CONCATENATE(B163:B374,\" \",C163:C374)","v":"3071312 Aseo permanente 8 horas 1 Operario (valor por dia) Día ordinario"},3071312,"Aseo permanente 8 horas 1 Operario (valor por dia) Día ordinario","Según cotización"]
[{"$f":"CONCATENATE(B164:B375,\" \",C164:C375)","v":"3071312 Aseo permanente 8 horas 1 Operario (valor por dia) Día dominical o festivo"},3071312,"Aseo permanente 8 horas 1 Operario (valor por dia) Día dominical o festivo","Según cotización"]
[{"$f":"CONCATENATE(B165:B376,\" \",C165:C376)","v":"3071433 Corferias Conecta  APP (incluye el internet para un equipo)"},3071433,"Corferias Conecta  APP (incluye el internet para un equipo)",283100]
[{"$f":"CONCATENATE(B166:B377,\" \",C166:C377)","v":"3071432 Corferias Conecta  APP + Tablet con internet"},3071432,"Corferias Conecta  APP + Tablet con internet",373800]
[{"$f":"CONCATENATE(B167:B376,\" \",C167:C376)","v":"3071431 Tablet adicional con internet"},3071431,"Tablet adicional con internet",249200]
[{"$f":"CONCATENATE(B168:B377,\" \",C168:C377)","v":"3071326 Internet adicional para la app por equipo"},3071326,"Internet adicional para la app por equipo",89100]

{"sheet":"Matriz de busqueda de los cod","index":2,"n_rows":243,"n_cols":3,"rows_kept":243,"cut":false,"hidden":true,"merged":[]}
["Codigo"," ","Clave"]
[3070101,"Instalación Monofásica (Toma corriente doble, consumo hasta 2KW/110V) valor de 1 a 6 dias",{"$f":"CONCATENATE(A2:A243,\" \",B2:B243)","v":"3070101 Instalación Monofásica (Toma corriente doble, consumo hasta 2KW/110V) valor de 1 a 6 dias"}]
[3070101,"Instalación Monofásica (Toma corriente doble, consumo hasta 2KW/110V) valor de 7 dias en adelante",{"$f":"CONCATENATE(A3:A243,\" \",B3:B243)","v":"3070101 Instalación Monofásica (Toma corriente doble, consumo hasta 2KW/110V) valor de 7 dias en adelante"}]
[3070103,"Instalación kilovatio adicional monofásico (Debe contar con punto principal, MAX 2KW por punto)",{"$f":"CONCATENATE(A4:A243,\" \",B4:B243)","v":"3070103 Instalación kilovatio adicional monofásico (Debe contar con punto principal, MAX 2KW por punto)"}]
[3070102,"Instalación trifásica (Regleta plastica, consumo hasta 4KW/208V)",{"$f":"CONCATENATE(A5:A244,\" \",B5:B244)","v":"3070102 Instalación trifásica (Regleta plastica, consumo hasta 4KW/208V)"}]
[3070104,"Instalación kilovatio adicional trifásico (Debe contar con punto principal)",{"$f":"CONCATENATE(A6:A245,\" \",B6:B245)","v":"3070104 Instalación kilovatio adicional trifásico (Debe contar con punto principal)"}]
[3071372,"De 21 a 50 kilovatios adicionales trifásicos (Valor por KW) (Debe contar con punto principal)",{"$f":"CONCATENATE(A7:A246,\" \",B7:B246)","v":"3071372 De 21 a 50 kilovatios adicionales trifásicos (Valor por KW) (Debe contar con punto principal)"}]
[3071373,"De 51 a 100 kilovatios adicionales trifásicos (Valor por KW) (Debe contar con punto principal)",{"$f":"CONCATENATE(A8:A247,\" \",B8:B247)","v":"3071373 De 51 a 100 kilovatios adicionales trifásicos (Valor por KW) (Debe contar con punto principal)"}]
[3071374,"Mas de100 kilovatios adicionales trifásicos (Valor por KW) (Debe contar con punto principal)",{"$f":"CONCATENATE(A9:A248,\" \",B9:B248)","v":"3071374 Mas de100 kilovatios adicionales trifásicos (Valor por KW) (Debe contar con punto principal)"}]
[3070402,"Lampara de pared ajustable (150W/110V)",{"$f":"CONCATENATE(A10:A249,\" \",B10:B249)","v":"3070402 Lampara de pared ajustable (150W/110V)"}]
[3070405,"Reflector Led (50W- mltV)",{"$f":"CONCATENATE(A11:A250,\" \",B11:B250)","v":"3070405 Reflector Led (50W- mltV)"}]
[3070403,"Extensión – tomacorriente doble con polo a tierra (1500W/110V) MAX 6mts ",{"$f":"CONCATENATE(A12:A251,\" \",B12:B251)","v":"3070403 Extensión – tomacorriente doble con polo a tierra (1500W/110V) MAX 6mts "}]
[3071345,"Lavaplatos 90XL* 60XH* 90 (No incluye agua y desague) valor de 1 a 6 dias",{"$f":"CONCATENATE(A13:A252,\" \",B13:B252)","v":"3071345 Lavaplatos 90XL* 60XH* 90 (No incluye agua y desague) valor de 1 a 6 dias"}]
[3071345,"Lavaplatos 90XL* 60XH* 90 (No incluye agua y desague) valor de 7 dias en adelante",{"$f":"CONCATENATE(A14:A253,\" \",B14:B253)","v":"3071345 Lavaplatos 90XL* 60XH* 90 (No incluye agua y desague) valor de 7 dias en adelante"}]
[3070301,"Punto de Agua en 1/2\" (incluye consumo) valor de 1 a 6 dias",{"$f":"CONCATENATE(A15:A254,\" \",B15:B254)","v":"3070301 Punto de Agua en 1/2\" (incluye consumo) valor de 1 a 6 dias"}]
[3070301,"Punto de Agua en 1/2\" (incluye consumo) valor de 7 dias en adelante",{"$f":"CONCATENATE(A16:A255,\" \",B16:B255)","v":"3070301 Punto de Agua en 1/2\" (incluye consumo) valor de 7 dias en adelante"}]
[3070302,"Desagüe en 1 1/2\" Por toda la feria (Ubicación asignada por Corferias en su stand) valor de 1 a 6 dias",{"$f":"CONCATENATE(A17:A256,\" \",B17:B256)","v":"3070302 Desagüe en 1 1/2\" Por toda la feria (Ubicación asignada por Corferias en su stand) valor de 1 a 6 dias"}]
[3070302,"Desagüe en 1 1/2\" Por toda la feria (Ubicación asignada por Corferias en su stand) valor de 7 dias en adelante",{"$f":"CONCATENATE(A18:A257,\" \",B18:B257)","v":"3070302 Desagüe en 1 1/2\" Por toda la feria (Ubicación asignada por Corferias en su stand) valor de 7 dias en adelante"}]
[3071341,"Aire comprimido para punto con presión máx. de 100 PSI, y caudal máx. 35CFM. valor de 1 a 6 dias",{"$f":"CONCATENATE(A19:A258,\" \",B19:B258)","v":"3071341 Aire comprimido para punto con presión máx. de 100 PSI, y caudal máx. 35CFM. valor de 1 a 6 dias"}]
[3071341,"Aire comprimido para punto con presión máx. de 100 PSI, y caudal máx. 35CFM. valor de 7 dias en adelante",{"$f":"CONCATENATE(A20:A259,\" \",B20:B259)","v":"3071341 Aire comprimido para punto con presión máx. de 100 PSI, y caudal máx. 35CFM. valor de 7 dias en adelante"}]
[3070307,"Punto de Agua en 1/2\" (Incluye consumo)  + Desagüe en 1 1/2\" + Lavaplatos valor de 1 a 6 dias",{"$f":"CONCATENATE(A21:A260,\" \",B21:B260)","v":"3070307 Punto de Agua en 1/2\" (Incluye consumo)  + Desagüe en 1 1/2\" + Lavaplatos valor de 1 a 6 dias"}]
[3070307,"Punto de Agua en 1/2\" (Incluye consumo)  + Desagüe en 1 1/2\" + Lavaplatos valor de 7 dias en adelante",{"$f":"CONCATENATE(A22:A261,\" \",B22:B261)","v":"3070307 Punto de Agua en 1/2\" (Incluye consumo)  + Desagüe en 1 1/2\" + Lavaplatos valor de 7 dias en adelante"}]
[3071321,"Instalación de UN (1) punto de gas propano por UN (1) Equipo (Incluye materiales y mano de obra) (No incluye consumo de gas, este será liquidado a través de un medidor una vez finalice la feria y/o evento)",{"$f":"CONCATENATE(A23:A262,\" \",B23:B262)","v":"3071321 Instalación de UN (1) punto de gas propano por UN (1) Equipo (Incluye materiales y mano de obra) (No incluye consumo de gas, este será liquidado a través de un medidor una vez finalice la feria y/o evento)"}]
[3070601,"Panel adicional sistema cfe 100cm x 240cm",{"$f":"CONCATENATE(A24:A263,\" \",B24:B263)","v":"3070601 Panel adicional sistema cfe 100cm x 240cm"}]
[3070801,"Puerta sistema cfe 90cm x 240cm",{"$f":"CONCATENATE(A25:A264,\" \",B25:B264)","v":"3070801 Puerta sistema cfe 90cm x 240cm"}]
[3070803,"Bodega estándar con puerta 150cm x 150cm (Sistema Corferias)",{"$f":"CONCATENATE(A26:A265,\" \",B26:B265)","v":"3070803 Bodega estándar con puerta 150cm x 150cm (Sistema Corferias)"}]
[3071319,"Brazo Mecánico por Fracciòn de 15 min (Solo para primer nivel)",{"$f":"CONCATENATE(A27:A266,\" \",B27:B266)","v":"3071319 Brazo Mecánico por Fracciòn de 15 min (Solo para primer nivel)"}]
[3071319,"Brazo Mecánico por Fracciòn de 30 min (Solo para primer nivel)",{"$f":"CONCATENATE(A28:A267,\" \",B28:B267)","v":"3071319 Brazo Mecánico por Fracciòn de 30 min (Solo para primer nivel)"}]
[3071319,"Brazo Mecánico por Fracciòn de 45 min (Solo para primer nivel)",{"$f":"CONCATENATE(A29:A268,\" \",B29:B268)","v":"3071319 Brazo Mecánico por Fracciòn de 45 min (Solo para primer nivel)"}]
[3071319,"Brazo Mecánico por Fracciòn de 60 min (Solo para primer nivel)",{"$f":"CONCATENATE(A30:A269,\" \",B30:B269)","v":"3071319 Brazo Mecánico por Fracciòn de 60 min (Solo para primer nivel)"}]
[3070413,"Diferencial (Cap. 1 Ton.) + Brazo mecánico (Montaje y desmontaje) ",{"$f":"CONCATENATE(A31:A270,\" \",B31:B270)","v":"3070413 Diferencial (Cap. 1 Ton.) + Brazo mecánico (Montaje y desmontaje) "}]
[3070414,"Plataforma Tijera eléctrica por Fracciòn /30 min (Uso para segundos niveles)",{"$f":"CONCATENATE(A32:A271,\" \",B32:B271)","v":"3070414 Plataforma Tijera eléctrica por Fracciòn /30 min (Uso para segundos niveles)"}]
[3071387,"Brazo mecánico + Diferencial + TRUSS 2,60 X 2,60",{"$f":"CONCATENATE(A33:A272,\" \",B33:B272)","v":"3071387 Brazo mecánico + Diferencial + TRUSS 2,60 X 2,60"}]
[3071351,"Brazo mecánico + Diferencial + TRUSS 3,60 X 2,60",{"$f":"CONCATENATE(A34:A273,\" \",B34:B273)","v":"3071351 Brazo mecánico + Diferencial + TRUSS 3,60 X 2,60"}]
[3071395,"Brazo mecánico + Diferencial + TRUSS 3,60 X 3,60",{"$f":"CONCATENATE(A35:A274,\" \",B35:B274)","v":"3071395 Brazo mecánico + Diferencial + TRUSS 3,60 X 3,60"}]
[3071324,"Brazo mecánico + Diferencial + TRUSS 5,90 X 5,90",{"$f":"CONCATENATE(A36:A275,\" \",B36:B275)","v":"3071324 Brazo mecánico + Diferencial + TRUSS 5,90 X 5,90"}]
[3071436,"Brazo mecánico + Diferencial + TRUSS 6,90 X 6,90",{"$f":"CONCATENATE(A37:A276,\" \",B37:B276)","v":"3071436 Brazo mecánico + Diferencial + TRUSS 6,90 X 6,90"}]
[3071350,"Brazo mecánico + Diferencial + TRUSS 5,60 X 5,60",{"$f":"CONCATENATE(A38:A277,\" \",B38:B277)","v":"3071350 Brazo mecánico + Diferencial + TRUSS 5,60 X 5,60"}]
[3071371,"Brazo mecánico + Diferencial + TRUSS 6,60 X 6,60",{"$f":"CONCATENATE(A39:A278,\" \",B39:B278)","v":"3071371 Brazo mecánico + Diferencial + TRUSS 6,60 X 6,60"}]
[3071393,"Brazo mecánico + Diferencial + TRUSS 9,60 X 2,60",{"$f":"CONCATENATE(A40:A279,\" \",B40:B279)","v":"3071393 Brazo mecánico + Diferencial + TRUSS 9,60 X 2,60"}]
[3071394,"Brazo mecánico + Diferencial + TRUSS 9,60 X 3,60",{"$f":"CONCATENATE(A41:A280,\" \",B41:B280)","v":"3071394 Brazo mecánico + Diferencial + TRUSS 9,60 X 3,60"}]
[3071396,"Brazo mecánico + Diferencial + TRUSS 9,60 X 5,60",{"$f":"CONCATENATE(A42:A281,\" \",B42:B281)","v":"3071396 Brazo mecánico + Diferencial + TRUSS 9,60 X 5,60"}]
[3071397,"Brazo mecánico + Diferencial + TRUSS 9,60 X 6,60",{"$f":"CONCATENATE(A43:A282,\" \",B43:B282)","v":"3071397 Brazo mecánico + Diferencial + TRUSS 9,60 X 6,60"}]
[3071418,"Servicio de Internet Cableado \"PARA UN EQUIPO - DURANTE UN DÍA\"  ",{"$f":"CONCATENATE(A44:A283,\" \",B44:B283)","v":"3071418 Servicio de Internet Cableado \"PARA UN EQUIPO - DURANTE UN DÍA\"  "}]
[3071419,"Clave de acceso para la red WiFi  \"PARA UN EQUIPO - DURANTE UN DÍA\"",{"$f":"CONCATENATE(A45:A284,\" \",B45:B284)","v":"3071419 Clave de acceso para la red WiFi  \"PARA UN EQUIPO - DURANTE UN DÍA\""}]
[3071417,"Servicio de Internet Cableado \"PARA UN EQUIPO - DURANTE TODA LA FERIA\" valor de 3 dias",{"$f":"CONCATENATE(A46:A285,\" \",B46:B285)","v":"3071417 Servicio de Internet Cableado \"PARA UN EQUIPO - DURANTE TODA LA FERIA\" valor de 3 dias"}]
[3071417,"Servicio de Internet Cableado \"PARA UN EQUIPO - DURANTE TODA LA FERIA\" valor de 4 a 6 dias",{"$f":"CONCATENATE(A47:A286,\" \",B47:B286)","v":"3071417 Servicio de Internet Cableado \"PARA UN EQUIPO - DURANTE TODA LA FERIA\" valor de 4 a 6 dias"}]
[3071417,"Servicio de Internet Cableado \"PARA UN EQUIPO - DURANTE TODA LA FERIA\" valor a partir de 7 dias",{"$f":"CONCATENATE(A48:A287,\" \",B48:B287)","v":"3071417 Servicio de Internet Cableado \"PARA UN EQUIPO - DURANTE TODA LA FERIA\" valor a partir de 7 dias"}]
[3071420,"Clave de acceso para la Red WiFi \"PARA UN EQUIPO - DURANTE TODA LA FERIA\" valor de 3 dias",{"$f":"CONCATENATE(A49:A288,\" \",B49:B288)","v":"3071420 Clave de acceso para la Red WiFi \"PARA UN EQUIPO - DURANTE TODA LA FERIA\" valor de 3 dias"}]
[3071420,"Clave de acceso para la Red WiFi \"PARA UN EQUIPO - DURANTE TODA LA FERIA\" valor de 4 a 6 dias",{"$f":"CONCATENATE(A50:A289,\" \",B50:B289)","v":"3071420 Clave de acceso para la Red WiFi \"PARA UN EQUIPO - DURANTE TODA LA FERIA\" valor de 4 a 6 dias"}]
[3071420,"Clave de acceso para la Red WiFi \"PARA UN EQUIPO - DURANTE TODA LA FERIA\" valor a partir de 7 dias",{"$f":"CONCATENATE(A51:A290,\" \",B51:B290)","v":"3071420 Clave de acceso para la Red WiFi \"PARA UN EQUIPO - DURANTE TODA LA FERIA\" valor a partir de 7 dias"}]
[3071423,"Conexión para Datafono + Clave de acceso WIFI (Para un equipo durante toda la feria) valor de 3 dias ",{"$f":"CONCATENATE(A52:A291,\" \",B52:B291)","v":"3071423 Conexión para Datafono + Clave de acceso WIFI (Para un equipo durante toda la feria) valor de 3 dias "}]
[3071423,"Conexión para Datafono + Clave de acceso WIFI (Para un equipo durante toda la feria)  valor de 4 a 6 dias",{"$f":"CONCATENATE(A53:A292,\" \",B53:B292)","v":"3071423 Conexión para Datafono + Clave de acceso WIFI (Para un equipo durante toda la feria)  valor de 4 a 6 dias"}]
[3071423,"Conexión para Datafono + Clave de acceso WIFI (Para un equipo durante toda la feria) valor a partir de 7 dias",{"$f":"CONCATENATE(A54:A293,\" \",B54:B293)","v":"3071423 Conexión para Datafono + Clave de acceso WIFI (Para un equipo durante toda la feria) valor a partir de 7 dias"}]
[3071424,"Conexión para Datafono + Servicio de Internet Cableado (Para un equipo durante toda la feria) valor de 3 dias ",{"$f":"CONCATENATE(A55:A294,\" \",B55:B294)","v":"3071424 Conexión para Datafono + Servicio de Internet Cableado (Para un equipo durante toda la feria) valor de 3 dias "}]
[3071424,"Conexión para Datafono + Servicio de Internet Cableado (Para un equipo durante toda la feria)  valor de 4 a 6 dias",{"$f":"CONCATENATE(A56:A295,\" \",B56:B295)","v":"3071424 Conexión para Datafono + Servicio de Internet Cableado (Para un equipo durante toda la feria)  valor de 4 a 6 dias"}]
[3071424,"Conexión para Datafono + Servicio de Internet Cableado (Para un equipo durante toda la feria) valor a partir de 7 dias",{"$f":"CONCATENATE(A57:A296,\" \",B57:B296)","v":"3071424 Conexión para Datafono + Servicio de Internet Cableado (Para un equipo durante toda la feria) valor a partir de 7 dias"}]
[3071425,"Servicio de Internet Cableado + Clave de acceso WIFI (Para un equipo durante toda la feria) valor de 3 dias ",{"$f":"CONCATENATE(A58:A297,\" \",B58:B297)","v":"3071425 Servicio de Internet Cableado + Clave de acceso WIFI (Para un equipo durante toda la feria) valor de 3 dias "}]
[3071425,"Servicio de Internet Cableado + Clave de acceso WIFI (Para un equipo durante toda la feria)  valor de 4 a 6 dias",{"$f":"CONCATENATE(A59:A298,\" \",B59:B298)","v":"3071425 Servicio de Internet Cableado + Clave de acceso WIFI (Para un equipo durante toda la feria)  valor de 4 a 6 dias"}]
[3071425,"Servicio de Internet Cableado + Clave de acceso WIFI (Para un equipo durante toda la feria) valor a partir de 7 dias",{"$f":"CONCATENATE(A60:A299,\" \",B60:B299)","v":"3071425 Servicio de Internet Cableado + Clave de acceso WIFI (Para un equipo durante toda la feria) valor a partir de 7 dias"}]
[3071437,"Internet Dedicado: Si requiere conexión banda ancha para diferentes servicios o redes locales, contáctese con serviciosplus@corferias.com para brindarle asesoria y cotización.",{"$f":"CONCATENATE(A61:A300,\" \",B61:B300)","v":"3071437 Internet Dedicado: Si requiere conexión banda ancha para diferentes servicios o redes locales, contáctese con serviciosplus@corferias.com para brindarle asesoria y cotización."}]
[3071406,"Instalación Punto de Red:Incluye un cable UTP por punto",{"$f":"CONCATENATE(A62:A301,\" \",B62:B301)","v":"3071406 Instalación Punto de Red:Incluye un cable UTP por punto"}]
[3071407,"Switch VALOR POR FERIA ",{"$f":"CONCATENATE(A63:A302,\" \",B63:B302)","v":"3071407 Switch VALOR POR FERIA "}]
[3071402,"Servicio de VLAN: Servicio virtual de red.  VALOR POR FERIA",{"$f":"CONCATENATE(A64:A303,\" \",B64:B303)","v":"3071402 Servicio de VLAN: Servicio virtual de red.  VALOR POR FERIA"}]
[3071430,"Extension LAN VALOR POR FERIA  (Incluye punto de red y aplica para extender el servicio de internet contratado con terceros)",{"$f":"CONCATENATE(A65:A304,\" \",B65:B304)","v":"3071430 Extension LAN VALOR POR FERIA  (Incluye punto de red y aplica para extender el servicio de internet contratado con terceros)"}]
[3071442,"Soporte técnico permanente (Por espacio de 8 horas) de un técnico. VALOR DÍARIO ",{"$f":"CONCATENATE(A66:A305,\" \",B66:B305)","v":"3071442 Soporte técnico permanente (Por espacio de 8 horas) de un técnico. VALOR DÍARIO "}]
[3070202,"Servicio Telefónico Urbano con Aparato (Incluye consumo local ilimitado)",{"$f":"CONCATENATE(A67:A306,\" \",B67:B306)","v":"3070202 Servicio Telefónico Urbano con Aparato (Incluye consumo local ilimitado)"}]
[3070203,"Servicio Telefónico Larga Distancia con aparato",{"$f":"CONCATENATE(A68:A307,\" \",B68:B307)","v":"3070203 Servicio Telefónico Larga Distancia con aparato"}]
[3070201,"Línea Externa no conmutada (Previa solicitud a Etb, Claro, EPM, Colomsat u otro operador)",{"$f":"CONCATENATE(A69:A308,\" \",B69:B308)","v":"3070201 Línea Externa no conmutada (Previa solicitud a Etb, Claro, EPM, Colomsat u otro operador)"}]
[3070207,"Conexión cableada para Datafono:(No incluye Datafono)",{"$f":"CONCATENATE(A70:A309,\" \",B70:B309)","v":"3070207 Conexión cableada para Datafono:(No incluye Datafono)"}]
[3071105,"KIT básico oficina 2 (2 sillas interlocutoras, 1 silla ejecutiva, 1 mesa oficina) Valor ferias de 1 a 6 dias",{"$f":"CONCATENATE(A71:A312,\" \",B71:B312)","v":"3071105 KIT básico oficina 2 (2 sillas interlocutoras, 1 silla ejecutiva, 1 mesa oficina) Valor ferias de 1 a 6 dias"}]
[3071105,"KIT básico oficina 2 (2 sillas interlocutoras, 1 silla ejecutiva, 1 mesa oficina) Valor ferias apartir de 7 dias en adelante",{"$f":"CONCATENATE(A72:A313,\" \",B72:B313)","v":"3071105 KIT básico oficina 2 (2 sillas interlocutoras, 1 silla ejecutiva, 1 mesa oficina) Valor ferias apartir de 7 dias en adelante"}]
[3071036,"Mesa plegable plastico + 2 sillas interlocutoras Valor ferias de 1 a 6 dias",{"$f":"CONCATENATE(A73:A314,\" \",B73:B314)","v":"3071036 Mesa plegable plastico + 2 sillas interlocutoras Valor ferias de 1 a 6 dias"}]
[3071036,"Mesa plegable plastico + 2 sillas interlocutoras Valor ferias apartir de 7 dias en adelante",{"$f":"CONCATENATE(A74:A315,\" \",B74:B315)","v":"3071036 Mesa plegable plastico + 2 sillas interlocutoras Valor ferias apartir de 7 dias en adelante"}]
[3071039,"Mesa alta Daysa + 2 sillas neumaticas altas marsella Valor ferias de 1 a 6 dias",{"$f":"CONCATENATE(A75:A316,\" \",B75:B316)","v":"3071039 Mesa alta Daysa + 2 sillas neumaticas altas marsella Valor ferias de 1 a 6 dias"}]
[3071039,"Mesa alta Daysa + 2 sillas neumaticas altas marsella Valor ferias apartir de 7 dias en adelante",{"$f":"CONCATENATE(A76:A317,\" \",B76:B317)","v":"3071039 Mesa alta Daysa + 2 sillas neumaticas altas marsella Valor ferias apartir de 7 dias en adelante"}]
[3071054,"Mesa estandar lotus vidrio + 2 sillas tipo huevo Valor ferias de 1 a 6 dias",{"$f":"CONCATENATE(A77:A318,\" \",B77:B318)","v":"3071054 Mesa estandar lotus vidrio + 2 sillas tipo huevo Valor ferias de 1 a 6 dias"}]
[3071054,"Mesa estandar lotus vidrio + 2 sillas tipo huevo Valor ferias apartir de 7 dias en adelante",{"$f":"CONCATENATE(A78:A319,\" \",B78:B319)","v":"3071054 Mesa estandar lotus vidrio + 2 sillas tipo huevo Valor ferias apartir de 7 dias en adelante"}]
[3071078,"Silla con Espaldar Arles (75cm x 38cm x39cm) Valor ferias de 1 a 6 dias",{"$f":"CONCATENATE(A79:A322,\" \",B79:B322)","v":"3071078 Silla con Espaldar Arles (75cm x 38cm x39cm) Valor ferias de 1 a 6 dias"}]
[3071078,"Silla con Espaldar Arles (75cm x 38cm x39cm) Valor ferias apartir de 7 dias en adelante",{"$f":"CONCATENATE(A80:A323,\" \",B80:B323)","v":"3071078 Silla con Espaldar Arles (75cm x 38cm x39cm) Valor ferias apartir de 7 dias en adelante"}]
[30713198,"Silla Gerencial (119cm x 67cm x 78cm) Valor ferias de 1 a 6 dias",{"$f":"CONCATENATE(A81:A324,\" \",B81:B324)","v":"30713198 Silla Gerencial (119cm x 67cm x 78cm) Valor ferias de 1 a 6 dias"}]
[30713198,"Silla Gerencial (119cm x 67cm x 78cm) Valor ferias apartir de 7 dias en adelante",{"$f":"CONCATENATE(A82:A325,\" \",B82:B325)","v":"30713198 Silla Gerencial (119cm x 67cm x 78cm) Valor ferias apartir de 7 dias en adelante"}]
[3071081,"Silla Ejecutiva (79cm x 53cm x 42cm) Valor ferias de 1 a 6 dias",{"$f":"CONCATENATE(A83:A326,\" \",B83:B326)","v":"3071081 Silla Ejecutiva (79cm x 53cm x 42cm) Valor ferias de 1 a 6 dias"}]
[3071081,"Silla Ejecutiva (79cm x 53cm x 42cm) Valor ferias apartir de 7 dias en adelante",{"$f":"CONCATENATE(A84:A327,\" \",B84:B327)","v":"3071081 Silla Ejecutiva (79cm x 53cm x 42cm) Valor ferias apartir de 7 dias en adelante"}]
[3071061,"Silla estandar Suiza (48cm x 46cm x 45cm) Valor ferias de 1 a 6 dias",{"$f":"CONCATENATE(A85:A328,\" \",B85:B328)","v":"3071061 Silla estandar Suiza (48cm x 46cm x 45cm) Valor ferias de 1 a 6 dias"}]
[3071061,"Silla estandar Suiza (48cm x 46cm x 45cm) Valor ferias apartir de 7 dias en adelante",{"$f":"CONCATENATE(A86:A329,\" \",B86:B329)","v":"3071061 Silla estandar Suiza (48cm x 46cm x 45cm) Valor ferias apartir de 7 dias en adelante"}]
[3071008,"Silla estandar Tipo Huevo (48cm x 46cm x 45cm) Valor ferias de 1 a 6 dias",{"$f":"CONCATENATE(A87:A330,\" \",B87:B330)","v":"3071008 Silla estandar Tipo Huevo (48cm x 46cm x 45cm) Valor ferias de 1 a 6 dias"}]
[3071008,"Silla estandar Tipo Huevo (48cm x 46cm x 45cm) Valor ferias apartir de 7 dias en adelante",{"$f":"CONCATENATE(A88:A331,\" \",B88:B331)","v":"3071008 Silla estandar Tipo Huevo (48cm x 46cm x 45cm) Valor ferias apartir de 7 dias en adelante"}]
[3071006,"Silla Interlocutora Negra (79cm x 53cm x 42cm) Valor ferias de 1 a 6 dias",{"$f":"CONCATENATE(A89:A332,\" \",B89:B332)","v":"3071006 Silla Interlocutora Negra (79cm x 53cm x 42cm) Valor ferias de 1 a 6 dias"}]
[3071006,"Silla Interlocutora Negra (79cm x 53cm x 42cm) Valor ferias apartir de 7 dias en adelante",{"$f":"CONCATENATE(A90:A333,\" \",B90:B333)","v":"3071006 Silla Interlocutora Negra (79cm x 53cm x 42cm) Valor ferias apartir de 7 dias en adelante"}]
[3071022,"Silla Neumatica alta Versalles (80cm x 40 cm x 40cm) Valor ferias de 1 a 6 dias",{"$f":"CONCATENATE(A91:A334,\" \",B91:B334)","v":"3071022 Silla Neumatica alta Versalles (80cm x 40 cm x 40cm) Valor ferias de 1 a 6 dias"}]
[3071022,"Silla Neumatica alta Versalles (80cm x 40 cm x 40cm) Valor ferias apartir de 7 dias en adelante",{"$f":"CONCATENATE(A92:A335,\" \",B92:B335)","v":"3071022 Silla Neumatica alta Versalles (80cm x 40 cm x 40cm) Valor ferias apartir de 7 dias en adelante"}]
[3071077,"Silla Neumática alta Marsella (80cm x 40cm x 40cm) Valor ferias de 1 a 6 dias",{"$f":"CONCATENATE(A93:A336,\" \",B93:B336)","v":"3071077 Silla Neumática alta Marsella (80cm x 40cm x 40cm) Valor ferias de 1 a 6 dias"}]
[3071077,"Silla Neumática alta Marsella (80cm x 40cm x 40cm) Valor ferias apartir de 7 dias en adelante",{"$f":"CONCATENATE(A94:A337,\" \",B94:B337)","v":"3071077 Silla Neumática alta Marsella (80cm x 40cm x 40cm) Valor ferias apartir de 7 dias en adelante"}]
[3071092,"Silla Neumatica alta POP (Blanca o negra) (80cm x 43cm x 40cm) Valor ferias de 1 a 6 dias",{"$f":"CONCATENATE(A95:A338,\" \",B95:B338)","v":"3071092 Silla Neumatica alta POP (Blanca o negra) (80cm x 43cm x 40cm) Valor ferias de 1 a 6 dias"}]
[3071092,"Silla Neumatica alta POP (Blanca o negra) (80cm x 43cm x 40cm) Valor ferias apartir de 7 dias en adelante",{"$f":"CONCATENATE(A96:A339,\" \",B96:B339)","v":"3071092 Silla Neumatica alta POP (Blanca o negra) (80cm x 43cm x 40cm) Valor ferias apartir de 7 dias en adelante"}]
[3070503,"Estantería Polo (Melaminico)   (100cm x 93cm x 35cm) Valor ferias de 1 a 6 dias",{"$f":"CONCATENATE(A97:A340,\" \",B97:B340)","v":"3070503 Estantería Polo (Melaminico)   (100cm x 93cm x 35cm) Valor ferias de 1 a 6 dias"}]
[3070503,"Estantería Polo (Melaminico)   (100cm x 93cm x 35cm) Valor ferias apartir de 7 dias en adelante",{"$f":"CONCATENATE(A98:A341,\" \",B98:B341)","v":"3070503 Estantería Polo (Melaminico)   (100cm x 93cm x 35cm) Valor ferias apartir de 7 dias en adelante"}]
[3070503,"Estantería Polo (Miel)  (100cm x 93cm x 35cm) Valor ferias de 1 a 6 dias",{"$f":"CONCATENATE(A99:A342,\" \",B99:B342)","v":"3070503 Estantería Polo (Miel)  (100cm x 93cm x 35cm) Valor ferias de 1 a 6 dias"}]
[3070503,"Estantería Polo (Miel)  (100cm x 93cm x 35cm) Valor ferias apartir de 7 dias en adelante",{"$f":"CONCATENATE(A100:A343,\" \",B100:B343)","v":"3070503 Estantería Polo (Miel)  (100cm x 93cm x 35cm) Valor ferias apartir de 7 dias en adelante"}]
[3070503,"Estantería Polo (Rovere)  (100cm x 93cm x 35cm) Valor ferias de 1 a 6 dias",{"$f":"CONCATENATE(A101:A344,\" \",B101:B344)","v":"3070503 Estantería Polo (Rovere)  (100cm x 93cm x 35cm) Valor ferias de 1 a 6 dias"}]
[3070503,"Estantería Polo (Rovere)  (100cm x 93cm x 35cm) Valor ferias apartir de 7 dias en adelante",{"$f":"CONCATENATE(A102:A345,\" \",B102:B345)","v":"3070503 Estantería Polo (Rovere)  (100cm x 93cm x 35cm) Valor ferias apartir de 7 dias en adelante"}]
[3070503,"Estantería Polo (Roble Gris)  (100cm x 93cm x 35cm) Valor ferias de 1 a 6 dias",{"$f":"CONCATENATE(A103:A346,\" \",B103:B346)","v":"3070503 Estantería Polo (Roble Gris)  (100cm x 93cm x 35cm) Valor ferias de 1 a 6 dias"}]
[3070503,"Estantería Polo (Roble Gris)  (100cm x 93cm x 35cm) Valor ferias apartir de 7 dias en adelante",{"$f":"CONCATENATE(A104:A347,\" \",B104:B347)","v":"3070503 Estantería Polo (Roble Gris)  (100cm x 93cm x 35cm) Valor ferias apartir de 7 dias en adelante"}]
[3071108,"Estantería Shelf 4E (190cm x 125cm x 41cm) Valor ferias de 1 a 6 dias",{"$f":"CONCATENATE(A105:A348,\" \",B105:B348)","v":"3071108 Estantería Shelf 4E (190cm x 125cm x 41cm) Valor ferias de 1 a 6 dias"}]
[3071108,"Estantería Shelf 4E (190cm x 125cm x 41cm) Valor ferias apartir de 7 dias en adelante",{"$f":"CONCATENATE(A106:A349,\" \",B106:B349)","v":"3071108 Estantería Shelf 4E (190cm x 125cm x 41cm) Valor ferias apartir de 7 dias en adelante"}]
[3071107,"Archivador Regina (70cm x 37cm x50cm) Valor ferias de 1 a 6 dias",{"$f":"CONCATENATE(A107:A350,\" \",B107:B350)","v":"3071107 Archivador Regina (70cm x 37cm x50cm) Valor ferias de 1 a 6 dias"}]
[3071107,"Archivador Regina (70cm x 37cm x50cm) Valor ferias apartir de 7 dias en adelante",{"$f":"CONCATENATE(A108:A351,\" \",B108:B351)","v":"3071107 Archivador Regina (70cm x 37cm x50cm) Valor ferias apartir de 7 dias en adelante"}]
[3070954,"Counter Mónaco (Melaminico) (100cm x 100cm x 40cm) Valor ferias de 1 a 6 dias",{"$f":"CONCATENATE(A109:A352,\" \",B109:B352)","v":"3070954 Counter Mónaco (Melaminico) (100cm x 100cm x 40cm) Valor ferias de 1 a 6 dias"}]
[3070954,"Counter Mónaco (Melaminico) (100cm x 100cm x 40cm) Valor ferias apartir de 7 dias en adelante",{"$f":"CONCATENATE(A110:A353,\" \",B110:B353)","v":"3070954 Counter Mónaco (Melaminico) (100cm x 100cm x 40cm) Valor ferias apartir de 7 dias en adelante"}]
[3070954,"Counter Mónaco (Miel) (100cm x 100cm x 40cm) Valor ferias de 1 a 6 dias",{"$f":"CONCATENATE(A111:A354,\" \",B111:B354)","v":"3070954 Counter Mónaco (Miel) (100cm x 100cm x 40cm) Valor ferias de 1 a 6 dias"}]
[3070954,"Counter Mónaco (Miel) (100cm x 100cm x 40cm) Valor ferias apartir de 7 dias en adelante",{"$f":"CONCATENATE(A112:A355,\" \",B112:B355)","v":"3070954 Counter Mónaco (Miel) (100cm x 100cm x 40cm) Valor ferias apartir de 7 dias en adelante"}]
[3070954,"Counter Mónaco (Rovere) (100cm x 100cm x 40cm) Valor ferias de 1 a 6 dias",{"$f":"CONCATENATE(A113:A356,\" \",B113:B356)","v":"3070954 Counter Mónaco (Rovere) (100cm x 100cm x 40cm) Valor ferias de 1 a 6 dias"}]
[3070954,"Counter Mónaco (Rovere) (100cm x 100cm x 40cm) Valor ferias apartir de 7 dias en adelante",{"$f":"CONCATENATE(A114:A357,\" \",B114:B357)","v":"3070954 Counter Mónaco (Rovere) (100cm x 100cm x 40cm) Valor ferias apartir de 7 dias en adelante"}]
[3070954,"Counter Mónaco (Roble Gris) (100cm x 100cm x 40cm) Valor ferias de 1 a 6 dias",{"$f":"CONCATENATE(A115:A358,\" \",B115:B358)","v":"3070954 Counter Mónaco (Roble Gris) (100cm x 100cm x 40cm) Valor ferias de 1 a 6 dias"}]
[3070954,"Counter Mónaco (Roble Gris) (100cm x 100cm x 40cm) Valor ferias apartir de 7 dias en adelante",{"$f":"CONCATENATE(A116:A359,\" \",B116:B359)","v":"3070954 Counter Mónaco (Roble Gris) (100cm x 100cm x 40cm) Valor ferias apartir de 7 dias en adelante"}]
[3070535,"Vitrina Isla 2E (200cm x 50cm x 50cm) Valor ferias de 1 a 6 dias",{"$f":"CONCATENATE(A117:A360,\" \",B117:B360)","v":"3070535 Vitrina Isla 2E (200cm x 50cm x 50cm) Valor ferias de 1 a 6 dias"}]
[3070535,"Vitrina Isla 2E (200cm x 50cm x 50cm) Valor ferias apartir de 7 dias en adelante",{"$f":"CONCATENATE(A118:A361,\" \",B118:B361)","v":"3070535 Vitrina Isla 2E (200cm x 50cm x 50cm) Valor ferias apartir de 7 dias en adelante"}]
[3070517,"Vitrina Mostrador 1E (100cm x 100cm x 40cm) Valor ferias de 1 a 6 dias",{"$f":"CONCATENATE(A119:A362,\" \",B119:B362)","v":"3070517 Vitrina Mostrador 1E (100cm x 100cm x 40cm) Valor ferias de 1 a 6 dias"}]
[3070517,"Vitrina Mostrador 1E (100cm x 100cm x 40cm) Valor ferias apartir de 7 dias en adelante",{"$f":"CONCATENATE(A120:A363,\" \",B120:B363)","v":"3070517 Vitrina Mostrador 1E (100cm x 100cm x 40cm) Valor ferias apartir de 7 dias en adelante"}]
[3070518,"Vitrina Mostrador Tipo 2 1E (100cm x 50 cm x 40cm) Valor ferias de 1 a 6 dias",{"$f":"CONCATENATE(A121:A364,\" \",B121:B364)","v":"3070518 Vitrina Mostrador Tipo 2 1E (100cm x 50 cm x 40cm) Valor ferias de 1 a 6 dias"}]
[3070518,"Vitrina Mostrador Tipo 2 1E (100cm x 50 cm x 40cm) Valor ferias apartir de 7 dias en adelante",{"$f":"CONCATENATE(A122:A365,\" \",B122:B365)","v":"3070518 Vitrina Mostrador Tipo 2 1E (100cm x 50 cm x 40cm) Valor ferias apartir de 7 dias en adelante"}]
[3071111,"Vitrina Rectangular 2E (200cm x 100cm x 40cm) Valor ferias de 1 a 6 dias",{"$f":"CONCATENATE(A123:A366,\" \",B123:B366)","v":"3071111 Vitrina Rectangular 2E (200cm x 100cm x 40cm) Valor ferias de 1 a 6 dias"}]
[3071111,"Vitrina Rectangular 2E (200cm x 100cm x 40cm) Valor ferias apartir de 7 dias en adelante",{"$f":"CONCATENATE(A124:A367,\" \",B124:B367)","v":"3071111 Vitrina Rectangular 2E (200cm x 100cm x 40cm) Valor ferias apartir de 7 dias en adelante"}]
[30713199,"Vitrina Rectangular 3E (180cm x 100cm x 40cm) Valor ferias de 1 a 6 dias",{"$f":"CONCATENATE(A125:A368,\" \",B125:B368)","v":"30713199 Vitrina Rectangular 3E (180cm x 100cm x 40cm) Valor ferias de 1 a 6 dias"}]
[30713199,"Vitrina Rectangular 3E (180cm x 100cm x 40cm) Valor ferias apartir de 7 dias en adelante",{"$f":"CONCATENATE(A126:A369,\" \",B126:B369)","v":"30713199 Vitrina Rectangular 3E (180cm x 100cm x 40cm) Valor ferias apartir de 7 dias en adelante"}]
[3071115,"Mesa alta Daysa (Melaminico) (100cm x 60cm) Valor ferias de 1 a 6 dias",{"$f":"CONCATENATE(A127:A370,\" \",B127:B370)","v":"3071115 Mesa alta Daysa (Melaminico) (100cm x 60cm) Valor ferias de 1 a 6 dias"}]
[3071115,"Mesa alta Daysa (Melaminico) (100cm x 60cm) Valor ferias apartir de 7 dias en adelante",{"$f":"CONCATENATE(A128:A371,\" \",B128:B371)","v":"3071115 Mesa alta Daysa (Melaminico) (100cm x 60cm) Valor ferias apartir de 7 dias en adelante"}]
[3071115,"Mesa alta Daysa (Miel) (100cm x 60cm) Valor ferias de 1 a 6 dias",{"$f":"CONCATENATE(A129:A372,\" \",B129:B372)","v":"3071115 Mesa alta Daysa (Miel) (100cm x 60cm) Valor ferias de 1 a 6 dias"}]
[3071115,"Mesa alta Daysa (Miel) (100cm x 60cm) Valor ferias apartir de 7 dias en adelante",{"$f":"CONCATENATE(A130:A373,\" \",B130:B373)","v":"3071115 Mesa alta Daysa (Miel) (100cm x 60cm) Valor ferias apartir de 7 dias en adelante"}]
[3071115,"Mesa alta Daysa (Rovere) (100cm x 60cm) Valor ferias de 1 a 6 dias",{"$f":"CONCATENATE(A131:A374,\" \",B131:B374)","v":"3071115 Mesa alta Daysa (Rovere) (100cm x 60cm) Valor ferias de 1 a 6 dias"}]
[3071115,"Mesa alta Daysa (Rovere) (100cm x 60cm) Valor ferias apartir de 7 dias en adelante",{"$f":"CONCATENATE(A132:A375,\" \",B132:B375)","v":"3071115 Mesa alta Daysa (Rovere) (100cm x 60cm) Valor ferias apartir de 7 dias en adelante"}]
[3071115,"Mesa alta Daysa (Roble Gris) (100cm x 60cm) Valor ferias de 1 a 6 dias",{"$f":"CONCATENATE(A133:A376,\" \",B133:B376)","v":"3071115 Mesa alta Daysa (Roble Gris) (100cm x 60cm) Valor ferias de 1 a 6 dias"}]
[3071115,"Mesa alta Daysa (Roble Gris) (100cm x 60cm) Valor ferias apartir de 7 dias en adelante",{"$f":"CONCATENATE(A134:A377,\" \",B134:B377)","v":"3071115 Mesa alta Daysa (Roble Gris) (100cm x 60cm) Valor ferias apartir de 7 dias en adelante"}]
[3071093,"Mesa alta Daysa vidrio (100cm x 60cm) Valor ferias de 1 a 6 dias",{"$f":"CONCATENATE(A135:A378,\" \",B135:B378)","v":"3071093 Mesa alta Daysa vidrio (100cm x 60cm) Valor ferias de 1 a 6 dias"}]
[3071093,"Mesa alta Daysa vidrio (100cm x 60cm) Valor ferias apartir de 7 dias en adelante",{"$f":"CONCATENATE(A136:A379,\" \",B136:B379)","v":"3071093 Mesa alta Daysa vidrio (100cm x 60cm) Valor ferias apartir de 7 dias en adelante"}]
[3071104,"Mesa Centro 2 Niveles (melaminico) (50cm x 60cm x 60) Valor ferias de 1 a 6 dias",{"$f":"CONCATENATE(A137:A380,\" \",B137:B380)","v":"3071104 Mesa Centro 2 Niveles (melaminico) (50cm x 60cm x 60) Valor ferias de 1 a 6 dias"}]
[3071104,"Mesa Centro 2 Niveles (melaminico) (50cm x 60cm x 60) Valor ferias apartir de 7 dias en adelante",{"$f":"CONCATENATE(A138:A381,\" \",B138:B381)","v":"3071104 Mesa Centro 2 Niveles (melaminico) (50cm x 60cm x 60) Valor ferias apartir de 7 dias en adelante"}]
[3071100,"Mesa Centro Circular doble nivel (melaminico) (50cm x 110cm x 60cm) Valor ferias de 1 a 6 dias",{"$f":"CONCATENATE(A139:A382,\" \",B139:B382)","v":"3071100 Mesa Centro Circular doble nivel (melaminico) (50cm x 110cm x 60cm) Valor ferias de 1 a 6 dias"}]
[3071100,"Mesa Centro Circular doble nivel (melaminico) (50cm x 110cm x 60cm) Valor ferias apartir de 7 dias en adelante",{"$f":"CONCATENATE(A140:A383,\" \",B140:B383)","v":"3071100 Mesa Centro Circular doble nivel (melaminico) (50cm x 110cm x 60cm) Valor ferias apartir de 7 dias en adelante"}]
[3071068,"Mesa Centro Rectangular doble nivel (melaminico) (50cm x 75cm x 50cm) Valor ferias de 1 a 6 dias",{"$f":"CONCATENATE(A141:A384,\" \",B141:B384)","v":"3071068 Mesa Centro Rectangular doble nivel (melaminico) (50cm x 75cm x 50cm) Valor ferias de 1 a 6 dias"}]
[3071068,"Mesa Centro Rectangular doble nivel (melaminico) (50cm x 75cm x 50cm) Valor ferias apartir de 7 dias en adelante",{"$f":"CONCATENATE(A142:A385,\" \",B142:B385)","v":"3071068 Mesa Centro Rectangular doble nivel (melaminico) (50cm x 75cm x 50cm) Valor ferias apartir de 7 dias en adelante"}]
[3071097,"Mesa estandar Daysa (76cm x 60cm) Valor ferias de 1 a 6 dias",{"$f":"CONCATENATE(A143:A386,\" \",B143:B386)","v":"3071097 Mesa estandar Daysa (76cm x 60cm) Valor ferias de 1 a 6 dias"}]
[3071097,"Mesa estandar Daysa (76cm x 60cm) Valor ferias apartir de 7 dias en adelante",{"$f":"CONCATENATE(A144:A387,\" \",B144:B387)","v":"3071097 Mesa estandar Daysa (76cm x 60cm) Valor ferias apartir de 7 dias en adelante"}]
[3071116,"Mesa estandar Lotus (70cm x 64cm x 81cm) Valor ferias de 1 a 6 dias",{"$f":"CONCATENATE(A145:A388,\" \",B145:B388)","v":"3071116 Mesa estandar Lotus (70cm x 64cm x 81cm) Valor ferias de 1 a 6 dias"}]
[3071116,"Mesa estandar Lotus (70cm x 64cm x 81cm) Valor ferias apartir de 7 dias en adelante",{"$f":"CONCATENATE(A146:A389,\" \",B146:B389)","v":"3071116 Mesa estandar Lotus (70cm x 64cm x 81cm) Valor ferias apartir de 7 dias en adelante"}]
[3071098,"Mesa estandar Shia (76cm x 60cm x 60cm) Valor ferias de 1 a 6 dias",{"$f":"CONCATENATE(A147:A390,\" \",B147:B390)","v":"3071098 Mesa estandar Shia (76cm x 60cm x 60cm) Valor ferias de 1 a 6 dias"}]
[3071098,"Mesa estandar Shia (76cm x 60cm x 60cm) Valor ferias apartir de 7 dias en adelante",{"$f":"CONCATENATE(A148:A391,\" \",B148:B391)","v":"3071098 Mesa estandar Shia (76cm x 60cm x 60cm) Valor ferias apartir de 7 dias en adelante"}]
[30713200,"Mesa Oficina (78cm x 120cm x 50cm) Valor ferias de 1 a 6 dias",{"$f":"CONCATENATE(A149:A392,\" \",B149:B392)","v":"30713200 Mesa Oficina (78cm x 120cm x 50cm) Valor ferias de 1 a 6 dias"}]
[30713200,"Mesa Oficina (78cm x 120cm x 50cm) Valor ferias apartir de 7 dias en adelante",{"$f":"CONCATENATE(A150:A393,\" \",B150:B393)","v":"30713200 Mesa Oficina (78cm x 120cm x 50cm) Valor ferias apartir de 7 dias en adelante"}]
[3070936,"Mesón plegable plástico (Gris o blanco) (73cm x 182cm x 76cm) Valor ferias de 1 a 6 dias",{"$f":"CONCATENATE(A151:A394,\" \",B151:B394)","v":"3070936 Mesón plegable plástico (Gris o blanco) (73cm x 182cm x 76cm) Valor ferias de 1 a 6 dias"}]
[3070936,"Mesón plegable plástico (Gris o blanco) (73cm x 182cm x 76cm) Valor ferias apartir de 7 dias en adelante",{"$f":"CONCATENATE(A152:A395,\" \",B152:B395)","v":"3070936 Mesón plegable plástico (Gris o blanco) (73cm x 182cm x 76cm) Valor ferias apartir de 7 dias en adelante"}]
[3071113,"Sala Osaka (1 sofá Toronto, 2 puffs Donna, 1 mesa centro 2 niveles) Valor ferias de 1 a 6 dias",{"$f":"CONCATENATE(A153:A398,\" \",B153:B398)","v":"3071113 Sala Osaka (1 sofá Toronto, 2 puffs Donna, 1 mesa centro 2 niveles) Valor ferias de 1 a 6 dias"}]
[3071113,"Sala Osaka (1 sofá Toronto, 2 puffs Donna, 1 mesa centro 2 niveles) Valor ferias apartir de 7 dias en adelante",{"$f":"CONCATENATE(A154:A399,\" \",B154:B399)","v":"3071113 Sala Osaka (1 sofá Toronto, 2 puffs Donna, 1 mesa centro 2 niveles) Valor ferias apartir de 7 dias en adelante"}]
[3071095,"Sala VIP (1 sofá Victoria derecho, 1 sofá Victoria izquierdo, 2 poltronas, 1 mesa centro 2 niveles) Valor ferias de 1 a 6 dias",{"$f":"CONCATENATE(A155:A400,\" \",B155:B400)","v":"3071095 Sala VIP (1 sofá Victoria derecho, 1 sofá Victoria izquierdo, 2 poltronas, 1 mesa centro 2 niveles) Valor ferias de 1 a 6 dias"}]
[3071095,"Sala VIP (1 sofá Victoria derecho, 1 sofá Victoria izquierdo, 2 poltronas, 1 mesa centro 2 niveles) Valor ferias apartir de 7 dias en adelante",{"$f":"CONCATENATE(A156:A401,\" \",B156:B401)","v":"3071095 Sala VIP (1 sofá Victoria derecho, 1 sofá Victoria izquierdo, 2 poltronas, 1 mesa centro 2 niveles) Valor ferias apartir de 7 dias en adelante"}]
[3071090,"Puff estandar cuadrado (43cm x 43cm x 43cm) Valor ferias de 1 a 6 dias",{"$f":"CONCATENATE(A157:A402,\" \",B157:B402)","v":"3071090 Puff estandar cuadrado (43cm x 43cm x 43cm) Valor ferias de 1 a 6 dias"}]
[3071090,"Puff estandar cuadrado (43cm x 43cm x 43cm) Valor ferias apartir de 7 dias en adelante",{"$f":"CONCATENATE(A158:A403,\" \",B158:B403)","v":"3071090 Puff estandar cuadrado (43cm x 43cm x 43cm) Valor ferias apartir de 7 dias en adelante"}]
[3071091,"Puff Trunk 2 cuerpos (48cm x 81cm x 40cm) Valor ferias de 1 a 6 dias",{"$f":"CONCATENATE(A159:A404,\" \",B159:B404)","v":"3071091 Puff Trunk 2 cuerpos (48cm x 81cm x 40cm) Valor ferias de 1 a 6 dias"}]
[3071091,"Puff Trunk 2 cuerpos (48cm x 81cm x 40cm) Valor ferias apartir de 7 dias en adelante",{"$f":"CONCATENATE(A160:A405,\" \",B160:B405)","v":"3071091 Puff Trunk 2 cuerpos (48cm x 81cm x 40cm) Valor ferias apartir de 7 dias en adelante"}]
[3071114,"Puff Trunk 3 cuerpos (48cm x 120cm x 54cm) Valor ferias de 1 a 6 dias",{"$f":"CONCATENATE(A161:A406,\" \",B161:B406)","v":"3071114 Puff Trunk 3 cuerpos (48cm x 120cm x 54cm) Valor ferias de 1 a 6 dias"}]
[3071114,"Puff Trunk 3 cuerpos (48cm x 120cm x 54cm) Valor ferias apartir de 7 dias en adelante",{"$f":"CONCATENATE(A162:A407,\" \",B162:B407)","v":"3071114 Puff Trunk 3 cuerpos (48cm x 120cm x 54cm) Valor ferias apartir de 7 dias en adelante"}]
[3071085,"Sofa Otawa 2 cuerpos (85cm x 120cm x 76cm) Valor ferias de 1 a 6 dias",{"$f":"CONCATENATE(A163:A408,\" \",B163:B408)","v":"3071085 Sofa Otawa 2 cuerpos (85cm x 120cm x 76cm) Valor ferias de 1 a 6 dias"}]
[3071085,"Sofa Otawa 2 cuerpos (85cm x 120cm x 76cm) Valor ferias apartir de 7 dias en adelante",{"$f":"CONCATENATE(A164:A409,\" \",B164:B409)","v":"3071085 Sofa Otawa 2 cuerpos (85cm x 120cm x 76cm) Valor ferias apartir de 7 dias en adelante"}]
[3071083,"Sofa Toronto 3 cuerpos (88cm x 173cm x 80cm) Valor ferias de 1 a 6 dias",{"$f":"CONCATENATE(A165:A410,\" \",B165:B410)","v":"3071083 Sofa Toronto 3 cuerpos (88cm x 173cm x 80cm) Valor ferias de 1 a 6 dias"}]
[3071083,"Sofa Toronto 3 cuerpos (88cm x 173cm x 80cm) Valor ferias apartir de 7 dias en adelante",{"$f":"CONCATENATE(A166:A411,\" \",B166:B411)","v":"3071083 Sofa Toronto 3 cuerpos (88cm x 173cm x 80cm) Valor ferias apartir de 7 dias en adelante"}]
[3071031,"Sofa Terranova 2 cuerpos (88cm x 173cm x 80cm) Valor ferias de 1 a 6 dias",{"$f":"CONCATENATE(A167:A412,\" \",B167:B412)","v":"3071031 Sofa Terranova 2 cuerpos (88cm x 173cm x 80cm) Valor ferias de 1 a 6 dias"}]
[3071031,"Sofa Terranova 2 cuerpos (88cm x 173cm x 80cm) Valor ferias apartir de 7 dias en adelante",{"$f":"CONCATENATE(A168:A413,\" \",B168:B413)","v":"3071031 Sofa Terranova 2 cuerpos (88cm x 173cm x 80cm) Valor ferias apartir de 7 dias en adelante"}]
[3071013,"Sofa Victoria derecho (70cm x 100cm x 75cm) Valor ferias de 1 a 6 dias",{"$f":"CONCATENATE(A169:A414,\" \",B169:B414)","v":"3071013 Sofa Victoria derecho (70cm x 100cm x 75cm) Valor ferias de 1 a 6 dias"}]
[3071013,"Sofa Victoria derecho (70cm x 100cm x 75cm) Valor ferias apartir de 7 dias en adelante",{"$f":"CONCATENATE(A170:A415,\" \",B170:B415)","v":"3071013 Sofa Victoria derecho (70cm x 100cm x 75cm) Valor ferias apartir de 7 dias en adelante"}]
[3071023,"Sofa Victoria izquierdo (70cm x 100cm x 75cm) Valor ferias de 1 a 6 dias",{"$f":"CONCATENATE(A171:A416,\" \",B171:B416)","v":"3071023 Sofa Victoria izquierdo (70cm x 100cm x 75cm) Valor ferias de 1 a 6 dias"}]
[3071023,"Sofa Victoria izquierdo (70cm x 100cm x 75cm) Valor ferias apartir de 7 dias en adelante",{"$f":"CONCATENATE(A172:A417,\" \",B172:B417)","v":"3071023 Sofa Victoria izquierdo (70cm x 100cm x 75cm) Valor ferias apartir de 7 dias en adelante"}]
[30713201,"Poltrona Buggy (72cm x 64cm) Valor ferias de 1 a 6 dias",{"$f":"CONCATENATE(A173:A418,\" \",B173:B418)","v":"30713201 Poltrona Buggy (72cm x 64cm) Valor ferias de 1 a 6 dias"}]
[30713201,"Poltrona Buggy (72cm x 64cm) Valor ferias apartir de 7 dias en adelante",{"$f":"CONCATENATE(A174:A419,\" \",B174:B419)","v":"30713201 Poltrona Buggy (72cm x 64cm) Valor ferias apartir de 7 dias en adelante"}]
[3071059,"Poltrona Levis (73cm x 86cm x 78cm) Valor ferias de 1 a 6 dias",{"$f":"CONCATENATE(A175:A420,\" \",B175:B420)","v":"3071059 Poltrona Levis (73cm x 86cm x 78cm) Valor ferias de 1 a 6 dias"}]
[3071059,"Poltrona Levis (73cm x 86cm x 78cm) Valor ferias apartir de 7 dias en adelante",{"$f":"CONCATENATE(A176:A421,\" \",B176:B421)","v":"3071059 Poltrona Levis (73cm x 86cm x 78cm) Valor ferias apartir de 7 dias en adelante"}]
[3071302,"Papelera metálica Valor ferias de 1 a 6 dias",{"$f":"CONCATENATE(A177:A422,\" \",B177:B422)","v":"3071302 Papelera metálica Valor ferias de 1 a 6 dias"}]
[3071302,"Papelera metálica Valor ferias apartir de 7 dias en adelante",{"$f":"CONCATENATE(A178:A423,\" \",B178:B423)","v":"3071302 Papelera metálica Valor ferias apartir de 7 dias en adelante"}]
[3071325,"Poste separador 120cm de alto Valor ferias de 1 a 6 dias",{"$f":"CONCATENATE(A179:A424,\" \",B179:B424)","v":"3071325 Poste separador 120cm de alto Valor ferias de 1 a 6 dias"}]
[3071325,"Poste separador 120cm de alto Valor ferias apartir de 7 dias en adelante",{"$f":"CONCATENATE(A180:A425,\" \",B180:B425)","v":"3071325 Poste separador 120cm de alto Valor ferias apartir de 7 dias en adelante"}]
[3070521,"Perchero básico 1 pedestal (120cm Ancho - Altura) graduable + 5 ganchos",{"$f":"CONCATENATE(A181:A426,\" \",B181:B426)","v":"3070521 Perchero básico 1 pedestal (120cm Ancho - Altura) graduable + 5 ganchos"}]
[3070521,"Perchero doble 2 pedestal (120cm Ancho-Altura) graduable + 5 ganchos",{"$f":"CONCATENATE(A182:A427,\" \",B182:B427)","v":"3070521 Perchero doble 2 pedestal (120cm Ancho-Altura) graduable + 5 ganchos"}]
[3070512,"Locker Torre 1 puesto con 2 + 1/2  entrepaños ",{"$f":"CONCATENATE(A183:A428,\" \",B183:B428)","v":"3070512 Locker Torre 1 puesto con 2 + 1/2  entrepaños "}]
[3070714,"Cubo de exhibición (40cm x 40cm x 25cm) Valor ferias de 1 a 6 dias",{"$f":"CONCATENATE(A184:A428,\" \",B184:B428)","v":"3070714 Cubo de exhibición (40cm x 40cm x 25cm) Valor ferias de 1 a 6 dias"}]
[3070714,"Cubo de exhibición (40cm x 40cm x 25cm) Valor ferias apartir de 7 dias en adelante",{"$f":"CONCATENATE(A185:A429,\" \",B185:B429)","v":"3070714 Cubo de exhibición (40cm x 40cm x 25cm) Valor ferias apartir de 7 dias en adelante"}]
[3070957,"Pedestal cuadrado (30cm x 30cm x 30cm) Valor ferias de 1 a 6 dias",{"$f":"CONCATENATE(A186:A430,\" \",B186:B430)","v":"3070957 Pedestal cuadrado (30cm x 30cm x 30cm) Valor ferias de 1 a 6 dias"}]
[3070957,"Pedestal cuadrado (30cm x 30cm x 30cm) Valor ferias apartir de 7 dias en adelante",{"$f":"CONCATENATE(A187:A433,\" \",B187:B433)","v":"3070957 Pedestal cuadrado (30cm x 30cm x 30cm) Valor ferias apartir de 7 dias en adelante"}]
[3070956,"Pedestal rectangular 60cm (30cm x 60cm x 30cm) Valor ferias de 1 a 6 dias",{"$f":"CONCATENATE(A188:A434,\" \",B188:B434)","v":"3070956 Pedestal rectangular 60cm (30cm x 60cm x 30cm) Valor ferias de 1 a 6 dias"}]
[3070956,"Pedestal rectangular 60cm (30cm x 60cm x 30cm) Valor ferias apartir de 7 dias en adelante",{"$f":"CONCATENATE(A189:A435,\" \",B189:B435)","v":"3070956 Pedestal rectangular 60cm (30cm x 60cm x 30cm) Valor ferias apartir de 7 dias en adelante"}]
[3070955,"Pedestal rectangular 90cm (30cm x 90cm x 30cm) Valor ferias de 1 a 6 dias",{"$f":"CONCATENATE(A190:A436,\" \",B190:B436)","v":"3070955 Pedestal rectangular 90cm (30cm x 90cm x 30cm) Valor ferias de 1 a 6 dias"}]
[3070955,"Pedestal rectangular 90cm (30cm x 90cm x 30cm) Valor ferias apartir de 7 dias en adelante",{"$f":"CONCATENATE(A191:A437,\" \",B191:B437)","v":"3070955 Pedestal rectangular 90cm (30cm x 90cm x 30cm) Valor ferias apartir de 7 dias en adelante"}]
[3071370,"Revistero plegable (140cm x 25cm x 29cm) Valor ferias de 1 a 6 dias",{"$f":"CONCATENATE(A192:A438,\" \",B192:B438)","v":"3071370 Revistero plegable (140cm x 25cm x 29cm) Valor ferias de 1 a 6 dias"}]
[3071370,"Revistero plegable (140cm x 25cm x 29cm) Valor ferias apartir de 7 dias en adelante",{"$f":"CONCATENATE(A193:A439,\" \",B193:B439)","v":"3071370 Revistero plegable (140cm x 25cm x 29cm) Valor ferias apartir de 7 dias en adelante"}]
[3071103,"Nevera Minibar 121 LT (48.5cm X 85.1cm X 60cm)",{"$f":"CONCATENATE(A194:A440,\" \",B194:B440)","v":"3071103 Nevera Minibar 121 LT (48.5cm X 85.1cm X 60cm)"}]
[3071103,"Nevera Estandar 230LT ( 55.6cm X 157.6cm X 67cm)",{"$f":"CONCATENATE(A195:A441,\" \",B195:B441)","v":"3071103 Nevera Estandar 230LT ( 55.6cm X 157.6cm X 67cm)"}]
[3070505,"Tarima 120x120x60, (Previa verificación con área de montaje) Valor ferias de 1 a 6 dias",{"$f":"CONCATENATE(A196:A442,\" \",B196:B442)","v":"3070505 Tarima 120x120x60, (Previa verificación con área de montaje) Valor ferias de 1 a 6 dias"}]
[3070505,"Tarima 120x120x60, (Previa verificación con área de montaje) Valor ferias apartir de 7 dias en adelante",{"$f":"CONCATENATE(A197:A443,\" \",B197:B443)","v":"3070505 Tarima 120x120x60, (Previa verificación con área de montaje) Valor ferias apartir de 7 dias en adelante"}]
[3071388,"Módulo de carga 20 puntos 110V Valor ferias de 1 a 6 dias",{"$f":"CONCATENATE(A198:A444,\" \",B198:B444)","v":"3071388 Módulo de carga 20 puntos 110V Valor ferias de 1 a 6 dias"}]
[3071388,"Módulo de carga 20 puntos 110V Valor ferias apartir de 7 dias en adelante",{"$f":"CONCATENATE(A199:A445,\" \",B199:B445)","v":"3071388 Módulo de carga 20 puntos 110V Valor ferias apartir de 7 dias en adelante"}]
[3071375,"Planta + matera plástica (Pequeña)",{"$f":"CONCATENATE(A200:A446,\" \",B200:B446)","v":"3071375 Planta + matera plástica (Pequeña)"}]
[3071376,"Planta + matera plástica (Mediana)",{"$f":"CONCATENATE(A201:A445,\" \",B201:B445)","v":"3071376 Planta + matera plástica (Mediana)"}]
[3071377,"Planta + matera plástica (Grande)",{"$f":"CONCATENATE(A202:A446,\" \",B202:B446)","v":"3071377 Planta + matera plástica (Grande)"}]
[3071378,"Jardinera en madera + 3 Plantas grandes",{"$f":"CONCATENATE(A203:A447,\" \",B203:B447)","v":"3071378 Jardinera en madera + 3 Plantas grandes"}]
[3071379,"Jardinera en madera + 3 Plantas medianas",{"$f":"CONCATENATE(A204:A448,\" \",B204:B448)","v":"3071379 Jardinera en madera + 3 Plantas medianas"}]
[3071380,"Jardinera en madera + 7 Plantas pequeñas",{"$f":"CONCATENATE(A205:A449,\" \",B205:B449)","v":"3071380 Jardinera en madera + 7 Plantas pequeñas"}]
[3071381,"Cajoneras con flores",{"$f":"CONCATENATE(A206:A450,\" \",B206:B450)","v":"3071381 Cajoneras con flores"}]
[3071314,"Grandes (61cm x 120cm)",{"$f":"CONCATENATE(A207:A451,\" \",B207:B451)","v":"3071314 Grandes (61cm x 120cm)"}]
[3071301,"Medianas (31cm x 120cm)",{"$f":"CONCATENATE(A208:A452,\" \",B208:B452)","v":"3071301 Medianas (31cm x 120cm)"}]
[3071317,"Pequeñas (10cm x 30cm)",{"$f":"CONCATENATE(A209:A453,\" \",B209:B453)","v":"3071317 Pequeñas (10cm x 30cm)"}]
[3071382,"Suculentas (10cm x 15cm)",{"$f":"CONCATENATE(A210:A454,\" \",B210:B454)","v":"3071382 Suculentas (10cm x 15cm)"}]
[3071383,"Chamizos",{"$f":"CONCATENATE(A211:A455,\" \",B211:B455)","v":"3071383 Chamizos"}]
[3071355,"De barro grande",{"$f":"CONCATENATE(A212:A456,\" \",B212:B456)","v":"3071355 De barro grande"}]
[3071356,"De barro mediana",{"$f":"CONCATENATE(A213:A457,\" \",B213:B457)","v":"3071356 De barro mediana"}]
[3071384,"De barro pequeña",{"$f":"CONCATENATE(A214:A458,\" \",B214:B458)","v":"3071384 De barro pequeña"}]
[3071357,"Plástica grande",{"$f":"CONCATENATE(A215:A459,\" \",B215:B459)","v":"3071357 Plástica grande"}]
[3071358,"Plástica mediana",{"$f":"CONCATENATE(A216:A460,\" \",B216:B460)","v":"3071358 Plástica mediana"}]
[3071359,"Plástica pequeña",{"$f":"CONCATENATE(A217:A461,\" \",B217:B461)","v":"3071359 Plástica pequeña"}]
[3071360,"Jardinera en madera (35cm x 100cm x 35cm)",{"$f":"CONCATENATE(A218:A462,\" \",B218:B462)","v":"3071360 Jardinera en madera (35cm x 100cm x 35cm)"}]
[3071352,"Grandes",{"$f":"CONCATENATE(A219:A463,\" \",B219:B463)","v":"3071352 Grandes"}]
[3071353,"Medianos",{"$f":"CONCATENATE(A220:A464,\" \",B220:B464)","v":"3071353 Medianos"}]
[3071354,"Pequeños",{"$f":"CONCATENATE(A221:A465,\" \",B221:B465)","v":"3071354 Pequeños"}]
[3071364,"Topiario en forma de animales o frutas ",{"$f":"CONCATENATE(A222:A466,\" \",B222:B466)","v":"3071364 Topiario en forma de animales o frutas "}]
[3071365,"Topiario en bolas grandes",{"$f":"CONCATENATE(A223:A467,\" \",B223:B467)","v":"3071365 Topiario en bolas grandes"}]
[3071385,"Topiario en bolas pequeñas",{"$f":"CONCATENATE(A224:A468,\" \",B224:B468)","v":"3071385 Topiario en bolas pequeñas"}]
[3071363,"Piedras (Por m2)",{"$f":"CONCATENATE(A225:A469,\" \",B225:B469)","v":"3071363 Piedras (Por m2)"}]
[3071367,"Pino patula (Por bulto)",{"$f":"CONCATENATE(A226:A470,\" \",B226:B470)","v":"3071367 Pino patula (Por bulto)"}]
[3071361,"Gravilla (Por m2)",{"$f":"CONCATENATE(A227:A471,\" \",B227:B471)","v":"3071361 Gravilla (Por m2)"}]
[3071386,"Muros verticales (Por m2)",{"$f":"CONCATENATE(A228:A472,\" \",B228:B472)","v":"3071386 Muros verticales (Por m2)"}]
[3071366,"Cascarilla (Por bulto)",{"$f":"CONCATENATE(A229:A473,\" \",B229:B473)","v":"3071366 Cascarilla (Por bulto)"}]
[3071362,"Rocas (Por unidad)",{"$f":"CONCATENATE(A230:A474,\" \",B230:B474)","v":"3071362 Rocas (Por unidad)"}]
[3071312,"Stands entre 9 mts² y 18 mts² (valor por dia) Dia ordinario",{"$f":"CONCATENATE(A231:A478,\" \",B231:B478)","v":"3071312 Stands entre 9 mts² y 18 mts² (valor por dia) Dia ordinario"}]
[3071312,"Stands entre 9 mts² y 18 mts² (valor por dia) Dia dominical o festivo",{"$f":"CONCATENATE(A232:A479,\" \",B232:B479)","v":"3071312 Stands entre 9 mts² y 18 mts² (valor por dia) Dia dominical o festivo"}]
[3071312,"Stands entre 19 mts² y 32mts² (valor por dia) Dia ordinario",{"$f":"CONCATENATE(A233:A480,\" \",B233:B480)","v":"3071312 Stands entre 19 mts² y 32mts² (valor por dia) Dia ordinario"}]
[3071312,"Stands entre 19 mts² y 32mts² (valor por dia) Dia dominical o festivo",{"$f":"CONCATENATE(A234:A481,\" \",B234:B481)","v":"3071312 Stands entre 19 mts² y 32mts² (valor por dia) Dia dominical o festivo"}]
[3071312,"Stands entre 33 mts² y 64 mts² (valor por dia) Dia ordinario ",{"$f":"CONCATENATE(A235:A482,\" \",B235:B482)","v":"3071312 Stands entre 33 mts² y 64 mts² (valor por dia) Dia ordinario "}]
[3071312,"Stands entre 33 mts² y 64 mts² (valor por dia) Dia dominical o festivo",{"$f":"CONCATENATE(A236:A483,\" \",B236:B483)","v":"3071312 Stands entre 33 mts² y 64 mts² (valor por dia) Dia dominical o festivo"}]
[3071312,"Stands de 65mts²  en adelante se requiere de cotización previa,contactese con el área del plus de Corferias para brindarle asesoria y cotización.",{"$f":"CONCATENATE(A237:A484,\" \",B237:B484)","v":"3071312 Stands de 65mts²  en adelante se requiere de cotización previa,contactese con el área del plus de Corferias para brindarle asesoria y cotización."}]
[3071312,"Aseo permanente 8 horas 1 Operario (valor por dia) Día ordinario",{"$f":"CONCATENATE(A238:A485,\" \",B238:B485)","v":"3071312 Aseo permanente 8 horas 1 Operario (valor por dia) Día ordinario"}]
[3071312,"Aseo permanente 8 horas 1 Operario (valor por dia) Día dominical o festivo",{"$f":"CONCATENATE(A239:A486,\" \",B239:B486)","v":"3071312 Aseo permanente 8 horas 1 Operario (valor por dia) Día dominical o festivo"}]
[3071433,"Corferias Conecta  APP (incluye el internet para un equipo)",{"$f":"CONCATENATE(A240:A487,\" \",B240:B487)","v":"3071433 Corferias Conecta  APP (incluye el internet para un equipo)"}]
[3071432,"Corferias Conecta  APP + Tablet con internet",{"$f":"CONCATENATE(A241:A488,\" \",B241:B488)","v":"3071432 Corferias Conecta  APP + Tablet con internet"}]
[3071431,"Tablet adicional con internet",{"$f":"CONCATENATE(A242:A489,\" \",B242:B489)","v":"3071431 Tablet adicional con internet"}]
[3071326,"Internet adicional para la app por equipo",{"$f":"CONCATENATE(A243:A490,\" \",B243:B490)","v":"3071326 Internet adicional para la app por equipo"}]

{"sheet":"FERIAS DE 7 DIAS EN ADELANTE","index":3,"n_rows":168,"n_cols":4,"rows_kept":168,"cut":false,"hidden":true,"merged":[]}
["CLAVE","CODIGO","DESCRIPCIÓN","VALOR"]
[{"$f":"CONCATENATE(B2:B212,\" \",C2:C212)","v":"3070101 Instalación Monofásica (Toma corriente doble, consumo hasta 2KW/110V) valor de 7 dias en adelante"},3070101,"Instalación Monofásica (Toma corriente doble, consumo hasta 2KW/110V) valor de 7 dias en adelante",317000]
[{"$f":"CONCATENATE(B3:B213,\" \",C3:C213)","v":"3070103 Instalación kilovatio adicional monofásico (Debe contar con punto principal, MAX 2KW por punto)"},3070103,"Instalación kilovatio adicional monofásico (Debe contar con punto principal, MAX 2KW por punto)",106800]
[{"$f":"CONCATENATE(B4:B214,\" \",C4:C214)","v":"3070102 Instalación trifásica (Regleta plastica, consumo hasta 4KW/208V)"},3070102,"Instalación trifásica (Regleta plastica, consumo hasta 4KW/208V)",569800]
[{"$f":"CONCATENATE(B5:B215,\" \",C5:C215)","v":"3070104 Instalación kilovatio adicional trifásico (Debe contar con punto principal)"},3070104,"Instalación kilovatio adicional trifásico (Debe contar con punto principal)",139400]
[{"$f":"CONCATENATE(B6:B216,\" \",C6:C216)","v":"3071372 De 21 a 50 kilovatios adicionales trifásicos (Valor por KW) (Debe contar con punto principal)"},3071372,"De 21 a 50 kilovatios adicionales trifásicos (Valor por KW) (Debe contar con punto principal)",126800]
[{"$f":"CONCATENATE(B7:B217,\" \",C7:C217)","v":"3071373 De 51 a 100 kilovatios adicionales trifásicos (Valor por KW) (Debe contar con punto principal)"},3071373,"De 51 a 100 kilovatios adicionales trifásicos (Valor por KW) (Debe contar con punto principal)",121200]
[{"$f":"CONCATENATE(B8:B218,\" \",C8:C218)","v":"3071374 Mas de100 kilovatios adicionales trifásicos (Valor por KW) (Debe contar con punto principal)"},3071374,"Mas de100 kilovatios adicionales trifásicos (Valor por KW) (Debe contar con punto principal)",116200]
[{"$f":"CONCATENATE(B9:B219,\" \",C9:C219)","v":"3070402 Lampara de pared ajustable (150W/110V)"},3070402,"Lampara de pared ajustable (150W/110V)",58900]
[{"$f":"CONCATENATE(B10:B220,\" \",C10:C220)","v":"3070405 Reflector Led (50W- mltV)"},3070405,"Reflector Led (50W- mltV)",62000]
[{"$f":"CONCATENATE(B11:B221,\" \",C11:C221)","v":"3070403 Extensión – tomacorriente doble con polo a tierra (1500W/110V) MAX 6mts "},3070403,"Extensión – tomacorriente doble con polo a tierra (1500W/110V) MAX 6mts ",30500]
[{"$f":"CONCATENATE(B12:B222,\" \",C12:C222)","v":"3071345 Lavaplatos 90XL* 60XH* 90 (No incluye agua y desague) valor de 7 dias en adelante"},3071345,"Lavaplatos 90XL* 60XH* 90 (No incluye agua y desague) valor de 7 dias en adelante",152800]
[{"$f":"CONCATENATE(B13:B223,\" \",C13:C223)","v":"3070301 Punto de Agua en 1/2\" (incluye consumo) valor de 7 dias en adelante"},3070301,"Punto de Agua en 1/2\" (incluye consumo) valor de 7 dias en adelante",368500]
[{"$f":"CONCATENATE(B14:B224,\" \",C14:C224)","v":"3070302 Desagüe en 1 1/2\" Por toda la feria (Ubicación asignada por Corferias en su stand) valor de 7 dias en adelante"},3070302,"Desagüe en 1 1/2\" Por toda la feria (Ubicación asignada por Corferias en su stand) valor de 7 dias en adelante",340200]
[{"$f":"CONCATENATE(B15:B225,\" \",C15:C225)","v":"3071341 Aire comprimido para punto con presión máx. de 100 PSI, y caudal máx. 35CFM. valor de 7 dias en adelante"},3071341,"Aire comprimido para punto con presión máx. de 100 PSI, y caudal máx. 35CFM. valor de 7 dias en adelante",453000]
[{"$f":"CONCATENATE(B16:B226,\" \",C16:C226)","v":"3070307 Punto de Agua en 1/2\" (Incluye consumo)  + Desagüe en 1 1/2\" + Lavaplatos valor de 7 dias en adelante"},3070307,"Punto de Agua en 1/2\" (Incluye consumo)  + Desagüe en 1 1/2\" + Lavaplatos valor de 7 dias en adelante",775300]
[{"$f":"CONCATENATE(B17:B227,\" \",C17:C227)","v":"3071321 Instalación de UN (1) punto de gas propano por UN (1) Equipo (Incluye materiales y mano de obra) (No incluye consumo de gas, este será liquidado a través de un medidor una vez finalice la feria y/o evento)"},3071321,"Instalación de UN (1) punto de gas propano por UN (1) Equipo (Incluye materiales y mano de obra) (No incluye consumo de gas, este será liquidado a través de un medidor una vez finalice la feria y/o evento)",257200]
[{"$f":"CONCATENATE(B18:B228,\" \",C18:C228)","v":"3070601 Panel adicional sistema cfe 100cm x 240cm"},3070601,"Panel adicional sistema cfe 100cm x 240cm",31400]
[{"$f":"CONCATENATE(B19:B229,\" \",C19:C229)","v":"3070801 Puerta sistema cfe 90cm x 240cm"},3070801,"Puerta sistema cfe 90cm x 240cm",77800]
[{"$f":"CONCATENATE(B20:B230,\" \",C20:C230)","v":"3070803 Bodega estándar con puerta 150cm x 150cm (Sistema Corferias)"},3070803,"Bodega estándar con puerta 150cm x 150cm (Sistema Corferias)",124100]
[{"$f":"CONCATENATE(B21:B231,\" \",C21:C231)","v":"3071319 Brazo Mecánico por Fracciòn de 15 min (Solo para primer nivel)"},3071319,"Brazo Mecánico por Fracciòn de 15 min (Solo para primer nivel)",61100]
[{"$f":"CONCATENATE(B22:B232,\" \",C22:C232)","v":"3071319 Brazo Mecánico por Fracciòn de 30 min (Solo para primer nivel)"},3071319,"Brazo Mecánico por Fracciòn de 30 min (Solo para primer nivel)",113400]
[{"$f":"CONCATENATE(B23:B233,\" \",C23:C233)","v":"3071319 Brazo Mecánico por Fracciòn de 45 min (Solo para primer nivel)"},3071319,"Brazo Mecánico por Fracciòn de 45 min (Solo para primer nivel)",174500]
[{"$f":"CONCATENATE(B24:B234,\" \",C24:C234)","v":"3071319 Brazo Mecánico por Fracciòn de 60 min (Solo para primer nivel)"},3071319,"Brazo Mecánico por Fracciòn de 60 min (Solo para primer nivel)",167500]
[{"$f":"CONCATENATE(B25:B235,\" \",C25:C235)","v":"3070413 Diferencial (Cap. 1 Ton.) + Brazo mecánico (Montaje y desmontaje) "},3070413,"Diferencial (Cap. 1 Ton.) + Brazo mecánico (Montaje y desmontaje) ",274900]
[{"$f":"CONCATENATE(B26:B236,\" \",C26:C236)","v":"3070414 Plataforma Tijera eléctrica por Fracciòn /30 min (Uso para segundos niveles)"},3070414,"Plataforma Tijera eléctrica por Fracciòn /30 min (Uso para segundos niveles)",68400]
[{"$f":"CONCATENATE(B27:B237,\" \",C27:C237)","v":"3071387 Brazo mecánico + Diferencial + TRUSS 2,60 X 2,60"},3071387,"Brazo mecánico + Diferencial + TRUSS 2,60 X 2,60",2668000]
[{"$f":"CONCATENATE(B28:B238,\" \",C28:C238)","v":"3071351 Brazo mecánico + Diferencial + TRUSS 3,60 X 2,60"},3071351,"Brazo mecánico + Diferencial + TRUSS 3,60 X 2,60",2668000]
[{"$f":"CONCATENATE(B29:B239,\" \",C29:C239)","v":"3071395 Brazo mecánico + Diferencial + TRUSS 3,60 X 3,60"},3071395,"Brazo mecánico + Diferencial + TRUSS 3,60 X 3,60",2668000]
[{"$f":"CONCATENATE(B30:B240,\" \",C30:C240)","v":"3071324 Brazo mecánico + Diferencial + TRUSS 5,90 X 5,90"},3071324,"Brazo mecánico + Diferencial + TRUSS 5,90 X 5,90",3335000]
[{"$f":"CONCATENATE(B31:B241,\" \",C31:C241)","v":"3071436 Brazo mecánico + Diferencial + TRUSS 6,90 X 6,90"},3071436,"Brazo mecánico + Diferencial + TRUSS 6,90 X 6,90",3335000]
[{"$f":"CONCATENATE(B32:B242,\" \",C32:C242)","v":"3071350 Brazo mecánico + Diferencial + TRUSS 5,60 X 5,60"},3071350,"Brazo mecánico + Diferencial + TRUSS 5,60 X 5,60",3335000]
[{"$f":"CONCATENATE(B33:B243,\" \",C33:C243)","v":"3071371 Brazo mecánico + Diferencial + TRUSS 6,60 X 6,60"},3071371,"Brazo mecánico + Diferencial + TRUSS 6,60 X 6,60",3335000]
[{"$f":"CONCATENATE(B34:B244,\" \",C34:C244)","v":"3071393 Brazo mecánico + Diferencial + TRUSS 9,60 X 2,60"},3071393,"Brazo mecánico + Diferencial + TRUSS 9,60 X 2,60",3335000]
[{"$f":"CONCATENATE(B35:B245,\" \",C35:C245)","v":"3071394 Brazo mecánico + Diferencial + TRUSS 9,60 X 3,60"},3071394,"Brazo mecánico + Diferencial + TRUSS 9,60 X 3,60",3335000]
[{"$f":"CONCATENATE(B36:B246,\" \",C36:C246)","v":"3071396 Brazo mecánico + Diferencial + TRUSS 9,60 X 5,60"},3071396,"Brazo mecánico + Diferencial + TRUSS 9,60 X 5,60",4416000]
[{"$f":"CONCATENATE(B37:B247,\" \",C37:C247)","v":"3071397 Brazo mecánico + Diferencial + TRUSS 9,60 X 6,60"},3071397,"Brazo mecánico + Diferencial + TRUSS 9,60 X 6,60",4416000]
[{"$f":"CONCATENATE(B38:B248,\" \",C38:C248)","v":"3071418 Servicio de Internet Cableado \"PARA UN EQUIPO - DURANTE UN DÍA\"  "},3071418,"Servicio de Internet Cableado \"PARA UN EQUIPO - DURANTE UN DÍA\"  ",63000]
[{"$f":"CONCATENATE(B39:B249,\" \",C39:C249)","v":"3071419 Clave de acceso para la red WiFi  \"PARA UN EQUIPO - DURANTE UN DÍA\""},3071419,"Clave de acceso para la red WiFi  \"PARA UN EQUIPO - DURANTE UN DÍA\"",63000]
[{"$f":"CONCATENATE(B40:B250,\" \",C40:C250)","v":"3071417 Servicio de Internet Cableado \"PARA UN EQUIPO - DURANTE TODA LA FERIA\" valor a partir de 7 dias"},3071417,"Servicio de Internet Cableado \"PARA UN EQUIPO - DURANTE TODA LA FERIA\" valor a partir de 7 dias",234000]
[{"$f":"CONCATENATE(B41:B251,\" \",C41:C251)","v":"3071420 Clave de acceso para la Red WiFi \"PARA UN EQUIPO - DURANTE TODA LA FERIA\" valor a partir de 7 dias"},3071420,"Clave de acceso para la Red WiFi \"PARA UN EQUIPO - DURANTE TODA LA FERIA\" valor a partir de 7 dias",234000]
[{"$f":"CONCATENATE(B42:B252,\" \",C42:C252)","v":"3071423 Conexión para Datafono + Clave de acceso WIFI (Para un equipo durante toda la feria) valor a partir de 7 dias"},3071423,"Conexión para Datafono + Clave de acceso WIFI (Para un equipo durante toda la feria) valor a partir de 7 dias",323800]
[{"$f":"CONCATENATE(B43:B253,\" \",C43:C253)","v":"3071424 Conexión para Datafono + Servicio de Internet Cableado (Para un equipo durante toda la feria) valor a partir de 7 dias"},3071424,"Conexión para Datafono + Servicio de Internet Cableado (Para un equipo durante toda la feria) valor a partir de 7 dias",323800]
[{"$f":"CONCATENATE(B44:B254,\" \",C44:C254)","v":"3071425 Servicio de Internet Cableado + Clave de acceso WIFI (Para un equipo durante toda la feria) valor a partir de 7 dias"},3071425,"Servicio de Internet Cableado + Clave de acceso WIFI (Para un equipo durante toda la feria) valor a partir de 7 dias",421200]
[{"$f":"CONCATENATE(B45:B255,\" \",C45:C255)","v":"3071437 Internet Dedicado: Si requiere conexión banda ancha para diferentes servicios o redes locales, contáctese con serviciosplus@corferias.com para brindarle asesoria y cotización."},3071437,"Internet Dedicado: Si requiere conexión banda ancha para diferentes servicios o redes locales, contáctese con serviciosplus@corferias.com para brindarle asesoria y cotización.","Según cotización"]
[{"$f":"CONCATENATE(B46:B256,\" \",C46:C256)","v":"3071406 Instalación Punto de Red:Incluye un cable UTP por punto"},3071406,"Instalación Punto de Red:Incluye un cable UTP por punto",76300]
[{"$f":"CONCATENATE(B47:B257,\" \",C47:C257)","v":"3071407 Switch VALOR POR FERIA "},3071407,"Switch VALOR POR FERIA ",73400]
[{"$f":"CONCATENATE(B48:B258,\" \",C48:C258)","v":"3071402 Servicio de VLAN: Servicio virtual de red.  VALOR POR FERIA"},3071402,"Servicio de VLAN: Servicio virtual de red.  VALOR POR FERIA",294100]
[{"$f":"CONCATENATE(B49:B259,\" \",C49:C259)","v":"3071430 Extension LAN VALOR POR FERIA  (Incluye punto de red y aplica para extender el servicio de internet contratado con terceros)"},3071430,"Extension LAN VALOR POR FERIA  (Incluye punto de red y aplica para extender el servicio de internet contratado con terceros)",1122600]
[{"$f":"CONCATENATE(B50:B260,\" \",C50:C260)","v":"3071442 Soporte técnico permanente (Por espacio de 8 horas) de un técnico. VALOR DÍARIO "},3071442,"Soporte técnico permanente (Por espacio de 8 horas) de un técnico. VALOR DÍARIO ",204600]
[{"$f":"CONCATENATE(B51:B261,\" \",C51:C261)","v":"3070202 Servicio Telefónico Urbano con Aparato (Incluye consumo local ilimitado)"},3070202,"Servicio Telefónico Urbano con Aparato (Incluye consumo local ilimitado)",35700]
[{"$f":"CONCATENATE(B52:B262,\" \",C52:C262)","v":"3070203 Servicio Telefónico Larga Distancia con aparato"},3070203,"Servicio Telefónico Larga Distancia con aparato",35700]
[{"$f":"CONCATENATE(B53:B263,\" \",C53:C263)","v":"3070201 Línea Externa no conmutada (Previa solicitud a Etb, Claro, EPM, Colomsat u otro operador)"},3070201,"Línea Externa no conmutada (Previa solicitud a Etb, Claro, EPM, Colomsat u otro operador)",100900]
[{"$f":"CONCATENATE(B54:B264,\" \",C54:C264)","v":"3070207 Conexión cableada para Datafono:(No incluye Datafono)"},3070207,"Conexión cableada para Datafono:(No incluye Datafono)",106800]
[{"$f":"CONCATENATE(B55:B265,\" \",C55:C265)","v":"3070942 Kit básico Pino 1 (1 mesa pleglable pino, 3 sillas acrilicas k negra) Valor ferias apartir de 7 dias en adelante"},3070942,"Kit básico Pino 1 (1 mesa pleglable pino, 3 sillas acrilicas k negra) Valor ferias apartir de 7 dias en adelante",157400]
[{"$f":"CONCATENATE(B56:B266,\" \",C56:C266)","v":"3071105 KIT básico oficina 2 (2 sillas interlocutoras, 1 silla ejecutiva, 1 mesa oficina) Valor ferias apartir de 7 dias en adelante"},3071105,"KIT básico oficina 2 (2 sillas interlocutoras, 1 silla ejecutiva, 1 mesa oficina) Valor ferias apartir de 7 dias en adelante",193900]
[{"$f":"CONCATENATE(B57:B267,\" \",C57:C267)","v":"3071036 Mesa plegable plastico + 2 sillas interlocutoras Valor ferias apartir de 7 dias en adelante"},3071036,"Mesa plegable plastico + 2 sillas interlocutoras Valor ferias apartir de 7 dias en adelante",134300]
[{"$f":"CONCATENATE(B58:B268,\" \",C58:C268)","v":"3071039 Mesa alta Daysa + 2 sillas neumaticas altas marsella Valor ferias apartir de 7 dias en adelante"},3071039,"Mesa alta Daysa + 2 sillas neumaticas altas marsella Valor ferias apartir de 7 dias en adelante",173500]
[{"$f":"CONCATENATE(B59:B269,\" \",C59:C269)","v":"3071054 Mesa estandar lotus vidrio + 2 sillas tipo huevo Valor ferias apartir de 7 dias en adelante"},3071054,"Mesa estandar lotus vidrio + 2 sillas tipo huevo Valor ferias apartir de 7 dias en adelante",187000]
[{"$f":"CONCATENATE(B60:B270,\" \",C60:C270)","v":"3071002 Silla Acrílica k negra (85cm x 49cm x 47cm) Valor ferias apartir de 7 dias en adelante"},3071002,"Silla Acrílica k negra (85cm x 49cm x 47cm) Valor ferias apartir de 7 dias en adelante",35100]
[{"$f":"CONCATENATE(B61:B271,\" \",C61:C271)","v":"3071078 Silla con Espaldar Arles (75cm x 38cm x39cm) Valor ferias apartir de 7 dias en adelante"},3071078,"Silla con Espaldar Arles (75cm x 38cm x39cm) Valor ferias apartir de 7 dias en adelante",51800]
[{"$f":"CONCATENATE(B62:B272,\" \",C62:C272)","v":"30713198 Silla Gerencial (119cm x 67cm x 78cm) Valor ferias apartir de 7 dias en adelante"},30713198,"Silla Gerencial (119cm x 67cm x 78cm) Valor ferias apartir de 7 dias en adelante",112700]
[{"$f":"CONCATENATE(B63:B273,\" \",C63:C273)","v":"3071081 Silla Ejecutiva (79cm x 53cm x 42cm) Valor ferias apartir de 7 dias en adelante"},3071081,"Silla Ejecutiva (79cm x 53cm x 42cm) Valor ferias apartir de 7 dias en adelante",54400]
[{"$f":"CONCATENATE(B64:B274,\" \",C64:C274)","v":"3071061 Silla estandar Suiza (48cm x 46cm x 45cm) Valor ferias apartir de 7 dias en adelante"},3071061,"Silla estandar Suiza (48cm x 46cm x 45cm) Valor ferias apartir de 7 dias en adelante",43900]
[{"$f":"CONCATENATE(B65:B275,\" \",C65:C275)","v":"3071008 Silla estandar Tipo Huevo (48cm x 46cm x 45cm) Valor ferias apartir de 7 dias en adelante"},3071008,"Silla estandar Tipo Huevo (48cm x 46cm x 45cm) Valor ferias apartir de 7 dias en adelante",43900]
[{"$f":"CONCATENATE(B66:B276,\" \",C66:C276)","v":"3071006 Silla Interlocutora Negra (79cm x 53cm x 42cm) Valor ferias apartir de 7 dias en adelante"},3071006,"Silla Interlocutora Negra (79cm x 53cm x 42cm) Valor ferias apartir de 7 dias en adelante",36800]
[{"$f":"CONCATENATE(B67:B277,\" \",C67:C277)","v":"3071022 Silla Neumatica alta Versalles (80cm x 40 cm x 40cm) Valor ferias apartir de 7 dias en adelante"},3071022,"Silla Neumatica alta Versalles (80cm x 40 cm x 40cm) Valor ferias apartir de 7 dias en adelante",64800]
[{"$f":"CONCATENATE(B68:B278,\" \",C68:C278)","v":"3071077 Silla Neumática alta Marsella (80cm x 40cm x 40cm) Valor ferias apartir de 7 dias en adelante"},3071077,"Silla Neumática alta Marsella (80cm x 40cm x 40cm) Valor ferias apartir de 7 dias en adelante",53100]
[{"$f":"CONCATENATE(B69:B279,\" \",C69:C279)","v":"3071092 Silla Neumatica alta POP (Blanca o negra) (80cm x 43cm x 40cm) Valor ferias apartir de 7 dias en adelante"},3071092,"Silla Neumatica alta POP (Blanca o negra) (80cm x 43cm x 40cm) Valor ferias apartir de 7 dias en adelante",52500]
[{"$f":"CONCATENATE(B70:B280,\" \",C70:C280)","v":"3070503 Estantería Polo (Melaminico)   (100cm x 93cm x 35cm) Valor ferias apartir de 7 dias en adelante"},3070503,"Estantería Polo (Melaminico)   (100cm x 93cm x 35cm) Valor ferias apartir de 7 dias en adelante",144300]
[{"$f":"CONCATENATE(B71:B281,\" \",C71:C281)","v":"3070503 Estantería Polo (Miel)  (100cm x 93cm x 35cm) Valor ferias apartir de 7 dias en adelante"},3070503,"Estantería Polo (Miel)  (100cm x 93cm x 35cm) Valor ferias apartir de 7 dias en adelante",144300]
[{"$f":"CONCATENATE(B72:B282,\" \",C72:C282)","v":"3070503 Estantería Polo (Rovere)  (100cm x 93cm x 35cm) Valor ferias apartir de 7 dias en adelante"},3070503,"Estantería Polo (Rovere)  (100cm x 93cm x 35cm) Valor ferias apartir de 7 dias en adelante",144300]
[{"$f":"CONCATENATE(B73:B283,\" \",C73:C283)","v":"3070503 Estantería Polo (Roble Gris)  (100cm x 93cm x 35cm) Valor ferias apartir de 7 dias en adelante"},3070503,"Estantería Polo (Roble Gris)  (100cm x 93cm x 35cm) Valor ferias apartir de 7 dias en adelante",144300]
[{"$f":"CONCATENATE(B74:B284,\" \",C74:C284)","v":"3071108 Estantería Shelf 4E (190cm x 125cm x 41cm) Valor ferias apartir de 7 dias en adelante"},3071108,"Estantería Shelf 4E (190cm x 125cm x 41cm) Valor ferias apartir de 7 dias en adelante",113900]
[{"$f":"CONCATENATE(B75:B285,\" \",C75:C285)","v":"3071107 Archivador Regina (70cm x 37cm x50cm) Valor ferias apartir de 7 dias en adelante"},3071107,"Archivador Regina (70cm x 37cm x50cm) Valor ferias apartir de 7 dias en adelante",107200]
[{"$f":"CONCATENATE(B76:B286,\" \",C76:C286)","v":"3070954 Counter Mónaco (Melaminico) (100cm x 100cm x 40cm) Valor ferias apartir de 7 dias en adelante"},3070954,"Counter Mónaco (Melaminico) (100cm x 100cm x 40cm) Valor ferias apartir de 7 dias en adelante",117900]
[{"$f":"CONCATENATE(B77:B287,\" \",C77:C287)","v":"3070954 Counter Mónaco (Miel) (100cm x 100cm x 40cm) Valor ferias apartir de 7 dias en adelante"},3070954,"Counter Mónaco (Miel) (100cm x 100cm x 40cm) Valor ferias apartir de 7 dias en adelante",117900]
[{"$f":"CONCATENATE(B78:B288,\" \",C78:C288)","v":"3070954 Counter Mónaco (Rovere) (100cm x 100cm x 40cm) Valor ferias apartir de 7 dias en adelante"},3070954,"Counter Mónaco (Rovere) (100cm x 100cm x 40cm) Valor ferias apartir de 7 dias en adelante",117900]
[{"$f":"CONCATENATE(B79:B289,\" \",C79:C289)","v":"3070954 Counter Mónaco (Roble Gris) (100cm x 100cm x 40cm) Valor ferias apartir de 7 dias en adelante"},3070954,"Counter Mónaco (Roble Gris) (100cm x 100cm x 40cm) Valor ferias apartir de 7 dias en adelante",117900]
[{"$f":"CONCATENATE(B80:B290,\" \",C80:C290)","v":"3070535 Vitrina Isla 2E (200cm x 50cm x 50cm) Valor ferias apartir de 7 dias en adelante"},3070535,"Vitrina Isla 2E (200cm x 50cm x 50cm) Valor ferias apartir de 7 dias en adelante",199100]
[{"$f":"CONCATENATE(B81:B291,\" \",C81:C291)","v":"3070517 Vitrina Mostrador 1E (100cm x 100cm x 40cm) Valor ferias apartir de 7 dias en adelante"},3070517,"Vitrina Mostrador 1E (100cm x 100cm x 40cm) Valor ferias apartir de 7 dias en adelante",176800]
[{"$f":"CONCATENATE(B82:B292,\" \",C82:C292)","v":"3070518 Vitrina Mostrador Tipo 2 1E (100cm x 50 cm x 40cm) Valor ferias apartir de 7 dias en adelante"},3070518,"Vitrina Mostrador Tipo 2 1E (100cm x 50 cm x 40cm) Valor ferias apartir de 7 dias en adelante",176800]
[{"$f":"CONCATENATE(B83:B293,\" \",C83:C293)","v":"3071111 Vitrina Rectangular 2E (200cm x 100cm x 40cm) Valor ferias apartir de 7 dias en adelante"},3071111,"Vitrina Rectangular 2E (200cm x 100cm x 40cm) Valor ferias apartir de 7 dias en adelante",225500]
[{"$f":"CONCATENATE(B84:B294,\" \",C84:C294)","v":"30713199 Vitrina Rectangular 3E (180cm x 100cm x 40cm) Valor ferias apartir de 7 dias en adelante"},30713199,"Vitrina Rectangular 3E (180cm x 100cm x 40cm) Valor ferias apartir de 7 dias en adelante",225500]
[{"$f":"CONCATENATE(B85:B295,\" \",C85:C295)","v":"3071115 Mesa alta Daysa (Melaminico) (100cm x 60cm) Valor ferias apartir de 7 dias en adelante"},3071115,"Mesa alta Daysa (Melaminico) (100cm x 60cm) Valor ferias apartir de 7 dias en adelante",76500]
[{"$f":"CONCATENATE(B86:B296,\" \",C86:C296)","v":"3071115 Mesa alta Daysa (Miel) (100cm x 60cm) Valor ferias apartir de 7 dias en adelante"},3071115,"Mesa alta Daysa (Miel) (100cm x 60cm) Valor ferias apartir de 7 dias en adelante",76500]
[{"$f":"CONCATENATE(B87:B297,\" \",C87:C297)","v":"3071115 Mesa alta Daysa (Rovere) (100cm x 60cm) Valor ferias apartir de 7 dias en adelante"},3071115,"Mesa alta Daysa (Rovere) (100cm x 60cm) Valor ferias apartir de 7 dias en adelante",76500]
[{"$f":"CONCATENATE(B88:B298,\" \",C88:C298)","v":"3071115 Mesa alta Daysa (Roble Gris) (100cm x 60cm) Valor ferias apartir de 7 dias en adelante"},3071115,"Mesa alta Daysa (Roble Gris) (100cm x 60cm) Valor ferias apartir de 7 dias en adelante",76500]
[{"$f":"CONCATENATE(B89:B299,\" \",C89:C299)","v":"3071093 Mesa alta Daysa vidrio (100cm x 60cm) Valor ferias apartir de 7 dias en adelante"},3071093,"Mesa alta Daysa vidrio (100cm x 60cm) Valor ferias apartir de 7 dias en adelante",95300]
[{"$f":"CONCATENATE(B90:B300,\" \",C90:C300)","v":"3071104 Mesa Centro 2 Niveles (melaminico) (50cm x 60cm x 60) Valor ferias apartir de 7 dias en adelante"},3071104,"Mesa Centro 2 Niveles (melaminico) (50cm x 60cm x 60) Valor ferias apartir de 7 dias en adelante",69200]
[{"$f":"CONCATENATE(B91:B301,\" \",C91:C301)","v":"3071100 Mesa Centro Circular doble nivel (melaminico) (50cm x 110cm x 60cm) Valor ferias apartir de 7 dias en adelante"},3071100,"Mesa Centro Circular doble nivel (melaminico) (50cm x 110cm x 60cm) Valor ferias apartir de 7 dias en adelante",93300]
[{"$f":"CONCATENATE(B92:B302,\" \",C92:C302)","v":"3071068 Mesa Centro Rectangular doble nivel (melaminico) (50cm x 75cm x 50cm) Valor ferias apartir de 7 dias en adelante"},3071068,"Mesa Centro Rectangular doble nivel (melaminico) (50cm x 75cm x 50cm) Valor ferias apartir de 7 dias en adelante",69200]
[{"$f":"CONCATENATE(B93:B303,\" \",C93:C303)","v":"3071097 Mesa estandar Daysa (76cm x 60cm) Valor ferias apartir de 7 dias en adelante"},3071097,"Mesa estandar Daysa (76cm x 60cm) Valor ferias apartir de 7 dias en adelante",68000]
[{"$f":"CONCATENATE(B94:B304,\" \",C94:C304)","v":"3071116 Mesa estandar Lotus (70cm x 64cm x 81cm) Valor ferias apartir de 7 dias en adelante"},3071116,"Mesa estandar Lotus (70cm x 64cm x 81cm) Valor ferias apartir de 7 dias en adelante",108900]
[{"$f":"CONCATENATE(B95:B305,\" \",C95:C305)","v":"3071098 Mesa estandar Shia (76cm x 60cm x 60cm) Valor ferias apartir de 7 dias en adelante"},3071098,"Mesa estandar Shia (76cm x 60cm x 60cm) Valor ferias apartir de 7 dias en adelante",68000]
[{"$f":"CONCATENATE(B96:B306,\" \",C96:C306)","v":"30713200 Mesa Oficina (78cm x 120cm x 50cm) Valor ferias apartir de 7 dias en adelante"},30713200,"Mesa Oficina (78cm x 120cm x 50cm) Valor ferias apartir de 7 dias en adelante",85900]
[{"$f":"CONCATENATE(B97:B307,\" \",C97:C307)","v":"3070936 Mesón plegable plástico (Gris o blanco) (73cm x 182cm x 76cm) Valor ferias apartir de 7 dias en adelante"},3070936,"Mesón plegable plástico (Gris o blanco) (73cm x 182cm x 76cm) Valor ferias apartir de 7 dias en adelante",67700]
[{"$f":"CONCATENATE(B98:B308,\" \",C98:C308)","v":"3070904 Mesón plegable pino (75cm x 120cm x 60cm) Valor ferias apartir de 7 dias en adelante"},3070904,"Mesón plegable pino (75cm x 120cm x 60cm) Valor ferias apartir de 7 dias en adelante",67700]
[{"$f":"CONCATENATE(B99:B309,\" \",C99:C309)","v":"3071113 Sala Osaka (1 sofá Toronto, 2 puffs Donna, 1 mesa centro 2 niveles) Valor ferias apartir de 7 dias en adelante"},3071113,"Sala Osaka (1 sofá Toronto, 2 puffs Donna, 1 mesa centro 2 niveles) Valor ferias apartir de 7 dias en adelante",364500]
[{"$f":"CONCATENATE(B100:B310,\" \",C100:C310)","v":"3071095 Sala VIP (1 sofá Victoria derecho, 1 sofá Victoria izquierdo, 2 poltronas, 1 mesa centro 2 niveles) Valor ferias apartir de 7 dias en adelante"},3071095,"Sala VIP (1 sofá Victoria derecho, 1 sofá Victoria izquierdo, 2 poltronas, 1 mesa centro 2 niveles) Valor ferias apartir de 7 dias en adelante",601300]
[{"$f":"CONCATENATE(B101:B311,\" \",C101:C311)","v":"3071090 Puff estandar cuadrado (43cm x 43cm x 43cm) Valor ferias apartir de 7 dias en adelante"},3071090,"Puff estandar cuadrado (43cm x 43cm x 43cm) Valor ferias apartir de 7 dias en adelante",37100]
[{"$f":"CONCATENATE(B102:B312,\" \",C102:C312)","v":"3071091 Puff Trunk 2 cuerpos (48cm x 81cm x 40cm) Valor ferias apartir de 7 dias en adelante"},3071091,"Puff Trunk 2 cuerpos (48cm x 81cm x 40cm) Valor ferias apartir de 7 dias en adelante",84600]
[{"$f":"CONCATENATE(B103:B313,\" \",C103:C313)","v":"3071114 Puff Trunk 3 cuerpos (48cm x 120cm x 54cm) Valor ferias apartir de 7 dias en adelante"},3071114,"Puff Trunk 3 cuerpos (48cm x 120cm x 54cm) Valor ferias apartir de 7 dias en adelante",81700]
[{"$f":"CONCATENATE(B104:B314,\" \",C104:C314)","v":"3071085 Sofa Otawa 2 cuerpos (85cm x 120cm x 76cm) Valor ferias apartir de 7 dias en adelante"},3071085,"Sofa Otawa 2 cuerpos (85cm x 120cm x 76cm) Valor ferias apartir de 7 dias en adelante",164800]
[{"$f":"CONCATENATE(B105:B315,\" \",C105:C315)","v":"3071083 Sofa Toronto 3 cuerpos (88cm x 173cm x 80cm) Valor ferias apartir de 7 dias en adelante"},3071083,"Sofa Toronto 3 cuerpos (88cm x 173cm x 80cm) Valor ferias apartir de 7 dias en adelante",178300]
[{"$f":"CONCATENATE(B106:B316,\" \",C106:C316)","v":"3071031 Sofa Terranova 2 cuerpos (88cm x 173cm x 80cm) Valor ferias apartir de 7 dias en adelante"},3071031,"Sofa Terranova 2 cuerpos (88cm x 173cm x 80cm) Valor ferias apartir de 7 dias en adelante",178300]
[{"$f":"CONCATENATE(B107:B317,\" \",C107:C317)","v":"3071013 Sofa Victoria derecho (70cm x 100cm x 75cm) Valor ferias apartir de 7 dias en adelante"},3071013,"Sofa Victoria derecho (70cm x 100cm x 75cm) Valor ferias apartir de 7 dias en adelante",145300]
[{"$f":"CONCATENATE(B108:B318,\" \",C108:C318)","v":"3071023 Sofa Victoria izquierdo (70cm x 100cm x 75cm) Valor ferias apartir de 7 dias en adelante"},3071023,"Sofa Victoria izquierdo (70cm x 100cm x 75cm) Valor ferias apartir de 7 dias en adelante",145300]
[{"$f":"CONCATENATE(B109:B319,\" \",C109:C319)","v":"30713201 Poltrona Buggy (72cm x 64cm) Valor ferias apartir de 7 dias en adelante"},30713201,"Poltrona Buggy (72cm x 64cm) Valor ferias apartir de 7 dias en adelante",164200]
[{"$f":"CONCATENATE(B110:B320,\" \",C110:C320)","v":"3071059 Poltrona Levis (73cm x 86cm x 78cm) Valor ferias apartir de 7 dias en adelante"},3071059,"Poltrona Levis (73cm x 86cm x 78cm) Valor ferias apartir de 7 dias en adelante",157900]
[{"$f":"CONCATENATE(B111:B321,\" \",C111:C321)","v":"3071302 Papelera metálica Valor ferias apartir de 7 dias en adelante"},3071302,"Papelera metálica Valor ferias apartir de 7 dias en adelante",19700]
[{"$f":"CONCATENATE(B112:B322,\" \",C112:C322)","v":"3071325 Poste separador 120cm de alto Valor ferias apartir de 7 dias en adelante"},3071325,"Poste separador 120cm de alto Valor ferias apartir de 7 dias en adelante",38900]
[{"$f":"CONCATENATE(B113:B323,\" \",C113:C323)","v":"3070521 Perchero básico 1 pedestal (120cm Ancho - Altura) graduable + 5 ganchos"},3070521,"Perchero básico 1 pedestal (120cm Ancho - Altura) graduable + 5 ganchos",65100]
[{"$f":"CONCATENATE(B114:B324,\" \",C114:C324)","v":"3070521 Perchero doble 2 pedestal (120cm Ancho-Altura) graduable + 5 ganchos"},3070521,"Perchero doble 2 pedestal (120cm Ancho-Altura) graduable + 5 ganchos",75100]
[{"$f":"CONCATENATE(B115:B325,\" \",C115:C325)","v":"3070512 Locker Torre 1 puesto con 2 + 1/2  entrepaños "},3070512,"Locker Torre 1 puesto con 2 + 1/2  entrepaños ",64900]
[{"$f":"CONCATENATE(B116:B326,\" \",C116:C326)","v":"3070714 Cubo de exhibición (40cm x 40cm x 25cm) Valor ferias apartir de 7 dias en adelante"},3070714,"Cubo de exhibición (40cm x 40cm x 25cm) Valor ferias apartir de 7 dias en adelante",28600]
[{"$f":"CONCATENATE(B117:B326,\" \",C117:C326)","v":"3070957 Pedestal cuadrado (30cm x 30cm x 30cm) Valor ferias apartir de 7 dias en adelante"},3070957,"Pedestal cuadrado (30cm x 30cm x 30cm) Valor ferias apartir de 7 dias en adelante",24700]
[{"$f":"CONCATENATE(B118:B327,\" \",C118:C327)","v":"3070956 Pedestal rectangular 60cm (30cm x 60cm x 30cm) Valor ferias apartir de 7 dias en adelante"},3070956,"Pedestal rectangular 60cm (30cm x 60cm x 30cm) Valor ferias apartir de 7 dias en adelante",30000]
[{"$f":"CONCATENATE(B119:B328,\" \",C119:C328)","v":"3070955 Pedestal rectangular 90cm (30cm x 90cm x 30cm) Valor ferias apartir de 7 dias en adelante"},3070955,"Pedestal rectangular 90cm (30cm x 90cm x 30cm) Valor ferias apartir de 7 dias en adelante",32800]
[{"$f":"CONCATENATE(B120:B329,\" \",C120:C329)","v":"3071370 Revistero plegable (140cm x 25cm x 29cm) Valor ferias apartir de 7 dias en adelante"},3071370,"Revistero plegable (140cm x 25cm x 29cm) Valor ferias apartir de 7 dias en adelante",51800]
[{"$f":"CONCATENATE(B121:B330,\" \",C121:C330)","v":"3071103 Nevera Minibar 121 LT (48.5cm X 85.1cm X 60cm)"},3071103,"Nevera Minibar 121 LT (48.5cm X 85.1cm X 60cm)",170900]
[{"$f":"CONCATENATE(B122:B331,\" \",C122:C331)","v":"3071103 Nevera Estandar 230LT ( 55.6cm X 157.6cm X 67cm)"},3071103,"Nevera Estandar 230LT ( 55.6cm X 157.6cm X 67cm)",252100]
[{"$f":"CONCATENATE(B123:B332,\" \",C123:C332)","v":"3070505 Tarima 120x120x60, (Previa verificación con área de montaje) Valor ferias apartir de 7 dias en adelante"},3070505,"Tarima 120x120x60, (Previa verificación con área de montaje) Valor ferias apartir de 7 dias en adelante",37000]
[{"$f":"CONCATENATE(B124:B333,\" \",C124:C333)","v":"3071388 Módulo de carga 20 puntos 110V Valor ferias apartir de 7 dias en adelante"},3071388,"Módulo de carga 20 puntos 110V Valor ferias apartir de 7 dias en adelante",207700]
[{"$f":"CONCATENATE(B125:B334,\" \",C125:C334)","v":"3071375 Planta + matera plástica (Pequeña)"},3071375,"Planta + matera plástica (Pequeña)",20600]
[{"$f":"CONCATENATE(B126:B335,\" \",C126:C335)","v":"3071376 Planta + matera plástica (Mediana)"},3071376,"Planta + matera plástica (Mediana)",46400]
[{"$f":"CONCATENATE(B127:B336,\" \",C127:C336)","v":"3071377 Planta + matera plástica (Grande)"},3071377,"Planta + matera plástica (Grande)",59200]
[{"$f":"CONCATENATE(B128:B337,\" \",C128:C337)","v":"3071378 Jardinera en madera + 3 Plantas grandes"},3071378,"Jardinera en madera + 3 Plantas grandes",100300]
[{"$f":"CONCATENATE(B129:B338,\" \",C129:C338)","v":"3071379 Jardinera en madera + 3 Plantas medianas"},3071379,"Jardinera en madera + 3 Plantas medianas",81100]
[{"$f":"CONCATENATE(B130:B339,\" \",C130:C339)","v":"3071380 Jardinera en madera + 7 Plantas pequeñas"},3071380,"Jardinera en madera + 7 Plantas pequeñas",83500]
[{"$f":"CONCATENATE(B131:B340,\" \",C131:C340)","v":"3071381 Cajoneras con flores"},3071381,"Cajoneras con flores",155800]
[{"$f":"CONCATENATE(B132:B341,\" \",C132:C341)","v":"3071314 Grandes (61cm x 120cm)"},3071314,"Grandes (61cm x 120cm)",31700]
[{"$f":"CONCATENATE(B133:B342,\" \",C133:C342)","v":"3071301 Medianas (31cm x 120cm)"},3071301,"Medianas (31cm x 120cm)",25000]
[{"$f":"CONCATENATE(B134:B343,\" \",C134:C343)","v":"3071317 Pequeñas (10cm x 30cm)"},3071317,"Pequeñas (10cm x 30cm)",11100]
[{"$f":"CONCATENATE(B135:B344,\" \",C135:C344)","v":"3071382 Suculentas (10cm x 15cm)"},3071382,"Suculentas (10cm x 15cm)",11100]
[{"$f":"CONCATENATE(B136:B345,\" \",C136:C345)","v":"3071383 Chamizos"},3071383,"Chamizos",11100]
[{"$f":"CONCATENATE(B137:B346,\" \",C137:C346)","v":"3071355 De barro grande"},3071355,"De barro grande",30700]
[{"$f":"CONCATENATE(B138:B347,\" \",C138:C347)","v":"3071356 De barro mediana"},3071356,"De barro mediana",23900]
[{"$f":"CONCATENATE(B139:B348,\" \",C139:C348)","v":"3071384 De barro pequeña"},3071384,"De barro pequeña",10600]
[{"$f":"CONCATENATE(B140:B349,\" \",C140:C349)","v":"3071357 Plástica grande"},3071357,"Plástica grande",30700]
[{"$f":"CONCATENATE(B141:B350,\" \",C141:C350)","v":"3071358 Plástica mediana"},3071358,"Plástica mediana",23900]
[{"$f":"CONCATENATE(B142:B351,\" \",C142:C351)","v":"3071359 Plástica pequeña"},3071359,"Plástica pequeña",10600]
[{"$f":"CONCATENATE(B143:B352,\" \",C143:C352)","v":"3071360 Jardinera en madera (35cm x 100cm x 35cm)"},3071360,"Jardinera en madera (35cm x 100cm x 35cm)",10600]
[{"$f":"CONCATENATE(B144:B353,\" \",C144:C353)","v":"3071352 Grandes"},3071352,"Grandes",93800]
[{"$f":"CONCATENATE(B145:B354,\" \",C145:C354)","v":"3071353 Medianos"},3071353,"Medianos",54600]
[{"$f":"CONCATENATE(B146:B355,\" \",C146:C355)","v":"3071354 Pequeños"},3071354,"Pequeños",24000]
[{"$f":"CONCATENATE(B147:B356,\" \",C147:C356)","v":"3071364 Topiario en forma de animales o frutas "},3071364,"Topiario en forma de animales o frutas ",228500]
[{"$f":"CONCATENATE(B148:B357,\" \",C148:C357)","v":"3071365 Topiario en bolas grandes"},3071365,"Topiario en bolas grandes",228500]
[{"$f":"CONCATENATE(B149:B358,\" \",C149:C358)","v":"3071385 Topiario en bolas pequeñas"},3071385,"Topiario en bolas pequeñas",207700]
[{"$f":"CONCATENATE(B150:B359,\" \",C150:C359)","v":"3071363 Piedras (Por m2)"},3071363,"Piedras (Por m2)",23900]
[{"$f":"CONCATENATE(B151:B360,\" \",C151:C360)","v":"3071367 Pino patula (Por bulto)"},3071367,"Pino patula (Por bulto)",10600]
[{"$f":"CONCATENATE(B152:B361,\" \",C152:C361)","v":"3071361 Gravilla (Por m2)"},3071361,"Gravilla (Por m2)",10600]
[{"$f":"CONCATENATE(B153:B362,\" \",C153:C362)","v":"3071386 Muros verticales (Por m2)"},3071386,"Muros verticales (Por m2)",328500]
[{"$f":"CONCATENATE(B154:B363,\" \",C154:C363)","v":"3071366 Cascarilla (Por bulto)"},3071366,"Cascarilla (Por bulto)",10600]
[{"$f":"CONCATENATE(B155:B364,\" \",C155:C364)","v":"3071362 Rocas (Por unidad)"},3071362,"Rocas (Por unidad)",63300]
[{"$f":"CONCATENATE(B156:B365,\" \",C156:C365)","v":"3071312 Stands entre 9 mts² y 18 mts² (valor por dia) Dia ordinario"},3071312,"Stands entre 9 mts² y 18 mts² (valor por dia) Dia ordinario",34900]
[{"$f":"CONCATENATE(B157:B366,\" \",C157:C366)","v":"3071312 Stands entre 9 mts² y 18 mts² (valor por dia) Dia dominical o festivo"},3071312,"Stands entre 9 mts² y 18 mts² (valor por dia) Dia dominical o festivo",59900]
[{"$f":"CONCATENATE(B158:B367,\" \",C158:C367)","v":"3071312 Stands entre 19 mts² y 32mts² (valor por dia) Dia ordinario"},3071312,"Stands entre 19 mts² y 32mts² (valor por dia) Dia ordinario",46900]
[{"$f":"CONCATENATE(B159:B368,\" \",C159:C368)","v":"3071312 Stands entre 19 mts² y 32mts² (valor por dia) Dia dominical o festivo"},3071312,"Stands entre 19 mts² y 32mts² (valor por dia) Dia dominical o festivo",83900]
[{"$f":"CONCATENATE(B160:B369,\" \",C160:C369)","v":"3071312 Stands entre 33 mts² y 64 mts² (valor por dia) Dia ordinario "},3071312,"Stands entre 33 mts² y 64 mts² (valor por dia) Dia ordinario ",87900]
[{"$f":"CONCATENATE(B161:B370,\" \",C161:C370)","v":"3071312 Stands entre 33 mts² y 64 mts² (valor por dia) Dia dominical o festivo"},3071312,"Stands entre 33 mts² y 64 mts² (valor por dia) Dia dominical o festivo",189900]
[{"$f":"CONCATENATE(B162:B372,\" \",C162:C372)","v":"3071312 Stands de 65mts²  en adelante se requiere de cotización previa,contactese con el área del plus de Corferias para brindarle asesoria y cotización."},3071312,"Stands de 65mts²  en adelante se requiere de cotización previa,contactese con el área del plus de Corferias para brindarle asesoria y cotización.","Según cotización"]
[{"$f":"CONCATENATE(B163:B373,\" \",C163:C373)","v":"3071312 Aseo permanente 8 horas 1 Operario (valor por dia) Día ordinario"},3071312,"Aseo permanente 8 horas 1 Operario (valor por dia) Día ordinario","Según cotización"]
[{"$f":"CONCATENATE(B164:B374,\" \",C164:C374)","v":"3071312 Aseo permanente 8 horas 1 Operario (valor por dia) Día dominical o festivo"},3071312,"Aseo permanente 8 horas 1 Operario (valor por dia) Día dominical o festivo","Según cotización"]
[{"$f":"CONCATENATE(B165:B375,\" \",C165:C375)","v":"3071433 Corferias Conecta  APP (incluye el internet para un equipo)"},3071433,"Corferias Conecta  APP (incluye el internet para un equipo)",283100]
[{"$f":"CONCATENATE(B166:B376,\" \",C166:C376)","v":"3071432 Corferias Conecta  APP + Tablet con internet"},3071432,"Corferias Conecta  APP + Tablet con internet",373800]
[{"$f":"CONCATENATE(B167:B377,\" \",C167:C377)","v":"3071431 Tablet adicional con internet"},3071431,"Tablet adicional con internet",249200]
[{"$f":"CONCATENATE(B168:B376,\" \",C168:C376)","v":"3071326 Internet adicional para la app por equipo"},3071326,"Internet adicional para la app por equipo",89100]

{"sheet":"SOLICITUD DE SERVICIOS","index":4,"n_rows":59,"n_cols":11,"rows_kept":59,"cut":false,"hidden":false,"merged":[[9,1,9,9],[33,3,33,4],[30,3,30,4],[29,3,29,4],[28,3,28,4],[28,1,28,2],[29,1,29,2],[30,1,30,2],[33,1,33,2],[22,1,22,2],[23,1,23,2],[23,3,23,4],[22,3,22,4],[25,3,25,4],[24,1,24,2],[24,3,24,4],[25,1,25,2],[27,3,27,4],[31,3,31,4],[26,1,26,2],[27,1,27,2],[31,1,31,2],[26,3,26,4],[1,7,5,9],[1,1,1,5],[5,1,5,5],[2,1,2,5],[3,1,3,5],[4,1,4,5],[1,6,5,6],[7,1,7,9],[18,3,18,4],[21,3,21,4],[20,3,20,4],[19,3,19,4],[10,1,10,9],[11,4,11,9],[12,4,12,9],[14,1,14,9],[20,1,20,2],[21,1,21,2],[15,1,15,9],[16,1,16,9],[17,1,17,9],[19,1,19,2],[18,1,18,2],[59,7,59,9],[37,3,37,4],[37,7,37,9],[54,1,54,2],[39,1,39,9],[40,6,43,9],[45,1,45,9],[46,6,47,9],[55,1,55,2],[56,1,56,2],[52,1,52,9],[56,3,56,9],[50,1,50,5],[50,6,50,9],[40,4,40,5],[41,4,41,5],[34,7,34,9],[36,7,36,9],[53,1,53,9],[55,3,55,9],[54,3,54,9],[48,1,48,9],[32,3,32,4],[32,1,32,2],[36,1,37,1],[36,2,37,2],[34,1,35,6],[36,5,37,5],[36,6,37,6],[36,3,36,4],[42,4,42,5],[43,4,43,5],[46,4,46,5],[47,4,47,5],[53,10,58,10],[58,1,58,6]]}
[]
[null,"SOLICITUD DE SERVICIOS EN ALQUILER"]
[null,"www.corferias.com"]
[null,"Cra. 37 No. 24-67 BOGOTÁ, COLOMBIA"]
[null,"PBX: 381 0000 Ext. 8305 - Correo electrónico: serviciosplus@corferias.com"]
[null,"SOMOS AUTORETENEDORES RESOLUCIÓN No. 000006 Enero 21 de 1993 y GRANDES CONTRIBUYENTES RESOLUCIÓN  No. 012635   Diciembre 14 de 2018. NIT: 860.002.464-3"]
[]
[null,"Recuerde diligenciar todos los campos de este formulario"]
[]
[null,"INFORMACIÓN DEL EXPOSITOR "]
[null,"*No olvide diligenciar todos los campos"]
[null,"Razón social del expositor:",null,"NIT / C.C:"]
[null,"Facturar a nombre de:",null,"NIT / C.C:"]
[null,"Feria:",null,"Pabellon:",null,"Nivel:",null,"Stand:"]
[]
[null,"SOLICITUD DE SERVICIOS EN ALQUILER"]
[null,"Por favor seleccione el tipo de feria en la cual va a participar, después digite el codigo del servicio y seleccione el servicio que desea alquilar:"]
[]
[null,"CODIGO / DESCRIPCIÓN DEL SERVICIO",null,"OBSERVACIONES",null,"CANTIDAD","CANTIDAD DE DIAS","VALOR UNITARIO",null,"VALOR TOTAL"]
[null,"",null,null,null,null,null,{"$f":"IF('FERIAS 3 DIAS'!$E$3=1,VLOOKUP('SOLICITUD DE SERVICIOS'!B20:C20,'FERIAS 3 DIAS'!$A$1:$D$214,4,FALSE),IF('FERIAS 3 DIAS'!$E$3=2,VLOOKUP('SOLICITUD DE SERVICIOS'!B20:C20,'FERIAS DE 4 A 6 DIAS'!$A$1:$D$215,4,FALSE),IF('FERIAS 3 DIAS'!$E$3=3,VLOOKUP('SOLICITUD DE SERVICIOS'!B20:C20,'FERIAS DE 7 DIAS EN ADELANTE'!$A$1:$D$237,4,FALSE),FALSE)))","v":{"$error":"#N/A"}},{"$error":"#N/A"},{"$f":"PRODUCT(F20,G20,H20)","v":{"$error":"#N/A"}}]
[null,"",null,null,null,null,null,{"$f":"IF('FERIAS 3 DIAS'!$E$3=1,VLOOKUP('SOLICITUD DE SERVICIOS'!B21:C21,'FERIAS 3 DIAS'!$A$1:$D$214,4,FALSE),IF('FERIAS 3 DIAS'!$E$3=2,VLOOKUP('SOLICITUD DE SERVICIOS'!B21:C21,'FERIAS DE 4 A 6 DIAS'!$A$1:$D$215,4,FALSE),IF('FERIAS 3 DIAS'!$E$3=3,VLOOKUP('SOLICITUD DE SERVICIOS'!B21:C21,'FERIAS DE 7 DIAS EN ADELANTE'!$A$1:$D$237,4,FALSE),FALSE)))","v":{"$error":"#N/A"}},{"$error":"#N/A"},{"$f":"PRODUCT(F21,G21,H21)","v":{"$error":"#N/A"}}]
[null,"",null,null,null,null,null,{"$f":"IF('FERIAS 3 DIAS'!$E$3=1,VLOOKUP('SOLICITUD DE SERVICIOS'!B22:C22,'FERIAS 3 DIAS'!$A$1:$D$214,4,FALSE),IF('FERIAS 3 DIAS'!$E$3=2,VLOOKUP('SOLICITUD DE SERVICIOS'!B22:C22,'FERIAS DE 4 A 6 DIAS'!$A$1:$D$215,4,FALSE),IF('FERIAS 3 DIAS'!$E$3=3,VLOOKUP('SOLICITUD DE SERVICIOS'!B22:C22,'FERIAS DE 7 DIAS EN ADELANTE'!$A$1:$D$237,4,FALSE),FALSE)))","v":{"$error":"#N/A"}},{"$error":"#N/A"},{"$error":"#N/A"}]
[null,"",null,null,null,null,null,{"$f":"IF('FERIAS 3 DIAS'!$E$3=1,VLOOKUP('SOLICITUD DE SERVICIOS'!B23:C23,'FERIAS 3 DIAS'!$A$1:$D$214,4,FALSE),IF('FERIAS 3 DIAS'!$E$3=2,VLOOKUP('SOLICITUD DE SERVICIOS'!B23:C23,'FERIAS DE 4 A 6 DIAS'!$A$1:$D$215,4,FALSE),IF('FERIAS 3 DIAS'!$E$3=3,VLOOKUP('SOLICITUD DE SERVICIOS'!B23:C23,'FERIAS DE 7 DIAS EN ADELANTE'!$A$1:$D$237,4,FALSE),FALSE)))","v":{"$error":"#N/A"}},{"$error":"#N/A"},{"$error":"#N/A"}]
[null,"",null,null,null,null,null,{"$f":"IF('FERIAS 3 DIAS'!$E$3=1,VLOOKUP('SOLICITUD DE SERVICIOS'!B24:C24,'FERIAS 3 DIAS'!$A$1:$D$214,4,FALSE),IF('FERIAS 3 DIAS'!$E$3=2,VLOOKUP('SOLICITUD DE SERVICIOS'!B24:C24,'FERIAS DE 4 A 6 DIAS'!$A$1:$D$215,4,FALSE),IF('FERIAS 3 DIAS'!$E$3=3,VLOOKUP('SOLICITUD DE SERVICIOS'!B24:C24,'FERIAS DE 7 DIAS EN ADELANTE'!$A$1:$D$237,4,FALSE),FALSE)))","v":{"$error":"#N/A"}},{"$error":"#N/A"},{"$error":"#N/A"}]
[null,"",null,null,null,null,null,{"$f":"IF('FERIAS 3 DIAS'!$E$3=1,VLOOKUP('SOLICITUD DE SERVICIOS'!B25:C25,'FERIAS 3 DIAS'!$A$1:$D$214,4,FALSE),IF('FERIAS 3 DIAS'!$E$3=2,VLOOKUP('SOLICITUD DE SERVICIOS'!B25:C25,'FERIAS DE 4 A 6 DIAS'!$A$1:$D$215,4,FALSE),IF('FERIAS 3 DIAS'!$E$3=3,VLOOKUP('SOLICITUD DE SERVICIOS'!B25:C25,'FERIAS DE 7 DIAS EN ADELANTE'!$A$1:$D$237,4,FALSE),FALSE)))","v":{"$error":"#N/A"}},{"$error":"#N/A"},{"$error":"#N/A"}]
[null,"",null,null,null,null,null,{"$f":"IF('FERIAS 3 DIAS'!$E$3=1,VLOOKUP('SOLICITUD DE SERVICIOS'!B26:C26,'FERIAS 3 DIAS'!$A$1:$D$214,4,FALSE),IF('FERIAS 3 DIAS'!$E$3=2,VLOOKUP('SOLICITUD DE SERVICIOS'!B26:C26,'FERIAS DE 4 A 6 DIAS'!$A$1:$D$215,4,FALSE),IF('FERIAS 3 DIAS'!$E$3=3,VLOOKUP('SOLICITUD DE SERVICIOS'!B26:C26,'FERIAS DE 7 DIAS EN ADELANTE'!$A$1:$D$237,4,FALSE),FALSE)))","v":{"$error":"#N/A"}},{"$error":"#N/A"},{"$error":"#N/A"}]
[null,"",null,null,null,null,null,{"$f":"IF('FERIAS 3 DIAS'!$E$3=1,VLOOKUP('SOLICITUD DE SERVICIOS'!B27:C27,'FERIAS 3 DIAS'!$A$1:$D$214,4,FALSE),IF('FERIAS 3 DIAS'!$E$3=2,VLOOKUP('SOLICITUD DE SERVICIOS'!B27:C27,'FERIAS DE 4 A 6 DIAS'!$A$1:$D$215,4,FALSE),IF('FERIAS 3 DIAS'!$E$3=3,VLOOKUP('SOLICITUD DE SERVICIOS'!B27:C27,'FERIAS DE 7 DIAS EN ADELANTE'!$A$1:$D$237,4,FALSE),FALSE)))","v":{"$error":"#N/A"}},{"$error":"#N/A"},{"$error":"#N/A"}]
[null,"",null,null,null,null,null,{"$f":"IF('FERIAS 3 DIAS'!$E$3=1,VLOOKUP('SOLICITUD DE SERVICIOS'!B28:C28,'FERIAS 3 DIAS'!$A$1:$D$214,4,FALSE),IF('FERIAS 3 DIAS'!$E$3=2,VLOOKUP('SOLICITUD DE SERVICIOS'!B28:C28,'FERIAS DE 4 A 6 DIAS'!$A$1:$D$215,4,FALSE),IF('FERIAS 3 DIAS'!$E$3=3,VLOOKUP('SOLICITUD DE SERVICIOS'!B28:C28,'FERIAS DE 7 DIAS EN ADELANTE'!$A$1:$D$237,4,FALSE),FALSE)))","v":{"$error":"#N/A"}},{"$error":"#N/A"},{"$error":"#N/A"}]
[null,"",null,null,null,null,null,{"$f":"IF('FERIAS 3 DIAS'!$E$3=1,VLOOKUP('SOLICITUD DE SERVICIOS'!B29:C29,'FERIAS 3 DIAS'!$A$1:$D$214,4,FALSE),IF('FERIAS 3 DIAS'!$E$3=2,VLOOKUP('SOLICITUD DE SERVICIOS'!B29:C29,'FERIAS DE 4 A 6 DIAS'!$A$1:$D$215,4,FALSE),IF('FERIAS 3 DIAS'!$E$3=3,VLOOKUP('SOLICITUD DE SERVICIOS'!B29:C29,'FERIAS DE 7 DIAS EN ADELANTE'!$A$1:$D$237,4,FALSE),FALSE)))","v":{"$error":"#N/A"}},{"$error":"#N/A"},{"$error":"#N/A"}]
[null,"",null,null,null,null,null,{"$f":"IF('FERIAS 3 DIAS'!$E$3=1,VLOOKUP('SOLICITUD DE SERVICIOS'!B30:C30,'FERIAS 3 DIAS'!$A$1:$D$214,4,FALSE),IF('FERIAS 3 DIAS'!$E$3=2,VLOOKUP('SOLICITUD DE SERVICIOS'!B30:C30,'FERIAS DE 4 A 6 DIAS'!$A$1:$D$215,4,FALSE),IF('FERIAS 3 DIAS'!$E$3=3,VLOOKUP('SOLICITUD DE SERVICIOS'!B30:C30,'FERIAS DE 7 DIAS EN ADELANTE'!$A$1:$D$237,4,FALSE),FALSE)))","v":{"$error":"#N/A"}},{"$error":"#N/A"},{"$error":"#N/A"}]
[null,"",null,null,null,null,null,{"$f":"IF('FERIAS 3 DIAS'!$E$3=1,VLOOKUP('SOLICITUD DE SERVICIOS'!B31:C31,'FERIAS 3 DIAS'!$A$1:$D$214,4,FALSE),IF('FERIAS 3 DIAS'!$E$3=2,VLOOKUP('SOLICITUD DE SERVICIOS'!B31:C31,'FERIAS DE 4 A 6 DIAS'!$A$1:$D$215,4,FALSE),IF('FERIAS 3 DIAS'!$E$3=3,VLOOKUP('SOLICITUD DE SERVICIOS'!B31:C31,'FERIAS DE 7 DIAS EN ADELANTE'!$A$1:$D$237,4,FALSE),FALSE)))","v":{"$error":"#N/A"}},{"$error":"#N/A"},{"$error":"#N/A"}]
[null,"",null,null,null,null,null,{"$f":"IF('FERIAS 3 DIAS'!$E$3=1,VLOOKUP('SOLICITUD DE SERVICIOS'!B32:C32,'FERIAS 3 DIAS'!$A$1:$D$214,4,FALSE),IF('FERIAS 3 DIAS'!$E$3=2,VLOOKUP('SOLICITUD DE SERVICIOS'!B32:C32,'FERIAS DE 4 A 6 DIAS'!$A$1:$D$215,4,FALSE),IF('FERIAS 3 DIAS'!$E$3=3,VLOOKUP('SOLICITUD DE SERVICIOS'!B32:C32,'FERIAS DE 7 DIAS EN ADELANTE'!$A$1:$D$237,4,FALSE),FALSE)))","v":{"$error":"#N/A"}},{"$error":"#N/A"},{"$error":"#N/A"}]
[null,"",null,null,null,null,null,{"$f":"IF('FERIAS 3 DIAS'!$E$3=1,VLOOKUP('SOLICITUD DE SERVICIOS'!B33:C33,'FERIAS 3 DIAS'!$A$1:$D$214,4,FALSE),IF('FERIAS 3 DIAS'!$E$3=2,VLOOKUP('SOLICITUD DE SERVICIOS'!B33:C33,'FERIAS DE 4 A 6 DIAS'!$A$1:$D$215,4,FALSE),IF('FERIAS 3 DIAS'!$E$3=3,VLOOKUP('SOLICITUD DE SERVICIOS'!B33:C33,'FERIAS DE 7 DIAS EN ADELANTE'!$A$1:$D$237,4,FALSE),FALSE)))","v":{"$error":"#N/A"}},null,{"$error":"#N/A"}]
[null,"",null,null,null,null,null,{"$f":"IF('FERIAS 3 DIAS'!$E$3=1,VLOOKUP('SOLICITUD DE SERVICIOS'!B34:C34,'FERIAS 3 DIAS'!$A$1:$D$214,4,FALSE),IF('FERIAS 3 DIAS'!$E$3=2,VLOOKUP('SOLICITUD DE SERVICIOS'!B34:C34,'FERIAS DE 4 A 6 DIAS'!$A$1:$D$215,4,FALSE),IF('FERIAS 3 DIAS'!$E$3=3,VLOOKUP('SOLICITUD DE SERVICIOS'!B34:C34,'FERIAS DE 7 DIAS EN ADELANTE'!$A$1:$D$237,4,FALSE),FALSE)))","v":{"$error":"#N/A"}},{"$error":"#N/A"},{"$error":"#N/A"}]
[null,"LEY 2068 DE 2020.TÍTULO VII De los incentivos tributarios para el fomento de la actividad turística. Artículo 45. Exención transitoria del Impuesto sobre las Ventas (IVA) para servicios de hotelería y turismo. Se encuentra exentos del Impuesto sobre las Ventas (IVA) desde la vigencia de la presente ley y hasta el treinta y uno (31) de diciembre de 2021 la prestación de los servicios de hotelería y de turismo a residentes en Colombia, incluyendo turismo de reuniones, congresos, convenciones y exhibiciones, y entretenimiento, por quienes cuenten con inscripción activa en el Registro Nacional de Turismo y presten sus servicios en el ejercicio de las funciones o actividades que según la ley corresponden a los prestadores de servicios turísticos. ",null,null,null,null,null,"De acuerdo a lo descrito en la ley 2068 seleccione a continuación una de las dos opciones según aplique el caso:"]
[]
[null,"OBSERVACIONES GENERALES",null,"SUBTOTAL ",null,{"$f":"SUM(F20:F34)","v":0},{"$f":"_xlfn.AGGREGATE(9,7,G20:G34)","v":0},{"$f":"_xlfn.AGGREGATE(9,7,J20:J34)","v":0}]
[null,null,null,"TOTAL",null,null,null,{"$f":"IF('FERIAS 3 DIAS'!F3=TRUE,_xlfn.AGGREGATE(9,7,J20:J34),_xlfn.AGGREGATE(9,7,J20:J34)*19%+(_xlfn.AGGREGATE(9,7,J20:J34)))","v":0}]
[]
[null,"SOLICITUD DE CREDENCIALES E INVITACIONES ADICIONALES POR COMPRA"]
[null,"CODIGO","DESCRIPCION","CANTIDAD","VALOR",null,"Si desea verificar los precios de las Credenciales e Invitaciones, recuerde que puede consultarlos la Guia del Expositor de la feria que va a participar."]
[null,3040107,"Credencial de expositor"]
[null,3040107,"Credencial de servicio"]
[null,3040108,"Invitación"]
[]
[null,"SOLICITUD DE BONO DE PARQUEADEO PARA EXPOSITORES"]
[null,"CODIGO","DESCRIPCION","CANTIDAD","VALOR CON IVA",null,"Este precio será indicado por el área del Plus Corferias\n*Este servicio no esta exento de IVA del 19%\nEl área de parqueo se habilita de acuerdo a la ubicación geográfica de la feria o evento:\n  ● Parqueadero Torre: Carrera 40 # 22 - 60\n  ● Parqueadero Verde: Calle 25 # 33 - 60 "]
[null,3050103,"Bono de expositor"]
[null,"IMPORTANTE\n1.Esta tarjeta le da derecho al expositor a un cupo de parqueadero, durante el desarrollo de la Feria o Evento. \n2.Señor Expositor tenga en cuenta que al ingresar a los parqueaderos de Corferias, usted está aceptando las CONDICIONES DE USO de parqueaderos, que se encuentran debidamente publicadas en los mismos\n3. CORFERIAS no se hace responsable por la pérdida de la Tarjeta. En caso de pérdida de la Tarjeta, usted debe informar la perdida al personal del parqueadero y cancelar en las cajas del parqueadero el valor equivalente a ½ SMDLV.\n5. Es requisito indispensable ubicar la Tarjeta en el lector de la talanquera para que esta suba, por cada ingreso y salida del vehículo.\n6. Si llega a presentar alguna novedad con la tarjeta, se deberá reportar de inmediato con el líder de parqueaderos quien le brindara una solución.\n7. Por favor NO tomar tiquete, esta acción genera cobro.  \n8. La validez de la tarjeta de parqueadero dará inicio al día siguiente de la compra. En caso de que la tarjeta sea adquirida durante la ejecución de la feria y/o evento, el expositor podrá solicitar al cajero del Plus el sello respectivo en el tiquete de entrada, el cual deberá presentar en las cajas del parqueadero para homologar el beneficio de la tarjeta por una única vez."]
[]
[null,"TOTAL A PAGAR",null,null,null,null,{"$f":"H38+D42+D43+D44+D48","v":0}]
[]
[null,"ACEPTO TERMINOS Y CONDICIONES"]
[null,"*No olvide diligenciar todos los campos.",null,null,null,null,null,null,null,null,"PI-F-2091 (V.3)"]
[null,"Nombre Completo:"]
[null,"Teléfono movíl:"]
[null,"Correo Electrónico:"]
[]
[null,"*Corferias se reserva el derecho de realizar cambios a este formulario*",null,null,null,null,null,"Fecha",null,{"$f":"TODAY()","v":"2021-05-27"}]

{"sheet":"TARIFAS SERVICIOS","index":5,"n_rows":205,"n_cols":7,"rows_kept":205,"cut":false,"hidden":false,"merged":[[35,12,35,13],[37,12,37,13],[69,1,74,1],[69,4,69,6],[34,1,41,1],[72,4,72,6],[134,5,134,6],[135,5,135,6],[136,5,136,6],[73,4,73,6],[74,4,74,6],[101,5,101,6],[100,5,100,6],[103,5,103,6],[102,5,102,6],[104,5,104,6],[105,5,105,6],[106,5,106,6],[82,1,82,6],[84,5,84,6],[85,5,85,6],[86,5,86,6],[87,5,87,6],[88,5,88,6],[30,1,33,1],[32,4,32,6],[33,4,33,6],[35,4,35,6],[36,4,36,6],[37,4,37,6],[38,4,38,6],[39,4,39,6],[71,4,71,6],[70,4,70,6],[59,1,68,1],[68,3,68,6],[31,8,31,9],[28,5,28,6],[29,2,29,6],[59,4,59,6],[60,4,60,6],[61,4,61,6],[30,4,30,6],[34,4,34,6],[31,4,31,6],[40,4,40,6],[41,2,41,6],[22,1,29,1],[23,5,23,6],[24,5,24,6],[25,5,25,6],[26,5,26,6],[27,5,27,6],[42,1,54,1],[6,4,6,6],[4,1,4,6],[8,1,9,6],[10,1,10,6],[11,5,11,6],[12,5,12,6],[13,4,13,6],[14,4,14,6],[6,1,6,2],[11,1,21,1],[21,4,21,6],[15,4,15,6],[20,4,20,6],[19,4,19,6],[18,4,18,6],[16,4,16,6],[17,4,17,6],[189,1,194,1],[193,3,193,6],[194,2,194,6],[97,1,101,1],[97,2,100,2],[88,1,96,1],[180,1,185,1],[185,4,185,6],[183,4,183,6],[184,4,184,6],[181,4,181,6],[182,4,182,6],[200,1,204,1],[195,1,196,1],[198,1,198,6],[199,1,199,6],[200,4,200,6],[201,4,201,6],[202,4,202,6],[203,4,203,6],[204,4,204,6],[196,4,196,6],[188,1,188,6],[187,1,187,6],[180,4,180,6],[174,4,174,6],[175,4,175,6],[137,1,150,1],[177,1,179,1],[161,1,166,1],[174,1,176,1],[167,4,167,6],[168,4,168,6],[169,4,169,6],[177,4,177,6],[178,4,178,6],[161,4,161,6],[162,4,162,6],[163,4,163,6],[164,4,164,6],[165,4,165,6],[179,4,179,6],[170,4,170,6],[171,4,171,6],[172,4,172,6],[173,4,173,6],[127,1,129,1],[130,1,136,1],[107,1,111,1],[112,1,124,1],[112,2,115,2],[158,4,158,6],[159,4,159,6],[160,4,160,6],[167,1,173,1],[166,4,166,6],[154,1,160,1],[152,1,152,6],[150,5,150,6],[153,1,153,6],[154,4,154,6],[155,4,155,6],[156,4,156,6],[157,4,157,6],[139,2,140,2],[139,5,139,6],[140,5,140,6],[147,5,147,6],[148,5,148,6],[147,2,148,2],[78,4,78,6],[79,4,79,6],[81,1,81,6],[83,1,87,1],[75,1,79,1],[75,4,75,6],[76,4,76,6],[77,4,77,6],[125,1,126,1],[89,5,89,6],[90,5,90,6],[176,4,176,6],[149,5,149,6],[146,5,146,6],[145,5,145,6],[144,5,144,6],[132,5,132,6],[133,5,133,6],[111,5,111,6],[114,5,114,6],[115,5,115,6],[116,5,116,6],[117,5,117,6],[118,5,118,6],[119,5,119,6],[120,5,120,6],[121,5,121,6],[122,5,122,6],[112,5,112,6],[113,5,113,6],[141,5,141,6],[137,5,137,6],[138,5,138,6],[142,5,142,6],[143,5,143,6],[1,5,2,6],[96,5,96,6],[97,5,97,6],[98,5,98,6],[99,5,99,6],[123,5,123,6],[124,5,124,6],[125,5,125,6],[83,5,83,6],[107,5,107,6],[108,5,108,6],[91,5,91,6],[92,5,92,6],[93,5,93,6],[94,5,94,6],[95,5,95,6],[109,5,109,6],[110,5,110,6],[56,1,57,6],[58,1,58,6],[22,5,22,6],[102,1,106,1],[103,2,106,2],[1,3,2,3],[189,5,189,6],[190,5,190,6],[191,5,191,6],[192,5,192,6],[195,5,195,6],[42,4,42,6],[43,4,43,6],[44,4,44,6],[45,4,45,6],[46,4,46,6],[47,4,47,6],[48,4,48,6],[49,4,49,6],[50,4,50,6],[51,4,51,6],[52,4,52,6],[53,4,53,6],[54,2,54,6],[126,5,126,6],[127,5,127,6],[128,5,128,6],[129,5,129,6],[130,5,130,6],[131,5,131,6]]}
[]
[null,null,null,"TARIFAS DE SERVICIOS EN ALQUILER "]
[]
[]
[null,"Apreciado cliente, en este formulario podrá encontrar un completo listado con los servicios que Corferias pone a su disposición durante la planificación y desarrollo de la feria."]
[]
[null,"Los valores a continuación NO incluyen IVA del 19%",null,"Pensando en nuestros expositores, Corferias lo invita a conocer los nuevos Combos de Servicios en alquiler para que ahorre entre 5% y 20% según sus necesidades","Consulte las imágenes de referencia en nuestro catálogo: https://corferias.com/pdf/corferias-catalogo-de-servicios-2021.pdf"]
[]
[null,"SERVICIOS TÉCNICOS"]
[]
[null,"IMPORTANTE                                                                                                                                                                                                                                                                                                                                                                                                                                                                                                 ● Recuerde que las instalaciones de servicios de Agua, Desague, Gas, Aire comprimido y Electricidad se hacen según especificaciones técinas de Corferias.\n● Los equipos eléctricos deben estar protegidos por un estabilizador de voltaje, o supresor de picos, que el expositor debe proveer. "]
[null,"ELECTRICIDAD","CODIGO","DESCRIPCIÓN DEL SERVICIO","Ferias 1 a 6 días","Ferias 7 días en adelante"]
[null,null,3070101,"Instalación Monofásica (Toma corriente doble, consumo hasta 2KW/110V)",306000,317000,317000]
[null,null,3070103,"Instalación kilovatio adicional monofásico (Debe contar con punto principal, MAX 2KW por punto)",106800,106800,106800]
[null,null,3070102,"Instalación trifásica (Regleta plastica, consumo hasta 4KW/208V)",569800,569800,569800]
[null,null,3070104,"Instalación kilovatio adicional trifásico (Debe contar con punto principal)",139400,139400,139400]
[null,null,3071372,"De 21 a 50 kilovatios adicionales trifásicos (Valor por KW) (Debe contar con punto principal)",126800,126800,126800]
[null,null,3071373,"De 51 a 100 kilovatios adicionales trifásicos (Valor por KW) (Debe contar con punto principal)",121200,121200,121200]
[null,null,3071374,"Mas de100 kilovatios adicionales trifásicos (Valor por KW) (Debe contar con punto principal)",116200,116200,116200]
[null,null,3070402,"Lampara de pared ajustable (150W/110V)",58900,58900,58900]
[null,null,3070405,"Reflector Led (50W- mltV)",62000,62000,62000]
[null,null,3070403,"Extensión – tomacorriente doble con polo a tierra (1500W/110V) Máx 6mts No incluye electricidad",30500,30500,30500]
[null,"AGUA, AIRE Y GAS","CODIGO","DESCRIPCIÓN DEL SERVICIO","Ferias 1 a 6 días","Ferias 7 días en adelante"]
[null,null,3071345,"Lavaplatos 90XL* 60XH* 90 (No incluye agua y desagüe)",141200,152800,152800]
[null,null,3070301,"Punto de Agua en 1/2\" (incluye consumo)",298400,368500,368500]
[null,null,3070302,"Desagüe en 1/2\" Por toda la feria (Ubicación asignada por Corferias en su stand)",276200,340200,340200]
[null,null,3071341,"Aire comprimido para punto con presión máx. de 100 PSI, y caudal máx. 35CFM.",380700,453000,453000]
[null,null,3070307,"Punto de Agua en 1/2\" (Incluye consumo) + Desagüe en 1 1/2\" + Lavaplatos ",644200,775300,775300]
[null,null,3071321,"Instalación de UN (1) punto de gas propano por UN (1) Equipo (Incluye materiales y mano de obra) (No incluye consumo de gas, este será liquidado a través de un medidor una vez finalice la feria y/o evento)",257200,257200,257200]
[null,null,"Tenga en cuenta:\n● El valor de los kilogramos de Gas Propano se liquida al final de la feria a través de un medidor de consumo que se instala en cada stand.\n● El valor aproximado del consumo puede ser calculado teniendo en cuenta la información de la ficha tecnica del equipo que describe el consumo de kilogramos por hora."]
[null,"SISTEMA DIVISORIO","CODIGO","DESCRIPCIÓN DEL SERVICIO","VALOR FERIA"]
[null,null,3070601,"Panel adicional sistema cfe 100cm x 240cm",31400,31400,31400]
[null,null,3070801,"Puerta sistema cfe 90cm x 240cm",77800,77800,77800]
[null,null,3070803,"Bodega estándar con puerta 150cm x 150cm (Sistema Corferias)",124100,124100,124100]
[null,"BRAZO MECÁNICO","CODIGO","DESCRIPCIÓN DEL SERVICIO","VALOR FERIA"]
[null,null,3071319,"Brazo Mecánico por Fracciòn de 15 min (Solo para primer nivel)",61100,61100,61100]
[null,null,3071319,"Brazo Mecánico por Fracciòn de 30 min (Solo para primer nivel)",113400,113400,113400]
[null,null,3071319,"Brazo Mecánico por Fracciòn de 45 min (Solo para primer nivel)",174500,174500,174500]
[null,null,3071319,"Brazo Mecánico por Fracciòn de 60 min (Solo para primer nivel)",167500,167500,167500]
[null,null,3070413,"Diferencial (Cap. 1 Ton.) + Brazo mecánico (Montaje y desmontaje) ",274900,274900,274900]
[null,null,3070414,"Plataforma Tijera eléctrica por Fracciòn /30 min (Uso para segundos niveles)",68400,68400,68400]
[null,null,"El servicio de Brazo mecánico por fracciones aplica según disponibilidad para los días y horarios oficiales de montaje y desmontaje (entre 8:00 a.m y 8:00 p.m.); para servicios por fuera de estos horarios puede comunicacrse con la oficina del PLUS para brindarle asesoría y cotización a través de nuestros asesores. La prestación del servicio se coordina con el operario de la máquina de acuerdo a disponibilidad."]
[null,"COMBOS","CODIGO","DESCRIPCIÓN DEL SERVICIO","VALOR FERIA"]
[null,null,3071387,"Brazo mecánico + Diferencial + TRUSS 2,60 X 2,60",2668000,2668000,2668000]
[null,null,3071351,"Brazo mecánico + Diferencial + TRUSS 3,60 X 2,60",2668000,2668000,2668000]
[null,null,3071395,"Brazo mecánico + Diferencial + TRUSS 3,60 X 3,60",2668000,2668000,2668000]
[null,null,3071324,"Brazo mecánico + Diferencial + TRUSS 5,90 X 5,90",3335000,3335000,3335000]
[null,null,3071436,"Brazo mecánico + Diferencial + TRUSS 6,90 X 6,90",3335000,3335000,3335000]
[null,null,3071350,"Brazo mecánico + Diferencial + TRUSS 5,60 X 5,60",3335000,3335000,3335000]
[null,null,3071371,"Brazo mecánico + Diferencial + TRUSS 6,60 X 6,60",3335000,3335000,3335000]
[null,null,3071393,"Brazo mecánico + Diferencial + TRUSS 9,60 X 2,60",3335000,3335000,3335000]
[null,null,3071394,"Brazo mecánico + Diferencial + TRUSS 9,60 X 3,60",3335000,3335000,3335000]
[null,null,3071396,"Brazo mecánico + Diferencial + TRUSS 9,60 X 5,60",4416000,4416000,4416000]
[null,null,3071397,"Brazo mecánico + Diferencial + TRUSS 9,60 X 6,60",4416000,4416000,4416000]
[null,null,"El alquiler de este servicio incluye: Equipo de elevación de alturas certificado,Operario certificado en alturas, Diferenciales, Eslingas,Grilletes y demas accesorios que se requieran para la instalación del truss. Incluye montaje y desmontaje."]
[]
[null,"TELECOMUNICACIONES Y REDES"]
[]
[null,"IMPORTANTE                                                                                                                                                                                                                                                                                                                                       \n● El servicio de Internet ofrecido por Corferias tiene un ancho de banda compartido, Corferias entrega un PIN (Clave) como sistema de autenticación válido para un equipo.\n● Requiere tecnologías con Tarjeta de red de 5 GHz o mínimo 2,4 802.11n, cobertura sobre los pabellones de la feria, excluyendo áreas libres.\nWiFi: Por su naturaleza inalámbria puede presentar algunas intermitencias en la efectividad de su conexión.\nCableado: Aplica para equipos que cuenten con una tarjeta de red con puerto RJ45."]
[null,"SERVICIO DE INTERNET Y REDES","CODIGO","DESCRIPCIÓN DEL SERVICIO","VALOR DÍA"]
[null,null,3071418,"Servicio de Internet Cableado \"PARA UN EQUIPO - DURANTE UN DÍA\"  \n(Debe contar con puerto RJ45) *Ancho de banda compartido",63000,63000,63000]
[null,null,3071419,"Clave de acceso para la red WiFi  \"PARA UN EQUIPO - DURANTE UN DÍA\" \n(Incluye el servicio de navegación en Internet básico para consulta de correos y redes sociales)",63000,63000,63000]
[null,null,"CODIGO","DESCRIPCIÓN DEL SERVICIO","Valor Ferias de 3 días","Valor Ferias de 4 a  6 días","Valor Ferias a partir de 7 días"]
[null,null,3071417,"Servicio de Internet Cableado \"PARA UN EQUIPO - DURANTE TODA LA FERIA\"\n(Debe contar con puerto RJ45) *Ancho de banda compartido",151600,171000,234000]
[null,null,3071420,"Clave de acceso para la Red WiFi \"PARA UN EQUIPO - DURANTE TODA LA FERIA\"\n(Incluye el servicio de navegación en Internet básico para consulta de correos y redes sociales) ",151600,171000,234000]
[null,null,3071423,"Conexión para Datafono + Clave de acceso WIFI (Para un equipo durante toda la feria)",243500,264000,323800]
[null,null,3071424,"Conexión para Datafono + Servicio de Internet Cableado (Para un equipo durante toda la feria)",243500,264000,323800]
[null,null,3071425,"Servicio de Internet Cableado + Clave de acceso WIFI (Para un equipo durante toda la feria)",272900,307800,421200]
[null,null,3071437,"Internet Dedicado: Si requiere conexión banda ancha para diferentes servicios o redes locales, contáctese con el área del PLUS de Corferias para brindarle asesoria y cotización."]
[null,"SERVICIO DE INTERNET Y REDES","CODIGO","DESCRIPCIÓN DEL SERVICIO","VALOR FERIA"]
[null,null,3071406,"Instalación Punto de Red: Incluye un cable UTP por punto,equipos de cominicación necesarios para la conexión de red (En caso de ser necesarios en calidad de prestamo), asesoria para el diseño de red). No incluye servicio de Internet.",76300,76300,76300]
[null,null,3071407,"Switch: Equipos para soportar redes de datos. Incluye: Cable de poder (Necesita toma eléctrica), velocidad soportada 100/1000 BASE-T y capacidad de 1, 26 o 48 puertos. No incluye servicio de Internet, Incluye un punto de red.  VALOR POR FERIA ",73400,73400,73400]
[null,null,3071402,"Servicio de VLAN: Servicio virtual de red. Permite la conexión de red interna, entre dispositivos en diferentes pabellones del Recinto Ferial. No incluye servicio de Internet, Incluye un punto de red.  VALOR POR FERIA",294100,294100,294100]
[null,null,3071430,"Extension LAN: Servicio virtual para la extensión de una red externa al interior del Recinto Ferial.  Permite llevar el servicio a otro destino o ubicación dentro del recinto ferial. No incluye servicio de Internet.  VALOR POR FERIA  (Incluye punto de red y aplica para extender el servicio de internet contratado con terceros)",1122600,1122600,1122600]
[null,null,3071442,"Soporte técnico permanente (Por espacio de 8 horas) de un técnico. Solicitar con 24 horas de anterioridad VALOR DÍARIO ",204600,204600,204600]
[null,"TELECOMUNICACIONES","CODIGO","DESCRIPCIÓN DEL SERVICIO","VALOR FERIA"]
[null,null,3070202,"Servicio Telefónico Urbano con Aparato (Incluye consumo local ilimitado)",35700,35700,35700]
[null,null,3070203,"Servicio Telefónico Larga Distancia con aparato: Incluye consumo local ilimitado. El valor no incluye los consumos de larga distacia nacional, local extendida, internacional o celular (Estos consumos se cobran al final de la feria)",35700,35700,35700]
[null,null,3070201,"Línea Externa no conmutada (Previa solicitud a Etb, Claro, EPM, Colomsat u otro operador): Servicio para traer troncales de una empresa o líneas dedicadas, incluye el traslado del strip telefónico del operador al stand del expositor.",100900,100900,100900]
[null,null,3070207,"Conexión cableada para Datafono: (No incluye Datafono) Para el datafono el expositor debe contactarse con la Red transaccional: Redeban o Credibanco\n",106800,106800,106800]
[]
[null,"MOBILIARIO Y ELEMENTOS DE DECORACIÓN"]
[null,"IMPORTANTE                                                                                                                                                                                                                                                                                                                                       \nEl mobiliario será entregado por nuestro cotratista es su stand, en el desmontaje este mismo será el encargado de retirarlo."]
[null,"COMBOS","CODIGO","DESCRIPCIÓN DEL SERVICIO","Valor ferias de 1 a 6 dias","Valor ferias apartir de 7 dias en adelante"]
[null,null,3071105,"KIT básico oficina 2 (2 sillas interlocutoras negras, 1 silla ejecutiva cuero, 1 mesa oficina)",167100,193900,193900]
[null,null,3071036,"Mesa plegable plastico + 2 sillas interlocutoras negras",115800,134300,134300]
[null,null,3071039,"Mesa alta Daysa + 2 sillas neumaticas altas marsella",149600,173500,173500]
[null,null,3071054,"Mesa estandar lotus vidrio + 2 sillas tipo huevo",161200,187000,187000]
[null,null,3071078,"Silla con Espaldar Arles (75cm x 38cm x39cm)",44600,51800,51800]
[null,null,30713198,"Silla Gerencial (100cm x 49cm x 49cm)",97200,112700,112700]
[null,null,3071081,"Silla Ejecutiva Cuero (57cm x 93cm x 52cm)",46900,54400,54400]
[null,null,3071061,"Silla estandar Suiza (48cm x 46cm x 45cm)",37900,43900,43900]
[null,null,3071008,"Silla estandar Tipo Huevo (48cm x 46cm x 45cm)",37900,43900,43900]
[null,null,3071006,"Silla Interlocutora Negra (79cm x 53cm x 42cm)",31800,36800,36800]
[null,null,3071022,"Silla Neumatica alta Versalles (80cm x 40 cm x 40cm",55900,64800,64800]
[null,null,3071077,"Silla Neumática alta Marsella (80cm x 40cm x 40cm)",45800,53100,53100]
[null,null,3071092,"Silla Neumatica alta POP (Blanca o negra) (80cm x 43cm x 40cm)",45300,52500,52500]
[null,"ESTANTERIAS",3070503,"Estantería Polo (Melaminico)   (200cm x 93cm x 35cm)",124400,144300,144300]
[null,null,null,"Estantería Polo (Miel)  (200cm x 93cm x 35cm)",124400,144300,144300]
[null,null,null,"Estantería Polo (Rovere)  (200cm x 93cm x 35cm)",124400,144300,144300]
[null,null,null,"Estantería Polo (Roble Gris)  (200cm x 93cm x 35cm)",124400,144300,144300]
[null,null,3071108,"Estantería Shelf 4E (190cm x 125cm x 41cm)",98200,113900,113900]
[null,"COUNTERS",3071107,"Archivador Regina (70cm x 37cm x50cm)",92400,107200,107200]
[null,null,3070954,"Counter Mónaco (Melaminico) (100cm x 100cm x 30cm)",101600,117900,117900]
[null,null,null,"Counter Mónaco (Miel) (100cm x 100cm x 30cm)",101600,117900,117900]
[null,null,null,"Counter Mónaco (Rovere) (100cm x 100cm x 30cm)",101600,117900,117900]
[null,null,null,"Counter Mónaco (Roble Gris) (100cm x 100cm x 30cm)",101600,117900,117900]
[null,"VITRINAS",3070535,"Vitrina Isla 2E (200cm x 50cm x 50cm)",171700,199100,199100]
[null,null,3070517,"Vitrina Mostrador 1E (100cm x 100cm x 40cm)",152400,176800,176800]
[null,null,3070518,"Vitrina Mostrador Tipo 2 1E (92cm x 90 cm x 40cm)",152400,176800,176800]
[null,null,3071111,"Vitrina Rectangular 2E (200cm x 100cm x 40cm)",194400,225500,225500]
[null,null,30713199,"Vitrina Rectangular 3E (200cm x 100cm x 40cm)",194400,225500,225500]
[null,"MESAS",3071115,"Mesa alta Daysa (Melaminico) (100cm x 60cm)",66000,76500,76500]
[null,null,null,"Mesa alta Daysa (Miel) (100cm x 60cm)",66000,76500,76500]
[null,null,null,"Mesa alta Daysa (Rovere) (100cm x 60cm)",66000,76500,76500]
[null,null,null,"Mesa alta Daysa (Roble Gris) (100cm x 60cm)",66000,76500,76500]
[null,null,3071093,"Mesa alta Daysa vidrio (100cm x 60cm)",82200,95300,95300]
[null,null,3071104,"Mesa Centro Cuadrada 2 Niveles (melaminico) (50cm x 60cm x 60)",59600,69200,69200]
[null,null,3071100,"Mesa Centro Circular doble nivel (melaminico) (50cm x 110cm x 60cm)",80500,93300,93300]
[null,null,3071068,"Mesa Centro Rectangular doble nivel (melaminico) (50cm x 75cm x 50cm)",59600,69200,69200]
[null,null,3071097,"Mesa estandar Daysa (76cm x 60cm)",58700,68000,68000]
[null,null,3071116,"Mesa estandar Lotus (70cm x 64cm x 81cm)",93900,108900,108900]
[null,null,3071098,"Mesa estandar Shia (76cm x 60cm x 60cm)",58700,68000,68000]
[null,null,30713200,"Mesa Oficina (78cm x 120cm x 50cm)",74000,85900,85900]
[null,null,3070936,"Mesón plegable plástico (Gris o blanco) (73cm x 182cm x 76cm)",58400,67700,67700]
[null,"SALAS",3071113,"Sala Osaka (1 sofá Toronto, 2 puffs Donna, 1 mesa centro cuadrada 2 niveles)",314200,364500,364500]
[null,null,3071095,"Sala VIP (1 sofá Victoria derecho, 1 sofá Victoria izquierdo, 2 poltronas, 1 mesa centro cuadrada 2 niveles)",518400,601300,601300]
[null,"PUFF",3071090,"Puff estandar cuadrado (43cm x 43cm x 43cm)",32000,37100,37100]
[null,null,3071091,"Puff Trunk 2 cuerpos (48cm x 81cm x 40cm)",72900,84600,84600]
[null,null,3071114,"Puff Trunk 3 cuerpos (46cm x 120cm x 54cm)",70400,81700,81700]
[null,"SOFAS",3071085,"Sofa Otawa 2 cuerpos (85cm x 120cm x 76cm)",142100,164800,164800]
[null,null,3071083,"Sofa Toronto 3 cuerpos (88cm x 173cm x 80cm)",153700,178300,178300]
[null,null,3071031,"Sofa Terranova 2 cuerpos (88cm x 173cm x 80cm)",153700,178300,178300]
[null,null,3071013,"Sofa Victoria derecho (70cm x 100cm x 75cm)",125300,145300,145300]
[null,null,3071023,"Sofa Victoria izquierdo (70cm x 100cm x 75cm)",125300,145300,145300]
[null,null,30713201,"Poltrona Buggy (72cm x 64cm)",141500,164200,164200]
[null,null,3071059,"Poltrona Levis (73cm x 86cm x 73cm)",136100,157900,157900]
[null,"ACCESORIOS",3071302,"Papelera metálica",17100,19700,19700]
[null,null,3071325,"Poste separador 120cm de alto",33900,38900,38900]
[null,null,3070521,"Perchero básico 1 pedestal (120cm Ancho - Altura) graduable + 5 ganchos",56100,65100,65100]
[null,null,null,"Perchero doble 2 pedestal (120cm Ancho-Altura) graduable + 5 ganchos",64700,75100,75100]
[null,null,3070512,"Locker Torre 1 puesto con 2 + 1/2  entrepaños ",57500,64900]
[null,null,3070714,"Cubo de exhibición (40cm x 40cm x 25cm)",24700,28600,28600]
[null,null,3070957,"Pedestal cuadrado (30cm x 30cm x 30cm)",21300,24700,24700]
[null,null,3070956,"Pedestal rectangular 60cm (60cm x 30cm x 30cm)",25900,30000,30000]
[null,null,3070955,"Pedestal rectangular 90cm (90cm x 30cm x 30cm)",28300,32800,32800]
[null,null,3071370,"Revistero plegable (140cm x 25cm x 29cm)",44600,51800,51800]
[null,null,3071103,"Nevera Minibar 121 LT (48.5cm X 85.1cm X 60cm)",125200,170900]
[null,null,null,"Nevera Estandar 230LT ( 55.6cm X 157.6cm X 67cm)",184900,252100]
[null,null,3070505,"Tarima 120x120x60, (Previa verificación con área de montaje)",32200,37000,37000]
[null,null,3071388,"Módulo de carga 20 puntos 110V",174200,207700]
[]
[null,"ELEMENTOS Y SUMINISTROS VIVERO"]
[null,"IMPORTANTE\nLo invitamos a visitar el vivero que se encuentra dentro de las instaciones de Corferias"]
[null,"COMBOS","CODIGO","DESCRIPCIÓN DEL SERVICIO","VALOR FERIA"]
[null,null,3071375,"Planta + matera plástica (Pequeña)",20600,20600,20600]
[null,null,3071376,"Planta + matera plástica (Mediana)",46400,46400,46400]
[null,null,3071377,"Planta + matera plástica (Grande)",59200,59200,59200]
[null,null,3071378,"Jardinera en madera + 3 Plantas grandes",100300,100300,100300]
[null,null,3071379,"Jardinera en madera + 3 Plantas medianas",81100,81100,81100]
[null,null,3071380,"Jardinera en madera + 7 Plantas pequeñas",83500,83500,83500]
[null,"PLANTAS",3071381,"Cajoneras con flores",155800,155800,155800]
[null,null,3071314,"Grandes (61cm x 120cm)",31700,31700,31700]
[null,null,3071301,"Medianas (31cm x 120cm)",25000,25000,25000]
[null,null,3071317,"Pequeñas (10cm x 30cm)",11100,11100,11100]
[null,null,3071382,"Suculentas (10cm x 15cm)",11100,11100,11100]
[null,null,3071383,"Chamizos",11100,11100,11100]
[null,"MATERAS (no incluye planta)",3071355,"De barro grande",30700,30700,30700]
[null,null,3071356,"De barro mediana",23900,23900,23900]
[null,null,3071384,"De barro pequeña",10600,10600,10600]
[null,null,3071357,"Plástica grande",30700,30700,30700]
[null,null,3071358,"Plástica mediana",23900,23900,23900]
[null,null,3071359,"Plástica pequeña",10600,10600,10600]
[null,null,3071360,"Jardinera en madera (35cm x 100cm x 35cm)",10600,10600,10600]
[null,"ARREGLOS FLORALES",3071352,"Grandes",93800,93800,93800]
[null,null,3071353,"Medianos",54600,54600,54600]
[null,null,3071354,"Pequeños",24000,24000,24000]
[null,"TOPIARIOS",3071364,"Topiario en forma de animales o frutas ",228500,228500,228500]
[null,null,3071365,"Topiario en bolas grandes",228500,228500,228500]
[null,null,3071385,"Topiario en bolas pequeñas",207700,207700,207700]
[null,"SUMINISTROS",3071363,"Piedras (Por m2)",23900,23900,23900]
[null,null,3071367,"Pino patula (Por bulto)",10600,10600,10600]
[null,null,3071361,"Gravilla (Por m2)",10600,10600,10600]
[null,null,3071386,"Muros verticales (Por m2)",328500,328500,328500]
[null,null,3071366,"Cascarilla (Por bulto)",10600,10600,10600]
[null,null,3071362,"Rocas (Por unidad)",63300,63300,63300]
[]
[null,"SERVICIOS DE ASEO BASICO PARA STANDS"]
[null,"IMPORTANTE                                                                                                                                                                                                                                                                                                                                 \nCorferias pone a su disposición el servicio de Aseo para su área de exhibición, este servicio consta de las siguientes caracteristicas (limpieza del polvo y desinfección de superficies en estanterias, mesas y mesones, limpieza de canecas y retiro del material de desecho, aspirada del tapete o trapeado de piso duro); suministro de elementos e insumos para el aseo de las actividades relacionadas; operario uniformado, identificado y con las prestaciones correspondientes de ley.\n● Los elementos tales como: gel antibacterial, alcohol glicerinado u otros insumos para desinfección de visitantes o expositores NO estan incluidos en el servicio.\n● Corferias le informa que en el diligenciamiento del \"INSTRUCTIVO PROTOCOLO DE BIOSEGURIDAD PARA FERIAS Y EVENTOS\", Numeral 5 \"Protocolo de limpieza y desinfección\"  debe solo diligenciar en el espacio de \"Responsable (s) de aplicar y supervisar el procedimiento\" colocando CORFERIAS.\n●  Los registros propios del proveedor de aseo de las actividades y frecuencias serán diligenciados y de uso exclusivo del operario de aseo, en caso de requerise, solo serán entregados a entes de control (propiedad intelectual empresarial).\nPara más información consulte los términos y condiciones del servicio"]
[null,"TIPO 1","CODIGO","SERVICIO ESTANDAR (Frecuencia del servicio cada 3-4 horas)   ","VALOR DÍA ORDINARIO","VALOR DIA DOMINICAL O FESTIVO"]
[null,null,3071312,"Stands entre 9 mts² y 18 mts² (valor por dia)",34900,59900]
[null,null,3071312,"Stands entre 19 mts² y 32mts² (valor por dia)",46900,83900]
[null,null,3071312,"Stands entre 33 mts² y 64 mts² (valor por dia)",87900,189900]
[null,null,3071312,"Stands de 65mts² en adelante se requiere de cotización previa,contactese con el área del plus de Corferias para brindarle asesoria y cotización."]
[null,null,"Nota:Para el cálculo de los metros cuadrados, por favor tener en cuenta el área total del stand, segundos niveles o mezzanines."]
[null,"TIPO 2 ","CODIGO","SERVICIO PERMANENTE 8 HORAS (Durante la feria)","VALOR DÍA ORDINARIO","VALOR DIA DOMINICAL O FESTIVO"]
[null,null,3071312,"1 Operario ","Según cotización"]
[]
[null,"CORFERIAS CONECTA"]
[null,"IMPORTANTE                                                                                                                                                                                                                                                                                                                           \nServicio para ferias con contenido profesional que permite la captura de los datos de contacto registrados por los visistantes.\nEl internet configurado en la Tablet es para el uso exclusivo de la aplicación (No es de navegación).\nConsulte términos y condiciones del servicio en la página web www.corferias.com - Expositores - Servicios para expositores - Corferias Conecta"]
[null,"COMBOS","CODIGO","DESCRIPCIÓN DEL SERVICIO","VALOR FERIA"]
[null,null,3071433,"Corferias Conecta  APP (incluye el internet para un equipo)",283100,283100,283100]
[null,null,3071432,"Corferias Conecta  APP + Tablet con internet",373800,373800,373800]
[null,null," 3071431  ","Tablet adicional con internet",249200,249200,249200]
[null,null," 3071326  ","Internet adicional para la app por equipo",89100,89100,89100]

{"sheet":"TERMINOS Y CONDICIONES","index":6,"n_rows":41,"n_cols":2,"rows_kept":41,"cut":false,"hidden":false,"merged":[[7,1,7,11],[1,1,1,11],[3,1,3,11],[4,1,4,11],[5,1,5,11],[6,1,6,11],[8,1,8,11],[9,1,9,11],[10,1,10,11],[11,1,11,11],[12,1,12,11],[23,1,23,11],[24,1,24,11],[25,1,25,11],[13,1,13,11],[14,1,14,11],[15,1,15,11],[16,1,16,11],[17,1,17,11],[18,1,18,11],[19,1,19,11],[20,1,20,11],[21,1,21,11],[22,1,22,11],[40,1,40,11],[2,1,2,11],[35,1,35,11],[36,1,36,11],[37,1,37,11],[38,1,38,11],[39,1,39,11],[34,1,34,11],[27,1,27,11],[28,1,28,11],[29,1,29,11],[30,1,30,11],[31,1,31,11],[32,1,32,11],[33,1,33,11],[26,1,26,11]]}
[]
[null,"TERMINOS Y CONDICIONES"]
[null,"Gracias por dedicar unos minutos a leer los Términos y Condiciones, para nosotros es significativo que conozcan algunas recomendaciones importantes para la contratación de los servicios en alquiler que pone a disposición Corferias: "]
[null,"Por favor verifique"]
[null,"● La cantidad de servicios según las dimensiones de su stand"]
[null,"● Viabilidad de la instalación de los servicios técnicos, escribiéndonos al correo serviciosplus@corferias.com "]
[null,"● Disponibilidad del inventario"]
[null,"Tenga en cuenta "]
[null,"● Los servicios sin cancelar no serán instalados"]
[null,"● El servicio será entregado en la medida que se encuentre un responsable\n\n"]
[null,"● Si durante la feria el servicio alquilado llega a presentar algún inconveniente, usted debe informarlo al Supervisor Logístico o al Plus para brindar la solución correspondiente"]
[null,"● La pérdida o daño de los elementos alquilados es responsabilidad del expositor, por lo tanto, deberá asumir todos los gastos correspondientes a su reparación o reposición. "]
[null,"● Al finalizar la feria y durante los días de montaje el proveedor encargado de la entrega será quien retire los bienes y servicios alquilados."]
[null,"● Las tarifas aquí presentadas incluyen la instalación, el soporte técnico, no incluyen el IVA del 19%."]
[null,"Tiempos de instalación"]
[null,"● Para su comodidad, le sugerimos realizar el pago mínimo 5 días antes del inicio del montaje de la feria"]
[null,"● Los servicios pagos hasta el último día de montaje (hasta las 4:30 p.m.), serán instalados ese día."]
[null,"● Los servicios pagos a partir de las 4:30 p.m. del último día de montaje serán instalados máximo en 6 horas hábiles (8:30 a.m. – 5:30p.m.)"]
[null,"CONSIDERACIONES ADICIONALES"]
[null," SERVICIOS TÉCNICOS "]
[null,"● Recuerde que la instalación de Agua, Desagüe, Gas, Aire Comprimido y Electricidad, se hacen según especificaciones técnicas de Corferias"]
[null,"● La instalación de los servicios técnicos se debe realizar antes de la disposición y/o construcción de pisos o estructuras"]
[null,"Electricidad"]
[null,"●  Los equipos eléctricos deben estar protegidos por un estabilizador de voltaje o supresor de picos, que el expositor debe proveer. \n●  El voltaje y kilovatio suministrado es de 110V/2KW en monofásica y 208V/4KW en trifásica, (con un rango de máximo 5%), las dos con una frecuencia de 60 Hz. ​ \n●  A partir de 3 kilovatios monofásicos y 4 kilovatios trifásicos se entrega una regleta plástica, el expositor es el encargado de distribuir la energía y llevarla  hasta sus equipos. ​ \n●  La extensión tomacorriente no incluye electricidad. ​ \n●  La instalación monofásica no permite más de 2kw adicionales. ​ \n● El servicio eléctrico es deshabilitado al cierre del pabellón, si requiere del servicio permanente 24 horas, para dar suministro a frigoríficos maquinas, agradecemos comunicarlo al supervisor del pabellón. ​ \n●  Recuerde no sobrecargar la toma corriente eléctrica superando la capacidad de kilovatios, verifique los Watts de los equipos que desea utilizar en su stand. ​ "]
[null,"Agua, desagüe y lavaplatos"]
[null,"● El alquiler del lavaplatos no incluye servicio de agua y desagüe. ​ \n● El valor del punto de agua este incluye consumo durante la feria. ​ \n● La instalación del Punto de agua y desagüe se realiza con manguera de ½ pulgada. ​ "]
[null,"Aire comprimido  "]
[null,"● El aire comprimido está dispuesto para un punto con presión de máximo 100PSI y caudal de 35CFM​ \n● Corferias hace entrega de una manguera de conexión hembra, el expositor realiza la conexión de esta a la maquinaria. "]
[null,"Servicio de gas "]
[null,"● La instalación de UN (1) punto de gas propano por UN (1) Equipo (Incluye materiales y mano de obra) (No incluye consumo de gas, este será liquidado a través de un medidor una vez finalice la feria y/o evento)\n● El valor de los kilogramos de Gas Propano se liquida al final de la feria a través de un medidor de consumo que se instala en cada stand. \n● El valor aproximado del consumo puede ser calculado teniendo en cuenta la información de la ficha tecnica del equipo que describe el consumo de kilogramos por hora."]
[null,"Brazo mecánico y plataforma tijera "]
[null,"● El servicio de brazo mecánico aplica para primeros niveles y el servicio de plataforma eléctrica aplica para los segundos niveles de los pabellones. ​ \n● El servicio de maquinaria no incluye instalador, ni elementos de instalación. ​ \n● Estos servicios se rentan por fracción de minutos. \n● El servicio de brazo mecánico por fracciones aplica según disponibilidad para los días y horarios oficiales de montaje y desmontaje (entre 8:00a.m. – 8:00 p.m.); para servicios fuera de estos horarios pude comunicarse con la oficina del PLUS para brindarle asesoría y cotización. "]
[null,"TELECOMUNICACIONES Y REDES "]
[null,"Internet básico​  "]
[null,"El servicio de internet básico ofrecido por Corferias permite navegación básica (consulta de correos y páginas web), cuenta con una red oscilante de 25MB en un ancho de banda compartido entre los expositores que adquieran el servicio. ​ \nCorferias ingresa en el equipo un PIN (Clave) valido para un equipo que permita su autenticación. ​ "]
[null,"Internet dedicado​ "]
[null,"Este servicio cuenta con una conexión simétrica y protocolo DHCP que permite una navegación compleja, servicios de streaming y aplicaciones en línea, para este servicio se destina una cantidad específica de megas como mínimo de 5MB de acuerdo a las necesidades de los expositores. ​ "]
[null,"Importante: "]
[null,"● El servicio de internet básico tiene cobertura dentro de los pabellones, no aplica en áreas libres. ​ \n● El servicio de internet cableado aplica para equipos que cuenten con un puerto de ethernet RJ45. ​ \n● El servicio de internet WIFI por su naturaleza inalámbrica puede presentar algunas intermitencias en la efectividad de su conexión. ​ \n● Los servicios de internet prestados por Corferias requieren tecnologías con Tarjeta de red de 5 Ghz y sistema operativo mínimo de Windows 10. "]
[null,"SERVICIO DE ASEO BÁSICO PARA STANDS"]
[null,"● El servicio debe ser confirmado y cancelado con 4 dias de antelacion al inicio del mismo\n●  Corferias pone a disposición las siguientes actividades: desinfección de superficies en estanterías, mesas, mesones (aprox cada 3hrs segun normas de bioseguridad), limpieza de polvo, canecas y retiro de material de desecho; aspirado de tapete y/o trapeado de piso duro. Los elementos de exhibición como obras de arte, maquinaria, entre otros, es responsabilidad del expositor su limpieza, aseo y desinfección.\n●  Las actividades a realizar son las que estan al alcance desde el piso; limpiezas especiales en altura no están contempladas en la presente cotización.\n●  El aseo de recuperación por montaje no está incluido, se entiende que el espacio se entregará en condiciones de limpieza básica, por parte de la empresa de montaje.\n●  El valor descrito incluye: salarios y costos de ley del operario de aseo, dotación, EPPs, elementos de aseo e insumos de aseo.\n●  Para procesos de desinfección se utilizará amonio cuaternario de quinta generación, la solicitud de insumos diferentes se realizará bajo responsabilidad y compra por parte del expositor.\n●  Elementos de bioseguridad como gel desinfectante, alcohol para expositores y visitantes o actividades de desinfección de elementos de muestra y/o venta NO están contemplados.\n●  El operario de aseo por razones de seguridad ingresará al stand cuando se encuentre el expositor o personal encargado. \n●  Previamente al inico de la feria se acordará con el expositor el horario de inicio de prestación del servicio, por lo anterior agradecemos estar puntual en el stand, ya que no se podrá reponer el tiempo en caso de retrasos.\n● Servicio permanente: la limpieza es continúa cumpliendo con la norma de desinfección de superficies de alto contacto, mínimo cada tres (3) horas. El servicio se prestará en turno de nueve (9) horas, durante el turno el personal se ausentará durante 15 minutos para el break y una (1) hora para el almuerzo. \tDe requerirse prorrogar el horario por actividades adicionales; se facturará como un adicional, pagándose por anticipado antes de realizar el servicio.\n● Corferias le informa que en el diligenciamiento del \"INSTRUCTIVO PROTOCOLO DE BIOSEGURIDAD PARA FERIAS Y EVENTOS\", Numeral 5 \"Protocolo de limpieza y desinfección\"  debe solo diligenciar en el espacio de \"Responsable (s) de aplicar y supervisar el procedimiento\" colocando CORFERIAS.\n● Los registros propios del proveedor de aseo de las actividades y frecuencias serán diligenciados y de uso exclusivo del operario de aseo, en caso de requerise, solo serán entregados a entes de control (propiedad intelectual empresarial)."]